Workbook

Sheet Main
B10: 2020-09-21
B12: Sheet No. | C12: Template Name | D12: Summary
B13: 1 | C13: Future Intra | D13: For Intraday trading in F&O segment
B14: 2 | C14: Cash Intra | D14: For Intraday trading in cash market segment
B15: 3 | C15: Mid-cap Intra | D15: For Intraday trading in Mid-cap stocks
B16: 4 | C16: Bulk Deals | D16: Reveals Bulk Deals carried on NSE & BSE
B17: 5 | C17: Call Tracker
K27: `

Sheet Future Intra
M5: Back to Main Page
A6: FOR INTRA DAY TRADING | L6: =Main!B10 -> 2020-09-21
A9: Sr.no | B9: Sector | C9: Scrip | D9: CLOSE RATE | E9: Pivot Point | F9: Supports | I9: Resistances
B10: Sector | D10: Point | E10: Point | F10: S1 | G10: S2 | H10: S3 | I10: R1 | J10: R2 | K10: R3 | L10: HIGH | M10: LOW | N10: OI | O10: % Change in OI
A11: 1 | B11: Index | C11: BANKNIFTY | D11: 22078.40 | E11: 22135.50 | F11: 21751.00 | G11: 21423.60 | H11: 21039.10 | I11: 22462.90 | J11: 22847.40 | K11: 23174.80 | L11: 22520 | M11: 21808.1 | N11: 1901150 | O11: -4.50%
A12: 2 | B12: Index | C12: NIFTY | D12: 11515.25 | E12: 11523.25 | F12: 11447.50 | G12: 11379.75 | H12: 11304.00 | I12: 11591.00 | J12: 11666.75 | K12: 11734.50 | L12: 11599 | M12: 11455.5 | N12: 11707650 | O12: -10.36%
A13: 3 | B13: Cement | C13: ACC | D13: 1431.60 | E13: 1427.02 | F13: 1415.18 | G13: 1398.77 | H13: 1386.93 | I13: 1443.43 | J13: 1455.27 | K13: 1471.68 | L13: 1438.85 | M13: 1410.6 | N13: 1977000 | O13: -6.86%
A14: 4 | B14: Others | C14: ADANIENT | D14: 292.40 | E14: 292.65 | F14: 288.30 | G14: 284.20 | H14: 279.85 | I14: 296.75 | J14: 301.10 | K14: 305.20 | L14: 297 | M14: 288.55 | N14: 16952000 | O14: -1.62%
A15: 5 | B15: Others | C15: ADANIPORTS | D15: 357.90 | E15: 355.15 | F15: 350.85 | G15: 343.80 | H15: 339.50 | I15: 362.20 | J15: 366.50 | K15: 373.55 | L15: 359.45 | M15: 348.1 | N15: 28615000 | O15: -1.28%
A16: 6 | B16: Automobile | C16: AMARAJABAT | D16: 764.30 | E16: 769.48 | F16: 751.47 | G16: 738.63 | H16: 720.62 | I16: 782.32 | J16: 800.33 | K16: 813.17 | L16: 787.5 | M16: 756.65 | N16: 1207000 | O16: 3.61%
A17: 7 | B17: Cement | C17: AMBUJACEM | D17: 220.25 | E17: 220.43 | F17: 217.57 | G17: 214.88 | H17: 212.02 | I17: 223.12 | J17: 225.98 | K17: 228.67 | L17: 223.3 | M17: 217.75 | N17: 13164000 | O17: -1.22%
A18: 8 | B18: Others | C18: APOLLOHOSP | D18: 1831.10 | E18: 1826.72 | F18: 1779.43 | G18: 1727.77 | H18: 1680.48 | I18: 1878.38 | J18: 1925.67 | K18: 1977.33 | L18: 1874 | M18: 1775.05 | N18: 1256500 | O18: 9.59%
A19: 9 | B19: Automobile | C19: APOLLOTYRE | D19: 130.95 | E19: 132.08 | F19: 128.82 | G19: 126.68 | H19: 123.42 | I19: 134.22 | J19: 137.48 | K19: 139.62 | L19: 135.35 | M19: 129.95 | N19: 9145000 | O19: -4.79%
A20: 10 | B20: Automobile | C20: ASHOKLEY | D20: 79.95 | E20: 80.62 | F20: 77.98 | G20: 76.02 | H20: 73.38 | I20: 82.58 | J20: 85.22 | K20: 87.18 | L20: 83.25 | M20: 78.65 | N20: 31176000 | O20: 3.81%
A21: 11 | B21: FMCG | C21: ASIANPAINT | D21: 2029.05 | E21: 2031.88 | F21: 2017.22 | G21: 2005.38 | H21: 1990.72 | I21: 2043.72 | J21: 2058.38 | K21: 2070.22 | L21: 2046.55 | M21: 2020.05 | N21: 3420900 | O21: -4.10%
A22: 12 | B22: Pharma | C22: AUROPHARMA | D22: 828.50 | E22: 824.58 | F22: 809.42 | G22: 790.33 | H22: 775.17 | I22: 843.67 | J22: 858.83 | K22: 877.92 | L22: 839.75 | M22: 805.5 | N22: 13625300 | O22: -7.44%
A23: 13 | B23: Banking | C23: AXISBANK | D23: 443.65 | E23: 443.22 | F23: 436.43 | G23: 429.22 | H23: 422.43 | I23: 450.43 | J23: 457.22 | K23: 464.43 | L23: 450 | M23: 436 | N23: 54471600 | O23: -3.14%
A24: 14 | B24: Automobile | C24: BAJAJ-AUTO | D24: 3049.30 | E24: 3040.88 | F24: 3011.82 | G24: 2974.33 | H24: 2945.27 | I24: 3078.37 | J24: 3107.43 | K24: 3144.92 | L24: 3069.95 | M24: 3003.4 | N24: 1459000 | O24: -4.33%
A25: 15 | B25: Finance | C25: BAJAJFINSV | D25: 5902.45 | E25: 5950.33 | F25: 5834.52 | G25: 5766.58 | H25: 5650.77 | I25: 6018.27 | J25: 6134.08 | K25: 6202.02 | L25: 6066.15 | M25: 5882.4 | N25: 867000 | O25: 1.02%
A26: 16 | B26: Finance | C26: BAJFINANCE | D26: 3479.45 | E26: 3472.23 | F26: 3439.47 | G26: 3399.48 | H26: 3366.72 | I26: 3512.22 | J26: 3544.98 | K26: 3584.97 | L26: 3505 | M26: 3432.25 | N26: 5352500 | O26: -0.74%
A27: 17 | B27: Automobile | C27: BALKRISIND | D27: 1393.75 | E27: 1388.97 | F27: 1376.28 | G27: 1358.82 | H27: 1346.13 | I27: 1406.43 | J27: 1419.12 | K27: 1436.58 | L27: 1401.65 | M27: 1371.5 | N27: 1542400 | O27: -6.72%
A28: 18 | B28: Banking | C28: BANDHANBNK | D28: 299.20 | E28: 300.43 | F28: 292.97 | G28: 286.73 | H28: 279.27 | I28: 306.67 | J28: 314.13 | K28: 320.37 | L28: 307.9 | M28: 294.2 | N28: 19546200 | O28: 1.33%
A29: 19 | B29: Banking | C29: BANKBARODA | D29: 45.05 | E29: 45.47 | F29: 44.43 | G29: 43.82 | H29: 42.78 | I29: 46.08 | J29: 47.12 | K29: 47.73 | L29: 46.5 | M29: 44.85 | N29: 48314400 | O29: -2.24%
A30: 20 | B30: FMCG | C30: BATAINDIA | D30: 1335.55 | E30: 1340.30 | F30: 1322.55 | G30: 1309.55 | H30: 1291.80 | I30: 1353.30 | J30: 1371.05 | K30: 1384.05 | L30: 1358.05 | M30: 1327.3 | N30: 2161500 | O30: -5.05%
A31: 21 | B31: Capital_Goods | C31: BEL | D31: 104.00 | E31: 103.72 | F31: 102.63 | G31: 101.27 | H31: 100.18 | I31: 105.08 | J31: 106.17 | K31: 107.53 | L31: 104.8 | M31: 102.35 | N31: 35720000 | O31: -0.09%
A32: 22 | B32: FMCG | C32: BERGEPAINT | D32: 578.85 | E32: 577.28 | F32: 571.62 | G32: 564.38 | H32: 558.72 | I32: 584.52 | J32: 590.18 | K32: 597.42 | L32: 582.95 | M32: 570.05 | N32: 3060200 | O32: 1.46%
A33: 23 | B33: Automobile | C33: BHARATFORG | D33: 479.80 | E33: 481.40 | F33: 475.00 | G33: 470.20 | H33: 463.80 | I33: 486.20 | J33: 492.60 | K33: 497.40 | L33: 487.8 | M33: 476.6 | N33: 6742500 | O33: 1.28%
A34: 24 | B34: Telecom | C34: BHARTIARTL | D34: 495.70 | E34: 489.90 | F34: 481.90 | G34: 468.10 | H34: 460.10 | I34: 503.70 | J34: 511.70 | K34: 525.50 | L34: 497.9 | M34: 476.1 | N34: 136844430 | O34: -3.30%
A35: 25 | B35: Capital_Goods | C35: BHEL | D35: 34.60 | E35: 34.80 | F35: 34.30 | G35: 34.00 | H35: 33.50 | I35: 35.10 | J35: 35.60 | K35: 35.90 | L35: 35.3 | M35: 34.5 | N35: 56637000 | O35: -0.81%
A36: 26 | B36: Pharma | C36: BIOCON | D36: 454.10 | E36: 454.15 | F36: 443.70 | G36: 433.30 | H36: 422.85 | I36: 464.55 | J36: 475.00 | K36: 485.40 | L36: 464.6 | M36: 443.75 | N36: 14404900 | O36: 2.42%
A37: 27 | B37: Automobile | C37: BOSCHLTD | D37: 13086.50 | E37: 13071.15 | F37: 12875.40 | G37: 12664.30 | H37: 12468.55 | I37: 13282.25 | J37: 13478.00 | K37: 13689.10 | L37: 13266.9 | M37: 12860.05 | N37: 100900 | O37: 4.45%
A38: 28 | B38: Oil_Gas | C38: BPCL | D38: 413.20 | E38: 415.98 | F38: 407.97 | G38: 402.73 | H38: 394.72 | I38: 421.22 | J38: 429.23 | K38: 434.47 | L38: 424 | M38: 410.75 | N38: 23556600 | O38: 0.02%
A39: 29 | B39: FMCG | C39: BRITANNIA | D39: 3798.55 | E39: 3803.98 | F39: 3767.97 | G39: 3737.38 | H39: 3701.37 | I39: 3834.57 | J39: 3870.58 | K39: 3901.17 | L39: 3840 | M39: 3773.4 | N39: 1045000 | O39: -2.19%
A40: 30 | B40: Pharma | C40: CADILAHC | D40: 410.45 | E40: 410.32 | F40: 396.38 | G40: 382.32 | H40: 368.38 | I40: 424.38 | J40: 438.32 | K40: 452.38 | L40: 424.25 | M40: 396.25 | N40: 9345600 | O40: 1.24%
A41: 31 | B41: Banking | C41: CANBK | D41: 97.70 | E41: 97.72 | F41: 95.68 | G41: 93.67 | H41: 91.63 | I41: 99.73 | J41: 101.77 | K41: 103.78 | L41: 99.75 | M41: 95.7 | N41: 11700000 | O41: -1.80%
A42: 32 | B42: Finance | C42: CHOLAFIN | D42: 240.10 | E42: 239.75 | F42: 237.00 | G42: 233.90 | H42: 231.15 | I42: 242.85 | J42: 245.60 | K42: 248.70 | L42: 242.5 | M42: 236.65 | N42: 6135000 | O42: 4.16%
A43: 33 | B43: Pharma | C43: CIPLA | D43: 806.15 | E43: 801.43 | F43: 781.77 | G43: 757.38 | H43: 737.72 | I43: 825.82 | J43: 845.48 | K43: 869.87 | L43: 821.1 | M43: 777.05 | N43: 14680900 | O43: 0.29%
A44: 34 | B44: Others | C44: COALINDIA | D44: 123.75 | E44: 124.05 | F44: 122.65 | G44: 121.55 | H44: 120.15 | I44: 125.15 | J44: 126.55 | K44: 127.65 | L44: 125.45 | M44: 122.95 | N44: 45820800 | O44: 3.92%
A45: 35 | B45: Technology | C45: COFORGE | D45: 2200.25 | E45: 2214.78 | F45: 2175.57 | G45: 2150.88 | H45: 2111.67 | I45: 2239.47 | J45: 2278.68 | K45: 2303.37 | L45: 2254 | M45: 2190.1 | N45: 584625 | O45: -0.26%
A46: 36 | B46: FMCG | C46: COLPAL | D46: 1375.65 | E46: 1384.52 | F46: 1359.08 | G46: 1342.52 | H46: 1317.08 | I46: 1401.08 | J46: 1426.52 | K46: 1443.08 | L46: 1409.95 | M46: 1367.95 | N46: 2627100 | O46: 2.51%
A47: 37 | B47: Others | C47: CONCOR | D47: 387.00 | E47: 388.75 | F47: 383.90 | G47: 380.80 | H47: 375.95 | I47: 391.85 | J47: 396.70 | K47: 399.80 | L47: 393.6 | M47: 385.65 | N47: 6931905 | O47: -1.00%
A48: 38 | B48: Capital_Goods | C48: CUMMINSIND | D48: 480.70 | E48: 483.88 | F48: 475.07 | G48: 469.43 | H48: 460.62 | I48: 489.52 | J48: 498.33 | K48: 503.97 | L48: 492.7 | M48: 478.25 | N48: 2536800 | O48: 8.13%
A49: 39 | B49: FMCG | C49: DABUR | D49: 508.75 | E49: 506.40 | F49: 502.40 | G49: 496.05 | H49: 492.05 | I49: 512.75 | J49: 516.75 | K49: 523.10 | L49: 510.4 | M49: 500.05 | N49: 9817500 | O49: -1.08%
A50: 40 | B50: Pharma | C50: DIVISLAB | D50: 3345.45 | E50: 3327.87 | F50: 3257.73 | G50: 3170.02 | H50: 3099.88 | I50: 3415.58 | J50: 3485.72 | K50: 3573.43 | L50: 3398 | M50: 3240.15 | N50: 3313200 | O50: -0.50%
A51: 41 | B51: Realty | C51: DLF | D51: 161.30 | E51: 161.88 | F51: 156.87 | G51: 152.43 | H51: 147.42 | I51: 166.32 | J51: 171.33 | K51: 175.77 | L51: 166.9 | M51: 157.45 | N51: 32448900 | O51: 4.78%
A52: 42 | B52: Pharma | C52: DRREDDY | D52: 5338.95 | E52: 5259.87 | F52: 5025.78 | G52: 4712.62 | H52: 4478.53 | I52: 5573.03 | J52: 5807.12 | K52: 6120.28 | L52: 5493.95 | M52: 4946.7 | N52: 3123750 | O52: 3.94%
A53: 43 | B53: Automobile | C53: EICHERMOT | D53: 2155.85 | E53: 2168.58 | F53: 2127.77 | G53: 2099.68 | H53: 2058.87 | I53: 2196.67 | J53: 2237.48 | K53: 2265.57 | L53: 2209.4 | M53: 2140.5 | N53: 2270450 | O53: -4.39%
A54: 44 | B54: Automobile | C54: ESCORTS | D54: 1239.20 | E54: 1250.07 | F54: 1223.13 | G54: 1207.07 | H54: 1180.13 | I54: 1266.13 | J54: 1293.07 | K54: 1309.13 | L54: 1277 | M54: 1234 | N54: 2478300 | O54: -5.42%
A55: 45 | B55: Automobile | C55: EXIDEIND | D55: 167.15 | E55: 167.35 | F55: 165.50 | G55: 163.85 | H55: 162.00 | I55: 169.00 | J55: 170.85 | K55: 172.50 | L55: 169.2 | M55: 165.7 | N55: 9241200 | O55: 4.52%
A56: 46 | B56: Banking | C56: FEDERALBNK | D56: 52.00 | E56: 52.10 | F56: 50.95 | G56: 49.90 | H56: 48.75 | I56: 53.15 | J56: 54.30 | K56: 55.35 | L56: 53.25 | M56: 51.05 | N56: 95489000 | O56: -1.90%
A57: 47 | B57: Oil_Gas | C57: GAIL | D57: 92.20 | E57: 92.32 | F57: 90.93 | G57: 89.67 | H57: 88.28 | I57: 93.58 | J57: 94.97 | K57: 96.23 | L57: 93.7 | M57: 91.05 | N57: 26248300 | O57: -4.02%
A58: 48 | B58: Pharma | C58: GLENMARK | D58: 509.45 | E58: 509.13 | F58: 498.52 | G58: 487.58 | H58: 476.97 | I58: 520.07 | J58: 530.68 | K58: 541.62 | L58: 519.75 | M58: 498.2 | N58: 9795700 | O58: 21.76%
A59: 49 | B59: Infrastructure | C59: GMRINFRA | D59: 24.00 | E59: 24.08 | F59: 23.67 | G59: 23.33 | H59: 22.92 | I59: 24.42 | J59: 24.83 | K59: 25.17 | L59: 24.5 | M59: 23.75 | N59: 89280000 | O59: -4.62%
A60: 50 | B60: FMCG | C60: GODREJCP | D60: 714.55 | E60: 713.48 | F60: 699.77 | G60: 684.98 | H60: 671.27 | I60: 728.27 | J60: 741.98 | K60: 756.77 | L60: 727.2 | M60: 698.7 | N60: 5284000 | O60: 11.24%
A61: 51 | B61: Others | C61: GODREJPROP | D61: 917.60 | E61: 914.68 | F61: 897.37 | G61: 877.13 | H61: 859.82 | I61: 934.92 | J61: 952.23 | K61: 972.47 | L61: 932 | M61: 894.45 | N61: 826800 | O61: 11.78%
A62: 52 | B62: Cement | C62: GRASIM | D62: 745.25 | E62: 739.98 | F62: 731.87 | G62: 718.48 | H62: 710.37 | I62: 753.37 | J62: 761.48 | K62: 774.87 | L62: 748.1 | M62: 726.6 | N62: 17948350 | O62: 0.13%
A63: 53 | B63: Others | C63: HAVELLS | D63: 674.35 | E63: 678.25 | F63: 667.95 | G63: 661.55 | H63: 651.25 | I63: 684.65 | J63: 694.95 | K63: 701.35 | L63: 688.55 | M63: 671.85 | N63: 5828000 | O63: 2.05%
A64: 54 | B64: Technology | C64: HCLTECH | D64: 811.60 | E64: 813.40 | F64: 802.20 | G64: 792.80 | H64: 781.60 | I64: 822.80 | J64: 834.00 | K64: 843.40 | L64: 824.6 | M64: 804 | N64: 14401800 | O64: -4.77%
A65: 55 | B65: Finance | C65: HDFC | D65: 1726.75 | E65: 1732.60 | F65: 1707.20 | G65: 1687.65 | H65: 1662.25 | I65: 1752.15 | J65: 1777.55 | K65: 1797.10 | L65: 1758 | M65: 1713.05 | N65: 27752700 | O65: -1.66%
A66: 56 | B66: Banking | C66: HDFCBANK | D66: 1060.90 | E66: 1067.93 | F66: 1042.22 | G66: 1023.53 | H66: 997.82 | I66: 1086.62 | J66: 1112.33 | K66: 1131.02 | L66: 1093.65 | M66: 1049.25 | N66: 42391250 | O66: -2.50%
A67: 57 | B67: Finance | C67: HDFCLIFE | D67: 585.75 | E67: 588.32 | F67: 580.98 | G67: 576.22 | H67: 568.88 | I67: 593.08 | J67: 600.42 | K67: 605.18 | L67: 595.65 | M67: 583.55 | N67: 9667900 | O67: -4.10%
A68: 58 | B68: Automobile | C68: HEROMOTOCO | D68: 3112.45 | E68: 3105.75 | F68: 3086.65 | G68: 3060.85 | H68: 3041.75 | I68: 3131.55 | J68: 3150.65 | K68: 3176.45 | L68: 3124.85 | M68: 3079.95 | N68: 1787700 | O68: -3.67%
A69: 59 | B69: Metals | C69: HINDALCO | D69: 179.95 | E69: 179.93 | F69: 177.12 | G69: 174.28 | H69: 171.47 | I69: 182.77 | J69: 185.58 | K69: 188.42 | L69: 182.75 | M69: 177.1 | N69: 32271500 | O69: 5.51%
A70: 60 | B70: Oil_Gas | C70: HINDPETRO | D70: 194.60 | E70: 195.90 | F70: 192.60 | G70: 190.60 | H70: 187.30 | I70: 197.90 | J70: 201.20 | K70: 203.20 | L70: 199.2 | M70: 193.9 | N70: 34481700 | O70: 2.21%
A71: 61 | B71: FMCG | C71: HINDUNILVR | D71: 2101.00 | E71: 2107.88 | F71: 2084.37 | G71: 2067.73 | H71: 2044.22 | I71: 2124.52 | J71: 2148.03 | K71: 2164.67 | L71: 2131.4 | M71: 2091.25 | N71: 13779000 | O71: -1.87%
A72: 62 | B72: Finance | C72: IBULHSGFIN | D72: 179.75 | E72: 180.92 | F72: 176.83 | G72: 173.92 | H72: 169.83 | I72: 183.83 | J72: 187.92 | K72: 190.83 | L72: 185 | M72: 178 | N72: 15438000 | O72: -0.42%
A73: 63 | B73: Banking | C73: ICICIBANK | D73: 369.65 | E73: 369.78 | F73: 364.27 | G73: 358.88 | H73: 353.37 | I73: 375.17 | J73: 380.68 | K73: 386.07 | L73: 375.3 | M73: 364.4 | N73: 119574125 | O73: -5.14%
A74: 64 | B74: Finance | C74: ICICIPRULI | D74: 423.05 | E74: 424.28 | F74: 418.12 | G74: 413.18 | H74: 407.02 | I74: 429.22 | J74: 435.38 | K74: 440.32 | L74: 430.45 | M74: 419.35 | N74: 8265000 | O74: 1.74%
A75: 65 | B75: Telecom | C75: IDEA | D75: 11.25 | E75: 11.32 | F75: 10.98 | G75: 10.72 | H75: 10.38 | I75: 11.58 | J75: 11.92 | K75: 12.18 | L75: 11.65 | M75: 11.05 | N75: 381640000 | O75: -1.73%
A76: 66 | B76: Banking | C76: IDFCFIRSTB | D76: 31.10 | E76: 31.45 | F76: 30.60 | G76: 30.10 | H76: 29.25 | I76: 31.95 | J76: 32.80 | K76: 33.30 | L76: 32.3 | M76: 30.95 | N76: 176054000 | O76: -1.01%
A77: 67 | B77: Oil_Gas | C77: IGL | D77: 419.55 | E77: 419.90 | F77: 413.45 | G77: 407.35 | H77: 400.90 | I77: 426.00 | J77: 432.45 | K77: 438.55 | L77: 426.35 | M77: 413.8 | N77: 6073375 | O77: -4.66%
A78: 68 | B78: Others | C78: INDIGO | D78: 1315.10 | E78: 1317.22 | F78: 1302.03 | G78: 1288.97 | H78: 1273.78 | I78: 1330.28 | J78: 1345.47 | K78: 1358.53 | L78: 1332.4 | M78: 1304.15 | N78: 3659500 | O78: -0.87%
A79: 69 | B79: Banking | C79: INDUSINDBK | D79: 615.05 | E79: 612.93 | F79: 601.12 | G79: 587.18 | H79: 575.37 | I79: 626.87 | J79: 638.68 | K79: 652.62 | L79: 624.75 | M79: 599 | N79: 30380000 | O79: 2.28%
A80: 70 | B80: Telecom | C80: INFRATEL | D80: 199.50 | E80: 198.48 | F80: 196.22 | G80: 192.93 | H80: 190.67 | I80: 201.77 | J80: 204.03 | K80: 207.32 | L80: 200.75 | M80: 195.2 | N80: 16906400 | O80: -1.23%
A81: 71 | B81: Technology | C81: INFY | D81: 1005.00 | E81: 1009.07 | F81: 998.13 | G81: 991.27 | H81: 980.33 | I81: 1015.93 | J81: 1026.87 | K81: 1033.73 | L81: 1020 | M81: 1002.2 | N81: 40908000 | O81: -7.07%
A82: 72 | B82: Oil_Gas | C82: IOC | D82: 80.95 | E82: 81.48 | F82: 79.97 | G82: 78.98 | H82: 77.47 | I82: 82.47 | J82: 83.98 | K82: 84.97 | L82: 83 | M82: 80.5 | N82: 66935100 | O82: 5.99%
A83: 73 | B83: FMCG | C83: ITC | D83: 179.40 | E83: 178.87 | F83: 177.58 | G83: 175.77 | H83: 174.48 | I83: 180.68 | J83: 181.97 | K83: 183.78 | L83: 180.15 | M83: 177.05 | N83: 121219200 | O83: -3.29%
A84: 74 | B84: Metals | C84: JINDALSTEL | D84: 198.40 | E84: 199.30 | F84: 196.50 | G84: 194.60 | H84: 191.80 | I84: 201.20 | J84: 204.00 | K84: 205.90 | L84: 202.1 | M84: 197.4 | N84: 22165000 | O84: -0.69%
A85: 75 | B85: Metals | C85: JSWSTEEL | D85: 288.55 | E85: 289.50 | F85: 284.65 | G85: 280.75 | H85: 275.90 | I85: 293.40 | J85: 298.25 | K85: 302.15 | L85: 294.35 | M85: 285.6 | N85: 43297200 | O85: -0.55%
A86: 76 | B86: Others | C86: JUBLFOOD | D86: 2364.45 | E86: 2380.92 | F86: 2339.13 | G86: 2313.82 | H86: 2272.03 | I86: 2406.23 | J86: 2448.02 | K86: 2473.33 | L86: 2422.7 | M86: 2355.6 | N86: 2397500 | O86: -5.46%
A87: 77 | B87: Banking | C87: KOTAKBANK | D87: 1281.10 | E87: 1286.40 | F87: 1259.80 | G87: 1238.50 | H87: 1211.90 | I87: 1307.70 | J87: 1334.30 | K87: 1355.60 | L87: 1313 | M87: 1265.1 | N87: 14232000 | O87: 3.40%
A88: 78 | B88: Finance | C88: L&TFH | D88: 63.55 | E88: 63.93 | F88: 62.12 | G88: 60.68 | H88: 58.87 | I88: 65.37 | J88: 67.18 | K88: 68.62 | L88: 65.75 | M88: 62.5 | N88: 32993600 | O88: -6.44%
A89: 79 | B89: Finance | C89: LICHSGFIN | D89: 303.35 | E89: 303.95 | F89: 296.90 | G89: 290.45 | H89: 283.40 | I89: 310.40 | J89: 317.45 | K89: 323.90 | L89: 311 | M89: 297.5 | N89: 8104000 | O89: -7.70%
A90: 80 | B90: Capital_Goods | C90: LT | D90: 902.20 | E90: 905.15 | F90: 895.35 | G90: 888.50 | H90: 878.70 | I90: 912.00 | J90: 921.80 | K90: 928.65 | L90: 914.95 | M90: 898.3 | N90: 15929100 | O90: 0.49%
A91: 81 | B91: Pharma | C91: LUPIN | D91: 1087.45 | E91: 1095.13 | F91: 1065.27 | G91: 1043.08 | H91: 1013.22 | I91: 1117.32 | J91: 1147.18 | K91: 1169.37 | L91: 1125 | M91: 1072.95 | N91: 7650000 | O91: 3.76%
A92: 82 | B92: Automobile | C92: M&M | D92: 655.45 | E92: 650.85 | F92: 640.30 | G92: 625.15 | H92: 614.60 | I92: 666.00 | J92: 676.55 | K92: 691.70 | L92: 661.4 | M92: 635.7 | N92: 16074800 | O92: 3.93%
A93: 83 | B93: Finance | C93: M&MFIN | D93: 133.60 | E93: 134.88 | F93: 131.47 | G93: 129.33 | H93: 125.92 | I93: 137.02 | J93: 140.43 | K93: 142.57 | L93: 138.3 | M93: 132.75 | N93: 17220000 | O93: 5.69%
A94: 84 | B94: Finance | C94: MANAPPURAM | D94: 161.20 | E94: 161.53 | F94: 159.32 | G94: 157.43 | H94: 155.22 | I94: 163.42 | J94: 165.63 | K94: 167.52 | L94: 163.75 | M94: 159.65 | N94: 16884000 | O94: -7.19%
A95: 85 | B95: FMCG | C95: MARICO | D95: 362.80 | E95: 361.33 | F95: 358.67 | G95: 354.53 | H95: 351.87 | I95: 365.47 | J95: 368.13 | K95: 372.27 | L95: 364 | M95: 357.2 | N95: 9212000 | O95: 0.57%
A96: 86 | B96: Automobile | C96: MARUTI | D96: 6982.00 | E96: 7031.62 | F96: 6901.38 | G96: 6820.77 | H96: 6690.53 | I96: 7112.23 | J96: 7242.47 | K96: 7323.08 | L96: 7161.85 | M96: 6951 | N96: 2108200 | O96: 0.37%
A97: 87 | B97: FMCG | C97: MCDOWELL-N | D97: 544.35 | E97: 547.15 | F97: 537.30 | G97: 530.25 | H97: 520.40 | I97: 554.20 | J97: 564.05 | K97: 571.10 | L97: 557 | M97: 540.1 | N97: 17702500 | O97: 3.16%
A98: 88 | B98: Finance | C98: MFSL | D98: 610.35 | E98: 615.57 | F98: 602.13 | G98: 593.92 | H98: 580.48 | I98: 623.78 | J98: 637.22 | K98: 645.43 | L98: 629 | M98: 607.35 | N98: 1830400 | O98: 1.37%
A99: 89 | B99: Oil_Gas | C99: MGL | D99: 919.00 | E99: 919.60 | F99: 910.20 | G99: 901.40 | H99: 892.00 | I99: 928.40 | J99: 937.80 | K99: 946.60 | L99: 929 | M99: 910.8 | N99: 1590600 | O99: -10.23%
A100: 90 | B100: Technology | C100: MINDTREE | D100: 1275.75 | E100: 1277.12 | F100: 1261.33 | G100: 1246.92 | H100: 1231.13 | I100: 1291.53 | J100: 1307.32 | K100: 1321.73 | L100: 1292.9 | M100: 1262.7 | N100: 2052800 | O100: -3.17%
A101: 91 | B101: Automobile | C101: MOTHERSUMI | D101: 122.70 | E101: 123.47 | F101: 120.98 | G101: 119.27 | H101: 116.78 | I101: 125.18 | J101: 127.67 | K101: 129.38 | L101: 125.95 | M101: 121.75 | N101: 24577000 | O101: -0.11%
A102: 92 | B102: Automobile | C102: MRF | D102: 59020.35 | E102: 59246.73 | F102: 58444.47 | G102: 57868.58 | H102: 57066.32 | I102: 59822.62 | J102: 60624.88 | K102: 61200.77 | L102: 60049 | M102: 58670.85 | N102: 43750 | O102: -3.31%
A103: 93 | B103: Finance | C103: MUTHOOTFIN | D103: 1106.20 | E103: 1113.95 | F103: 1092.25 | G103: 1078.30 | H103: 1056.60 | I103: 1127.90 | J103: 1149.60 | K103: 1163.55 | L103: 1135.65 | M103: 1100 | N103: 4189500 | O103: 2.93%
A104: 94 | B104: Metals | C104: NATIONALUM | D104: 35.00 | E104: 34.85 | F104: 34.20 | G104: 33.40 | H104: 32.75 | I104: 35.65 | J104: 36.30 | K104: 37.10 | L104: 35.5 | M104: 34.05 | N104: 44846000 | O104: 4.72%
A105: 95 | B105: Others | C105: NAUKRI | D105: 3491.00 | E105: 3508.92 | F105: 3430.78 | G105: 3370.57 | H105: 3292.43 | I105: 3569.13 | J105: 3647.27 | K105: 3707.48 | L105: 3587.05 | M105: 3448.7 | N105: 591750 | O105: -6.18%
A106: 96 | B106: FMCG | C106: NESTLEIND | D106: 16085.00 | E106: 16105.72 | F106: 15912.53 | G106: 15740.07 | H106: 15546.88 | I106: 16278.18 | J106: 16471.37 | K106: 16643.83 | L106: 16298.9 | M106: 15933.25 | N106: 433450 | O106: -3.68%
A107: 97 | B107: Metals | C107: NMDC | D107: 87.15 | E107: 87.57 | F107: 86.03 | G107: 84.92 | H107: 83.38 | I107: 88.68 | J107: 90.22 | K107: 91.33 | L107: 89.1 | M107: 86.45 | N107: 43469600 | O107: 1.93%
A108: 98 | B108: Power | C108: NTPC | D108: 90.55 | E108: 90.08 | F108: 89.17 | G108: 87.78 | H108: 86.87 | I108: 91.47 | J108: 92.38 | K108: 93.77 | L108: 91 | M108: 88.7 | N108: 44750700 | O108: -9.22%
A109: 99 | B109: Oil_Gas | C109: ONGC | D109: 74.45 | E109: 74.17 | F109: 73.43 | G109: 72.42 | H109: 71.68 | I109: 75.18 | J109: 75.92 | K109: 76.93 | L109: 74.9 | M109: 73.15 | N109: 56287000 | O109: -5.79%
A110: 100 | B110: Textile | C110: PAGEIND | D110: 18697.85 | E110: 18816.03 | F110: 18487.07 | G110: 18276.28 | H110: 17947.32 | I110: 19026.82 | J110: 19355.78 | K110: 19566.57 | L110: 19145 | M110: 18605.25 | N110: 144600 | O110: 3.52%
A111: 101 | B111: Pharma | C111: PEL | D111: 1355.40 | E111: 1368.05 | F111: 1328.95 | G111: 1302.50 | H111: 1263.40 | I111: 1394.50 | J111: 1433.60 | K111: 1460.05 | L111: 1407.15 | M111: 1341.6 | N111: 3313750 | O111: 2.92%
A112: 102 | B112: Oil_Gas | C112: PETRONET | D112: 228.50 | E112: 230.58 | F112: 224.87 | G112: 221.23 | H112: 215.52 | I112: 234.22 | J112: 239.93 | K112: 243.57 | L112: 236.3 | M112: 226.95 | N112: 11946000 | O112: 7.13%
A113: 103 | B113: Finance | C113: PFC | D113: 93.45 | E113: 93.78 | F113: 92.07 | G113: 90.68 | H113: 88.97 | I113: 95.17 | J113: 96.88 | K113: 98.27 | L113: 95.5 | M113: 92.4 | N113: 47175800 | O113: -0.22%
A114: 104 | B114: FMCG | C114: PIDILITIND | D114: 1457.85 | E114: 1464.88 | F114: 1443.32 | G114: 1428.78 | H114: 1407.22 | I114: 1479.42 | J114: 1500.98 | K114: 1515.52 | L114: 1486.45 | M114: 1450.35 | N114: 3069000 | O114: 0.79%
A115: 105 | B115: Banking | C115: PNB | D115: 32.60 | E115: 32.83 | F115: 32.12 | G115: 31.63 | H115: 30.92 | I115: 33.32 | J115: 34.03 | K115: 34.52 | L115: 33.55 | M115: 32.35 | N115: 57106000 | O115: -0.63%
A116: 106 | B116: Power | C116: POWERGRID | D116: 171.75 | E116: 170.83 | F116: 168.87 | G116: 165.98 | H116: 164.02 | I116: 173.72 | J116: 175.68 | K116: 178.57 | L116: 172.8 | M116: 167.95 | N116: 14060000 | O116: -4.35%
A117: 107 | B117: Media | C117: PVR | D117: 1206.80 | E117: 1217.73 | F117: 1192.72 | G117: 1178.63 | H117: 1153.62 | I117: 1231.82 | J117: 1256.83 | K117: 1270.92 | L117: 1242.75 | M117: 1203.65 | N117: 2229546 | O117: 5.73%
A118: 108 | B118: Cement | C118: RAMCOCEM | D118: 747.50 | E118: 751.95 | F118: 736.65 | G118: 725.80 | H118: 710.50 | I118: 762.80 | J118: 778.10 | K118: 788.95 | L118: 767.25 | M118: 741.1 | N118: 1207850 | O118: 5.03%
A119: 109 | B119: Banking | C119: RBLBANK | D119: 180.55 | E119: 180.95 | F119: 176.70 | G119: 172.85 | H119: 168.60 | I119: 184.80 | J119: 189.05 | K119: 192.90 | L119: 185.2 | M119: 177.1 | N119: 20313800 | O119: -4.68%
A120: 110 | B120: Power | C120: RECLTD | D120: 108.05 | E120: 108.17 | F120: 106.88 | G120: 105.72 | H120: 104.43 | I120: 109.33 | J120: 110.62 | K120: 111.78 | L120: 109.45 | M120: 107 | N120: 17196000 | O120: 0.39%
A121: 111 | B121: Oil_Gas | C121: RELIANCE | D121: 2307.80 | E121: 2305.10 | F121: 2285.20 | G121: 2262.60 | H121: 2242.70 | I121: 2327.70 | J121: 2347.60 | K121: 2370.20 | L121: 2325 | M121: 2282.5 | N121: 32660370 | O121: -4.76%
A122: 112 | B122: Metals | C122: SAIL | D122: 38.05 | E122: 38.17 | F122: 37.73 | G122: 37.42 | H122: 36.98 | I122: 38.48 | J122: 38.92 | K122: 39.23 | L122: 38.6 | M122: 37.85 | N122: 58064000 | O122: -4.65%
A123: 113 | B123: Finance | C123: SBILIFE | D123: 849.10 | E123: 851.78 | F123: 842.57 | G123: 836.03 | H123: 826.82 | I123: 858.32 | J123: 867.53 | K123: 874.07 | L123: 861 | M123: 845.25 | N123: 6295500 | O123: 1.22%
A124: 114 | B124: Banking | C124: SBIN | D124: 192.75 | E124: 193.43 | F124: 189.12 | G124: 185.48 | H124: 181.17 | I124: 197.07 | J124: 201.38 | K124: 205.02 | L124: 197.75 | M124: 189.8 | N124: 130461000 | O124: -2.74%
A125: 115 | B125: Cement | C125: SHREECEM | D125: 19570.90 | E125: 19704.58 | F125: 19309.27 | G125: 19047.63 | H125: 18652.32 | I125: 19966.22 | J125: 20361.53 | K125: 20623.17 | L125: 20099.9 | M125: 19442.95 | N125: 189150 | O125: 6.06%
A126: 116 | B126: Capital_Goods | C126: SIEMENS | D126: 1256.95 | E126: 1253.95 | F126: 1242.35 | G126: 1227.75 | H126: 1216.15 | I126: 1268.55 | J126: 1280.15 | K126: 1294.75 | L126: 1265.55 | M126: 1239.35 | N126: 1778700 | O126: -3.38%
A127: 117 | B127: Textile | C127: SRF | D127: 4322.35 | E127: 4353.83 | F127: 4260.07 | G127: 4197.78 | H127: 4104.02 | I127: 4416.12 | J127: 4509.88 | K127: 4572.17 | L127: 4447.6 | M127: 4291.55 | N127: 643750 | O127: -0.27%
A128: 118 | B128: Finance | C128: SRTRANSFIN | D128: 647.55 | E128: 647.90 | F128: 632.80 | G128: 618.05 | H128: 602.95 | I128: 662.65 | J128: 677.75 | K128: 692.50 | L128: 663 | M128: 633.15 | N128: 5257294 | O128: -0.48%
A129: 119 | B129: Pharma | C129: SUNPHARMA | D129: 524.15 | E129: 525.70 | F129: 514.85 | G129: 505.55 | H129: 494.70 | I129: 535.00 | J129: 545.85 | K129: 555.15 | L129: 536.55 | M129: 516.4 | N129: 33734400 | O129: -4.86%
A130: 120 | B130: Media | C130: SUNTV | D130: 484.30 | E130: 482.95 | F130: 477.35 | G130: 470.40 | H130: 464.80 | I130: 489.90 | J130: 495.50 | K130: 502.45 | L130: 488.55 | M130: 476 | N130: 5218500 | O130: -0.74%
A131: 121 | B131: Fertilisers | C131: TATACHEM | D131: 292.10 | E131: 293.27 | F131: 286.43 | G131: 280.77 | H131: 273.93 | I131: 298.93 | J131: 305.77 | K131: 311.43 | L131: 300.1 | M131: 287.6 | N131: 7198000 | O131: -3.49%
A132: 122 | B132: Others | C132: TATACONSUM | D132: 540.55 | E132: 543.97 | F132: 534.13 | G132: 527.72 | H132: 517.88 | I132: 550.38 | J132: 560.22 | K132: 566.63 | L132: 553.8 | M132: 537.55 | N132: 14372100 | O132: -0.39%
A133: 123 | B133: Automobile | C133: TATAMOTORS | D133: 148.00 | E133: 148.38 | F133: 145.97 | G133: 143.93 | H133: 141.52 | I133: 150.42 | J133: 152.83 | K133: 154.87 | L133: 150.8 | M133: 146.35 | N133: 74459100 | O133: -5.14%
A134: 124 | B134: Power | C134: TATAPOWER | D134: 56.30 | E134: 56.57 | F134: 55.73 | G134: 55.17 | H134: 54.33 | I134: 57.13 | J134: 57.97 | K134: 58.53 | L134: 57.4 | M134: 56 | N134: 71131500 | O134: -0.92%
A135: 125 | B135: Metals | C135: TATASTEEL | D135: 395.45 | E135: 398.43 | F135: 390.87 | G135: 386.28 | H135: 378.72 | I135: 403.02 | J135: 410.58 | K135: 415.17 | L135: 406 | M135: 393.85 | N135: 24811500 | O135: -3.77%
A136: 126 | B136: Technology | C136: TCS | D136: 2456.65 | E136: 2468.38 | F136: 2430.82 | G136: 2404.98 | H136: 2367.42 | I136: 2494.22 | J136: 2531.78 | K136: 2557.62 | L136: 2505.95 | M136: 2442.55 | N136: 10212900 | O136: -3.27%
A137: 127 | B137: Technology | C137: TECHM | D137: 804.95 | E137: 801.65 | F137: 792.20 | G137: 779.45 | H137: 770.00 | I137: 814.40 | J137: 823.85 | K137: 836.60 | L137: 811.1 | M137: 788.9 | N137: 10117200 | O137: -4.30%
A138: 128 | B138: FMCG | C138: TITAN | D138: 1166.95 | E138: 1176.83 | F138: 1151.32 | G138: 1135.68 | H138: 1110.17 | I138: 1192.47 | J138: 1217.98 | K138: 1233.62 | L138: 1202.35 | M138: 1161.2 | N138: 5696250 | O138: -3.46%
A139: 129 | B139: Pharma | C139: TORNTPHARM | D139: 2879.75 | E139: 2896.53 | F139: 2839.12 | G139: 2798.48 | H139: 2741.07 | I139: 2937.17 | J139: 2994.58 | K139: 3035.22 | L139: 2953.95 | M139: 2855.9 | N139: 1025500 | O139: 7.33%
A140: 130 | B140: Power | C140: TORNTPOWER | D140: 326.65 | E140: 327.93 | F140: 323.67 | G140: 320.68 | H140: 316.42 | I140: 330.92 | J140: 335.18 | K140: 338.17 | L140: 332.2 | M140: 324.95 | N140: 2646000 | O140: 12.36%
A141: 131 | B141: Automobile | C141: TVSMOTOR | D141: 458.10 | E141: 460.95 | F141: 453.40 | G141: 448.70 | H141: 441.15 | I141: 465.65 | J141: 473.20 | K141: 477.90 | L141: 468.5 | M141: 456.25 | N141: 6053600 | O141: 3.87%
A142: 132 | B142: FMCG | C142: UBL | D142: 1021.65 | E142: 1033.78 | F142: 1002.87 | G142: 984.08 | H142: 953.17 | I142: 1052.57 | J142: 1083.48 | K142: 1102.27 | L142: 1064.7 | M142: 1015 | N142: 1598800 | O142: 6.88%
A143: 133 | B143: Cement | C143: ULTRACEMCO | D143: 4005.90 | E143: 3991.67 | F143: 3965.48 | G143: 3925.07 | H143: 3898.88 | I143: 4032.08 | J143: 4058.27 | K143: 4098.68 | L143: 4017.85 | M143: 3951.25 | N143: 1911600 | O143: -2.16%
A144: 134 | B144: Fertilisers | C144: UPL | D144: 537.60 | E144: 535.43 | F144: 530.87 | G144: 524.13 | H144: 519.57 | I144: 542.17 | J144: 546.73 | K144: 553.47 | L144: 540 | M144: 528.7 | N144: 8802300 | O144: -2.87%
A145: 135 | B145: Metals | C145: VEDL | D145: 131.35 | E145: 132.35 | F145: 129.25 | G145: 127.15 | H145: 124.05 | I145: 134.45 | J145: 137.55 | K145: 139.65 | L145: 135.45 | M145: 130.25 | N145: 116491800 | O145: -2.52%
A146: 136 | B146: Capital_Goods | C146: VOLTAS | D146: 680.75 | E146: 690.63 | F146: 668.12 | G146: 655.48 | H146: 632.97 | I146: 703.27 | J146: 725.78 | K146: 738.42 | L146: 713.15 | M146: 678 | N146: 2593000 | O146: 4.43%
A147: 137 | B147: Technology | C147: WIPRO | D147: 316.60 | E147: 316.00 | F147: 313.20 | G147: 309.80 | H147: 307.00 | I147: 319.40 | J147: 322.20 | K147: 325.60 | L147: 318.8 | M147: 312.6 | N147: 25728000 | O147: -3.00%
A148: 138 | B148: Media | C148: ZEEL | D148: 220.65 | E148: 222.60 | F148: 217.90 | G148: 215.15 | H148: 210.45 | I148: 225.35 | J148: 230.05 | K148: 232.80 | L148: 227.3 | M148: 219.85 | N148: 30402000 | O148: -2.02%
A149: 139
A150: 140
A151: 141
A152: 142
A153: 143
A154: 144
A155: 145
A156: 146
A157: 147
A175: Pivot Point: This is trigger point for intra day buy/sell based on the price range of the previous day
A176: As per the tool,the trader should take BUY position just above Pivot and keep the stop loss of pivot point and the first target would be Resistance 1(R1)
A177: If R1 is crossed then R2 becomes the next target with stop loss of at R1
A178: Similarly if price goes below pivot point then the trader should sell and keep a stop loss of pivot point and the first target would be S1
A179: If S1 is crossed then S2 becomes the next target with stop loss of at S1
A181: Disclaimer:
A182: This document has been prepared by the Retail Research Desk of Asit C Mehta
A183: Investment Intermediates Ltd. and is meant for use of the recipient only
A184: and is not for circulation. This document is not to be reported or
A185: copied or made available to others. It should not be considered to be
A186: taken as an offer to sell or a solicitation to buy any security. The
A187: information contained herein is from sources believed reliable. We do
A188: not represent that it is accurate or complete and it should not be
A189: relied upon as such. We may from time to time have positions in and buy
A190: and sell securities referred to herein

Sheet Cash Intra
M5: Back to Main Page
A6: FOR INTRA DAY TRADING | K6: =Main!B10 -> 2020-09-21
A8: Sr.no | B8: Scrip | C8: CLOSE RATE | D8: Pivot Point | E8: Supports | H8: Resistances
C9: Point | E9: S1 | F9: S2 | G9: S3 | H9: R1 | I9: R2 | J9: R3 | K9: HIGH | L9: LOW | M9: Total Trade Quanity in Lakhs
A10: 1 | B10: Nifty 50 | C10: 11504.95 | D10: 11511.72 | E10: 11439.33 | F10: 11373.72 | G10: 11301.33 | H10: 11577.33 | I10: 11649.72 | J10: 11715.33 | K10: 11584.1 | L10: 11446.1
A11: 2 | B11: Nifty Bank | C11: 22031.05 | D11: 22095.12 | E11: 21720.83 | F11: 21410.62 | G11: 21036.33 | H11: 22405.33 | I11: 22779.62 | J11: 23089.83 | K11: 22469.4 | L11: 21784.9
A12: 3 | B12: Nifty CPSE | C12: 1408.7 | D12: 1404.13 | E12: 1397.07 | F12: 1385.43 | G12: 1378.37 | H12: 1415.77 | I12: 1422.83 | J12: 1434.47 | K12: 1411.2 | L12: 1392.5
A13: 4 | B13: Nifty Infra | C13: 3218.5 | D13: 3212.73 | E13: 3202.02 | F13: 3185.53 | G13: 3174.82 | H13: 3229.22 | I13: 3239.93 | J13: 3256.42 | K13: 3223.45 | L13: 3196.25
A14: 5 | B14: Nifty IT | C14: 19827.05 | D14: 19890.83 | E14: 19713.97 | F14: 19600.88 | G14: 19424.02 | H14: 20003.92 | I14: 20180.78 | J14: 20293.87 | K14: 20067.7 | L14: 19777.75
A15: 6 | B15: Nifty PSE | C15: 2445.05 | D15: 2443.45 | E15: 2433.55 | F15: 2422.05 | G15: 2412.15 | H15: 2454.95 | I15: 2464.85 | J15: 2476.35 | K15: 2453.35 | L15: 2431.95
A16: 7 | B16: Nifty Midcap 50 | C16: 4767.75 | D16: 4782.17 | E16: 4738.28 | F16: 4708.82 | G16: 4664.93 | H16: 4811.63 | I16: 4855.52 | J16: 4884.98 | K16: 4826.05 | L16: 4752.7
A17: 8 | B17: AARTIIND | C17: 1070.1 | D17: 1083.02 | E17: 1039.08 | F17: 1008.07 | G17: 964.13 | H17: 1114.03 | I17: 1157.97 | J17: 1188.98 | K17: 1126.95 | L17: 1052 | M17: 4.40488
A18: 9 | B18: ABBOTINDIA | C18: 16506.15 | D18: 16546.12 | E18: 16401.33 | F18: 16296.52 | G18: 16151.73 | H18: 16650.93 | I18: 16795.72 | J18: 16900.53 | K18: 16690.9 | L18: 16441.3 | M18: 0.09254
A19: 10 | B19: ABCAPITAL | C19: 69.85 | D19: 70.27 | E19: 68.83 | F19: 67.82 | G19: 66.38 | H19: 71.28 | I19: 72.72 | J19: 73.73 | K19: 71.7 | L19: 69.25 | M19: 26.26204
A20: 11 | B20: ABFRL | C20: 133.15 | D20: 134.12 | E20: 131.53 | F20: 129.92 | G20: 127.33 | H20: 135.73 | I20: 138.32 | J20: 139.93 | K20: 136.7 | L20: 132.5 | M20: 13.44005
A21: 12 | B21: ACC | C21: 1431.8 | D21: 1426.30 | E21: 1414.55 | F21: 1397.30 | G21: 1385.55 | H21: 1443.55 | I21: 1455.30 | J21: 1472.55 | K21: 1438.05 | L21: 1409.05 | M21: 12.70015
A22: 13 | B22: ADANIGAS | C22: 193.3 | D22: 196.67 | E22: 188.63 | F22: 183.97 | G22: 175.93 | H22: 201.33 | I22: 209.37 | J22: 214.03 | K22: 204.7 | L22: 192 | M22: 42.79285
A23: 14 | B23: ADANIPORTS | C23: 357.85 | D23: 354.92 | E23: 350.03 | F23: 342.22 | G23: 337.33 | H23: 362.73 | I23: 367.62 | J23: 375.43 | K23: 359.8 | L23: 347.1 | M23: 49.63128
A24: 15 | B24: ADANIPOWER | C24: 37.4 | D24: 37.38 | E24: 37.02 | F24: 36.63 | G24: 36.27 | H24: 37.77 | I24: 38.13 | J24: 38.52 | K24: 37.75 | L24: 37 | M24: 26.54769
A25: 16 | B25: ADANITRANS | C25: 257.95 | D25: 259.80 | E25: 254.15 | F25: 250.35 | G25: 244.70 | H25: 263.60 | I25: 269.25 | J25: 273.05 | K25: 265.45 | L25: 256 | M25: 2.38374
A26: 17 | B26: AJANTPHARM | C26: 1613.1 | D26: 1602.03 | E26: 1570.07 | F26: 1527.03 | G26: 1495.07 | H26: 1645.07 | I26: 1677.03 | J26: 1720.07 | K26: 1634 | L26: 1559 | M26: 6.99933
A27: 18 | B27: ALKEM | C27: 2874.85 | D27: 2877.03 | E27: 2824.07 | F27: 2773.28 | G27: 2720.32 | H27: 2927.82 | I27: 2980.78 | J27: 3031.57 | K27: 2930 | L27: 2826.25 | M27: 2.53381
A28: 19 | B28: AMARAJABAT | C28: 762.6 | D28: 768.55 | E28: 750.65 | F28: 738.70 | G28: 720.80 | H28: 780.50 | I28: 798.40 | J28: 810.35 | K28: 786.45 | L28: 756.6 | M28: 9.88158
A29: 20 | B29: AMBUJACEM | C29: 220 | D29: 220.02 | E29: 217.03 | F29: 214.07 | G29: 211.08 | H29: 222.98 | I29: 225.97 | J29: 228.93 | K29: 223 | L29: 217.05 | M29: 35.67707
A30: 21 | B30: APOLLOHOSP | C30: 1828.45 | D30: 1824.82 | E30: 1777.68 | F30: 1726.92 | G30: 1679.78 | H30: 1875.58 | I30: 1922.72 | J30: 1973.48 | K30: 1871.95 | L30: 1774.05 | M30: 32.35148
A31: 22 | B31: APOLLOTYRE | C31: 130.7 | D31: 132.00 | E31: 128.45 | F31: 126.20 | G31: 122.65 | H31: 134.25 | I31: 137.80 | J31: 140.05 | K31: 135.55 | L31: 129.75 | M31: 60.45625
A32: 23 | B32: ASHOKLEY | C32: 79.7 | D32: 80.58 | E32: 77.77 | F32: 75.83 | G32: 73.02 | H32: 82.52 | I32: 85.33 | J32: 87.27 | K32: 83.4 | L32: 78.65 | M32: 786.61749
A33: 24 | B33: ASIANPAINT | C33: 2028.4 | D33: 2029.25 | E33: 2014.15 | F33: 1999.90 | G33: 1984.80 | H33: 2043.50 | I33: 2058.60 | J33: 2072.85 | K33: 2044.35 | L33: 2015 | M33: 30.21436
A34: 25 | B34: AUBANK | C34: 726.55 | D34: 723.53 | E34: 710.17 | F34: 693.78 | G34: 680.42 | H34: 739.92 | I34: 753.28 | J34: 769.67 | K34: 736.9 | L34: 707.15 | M34: 7.39071
A35: 26 | B35: AUROPHARMA | C35: 828.1 | D35: 827.92 | E35: 815.83 | F35: 803.57 | G35: 791.48 | H35: 840.18 | I35: 852.27 | J35: 864.53 | K35: 840 | L35: 815.65 | M35: 62.49036
A36: 27 | B36: AXISBANK | C36: 443.35 | D36: 442.90 | E36: 436.50 | F36: 429.65 | G36: 423.25 | H36: 449.75 | I36: 456.15 | J36: 463.00 | K36: 449.3 | L36: 436.05 | M36: 208.097
A37: 28 | B37: BAJAJ-AUTO | C37: 3050.95 | D37: 3038.98 | E37: 3007.97 | F37: 2964.98 | G37: 2933.97 | H37: 3081.97 | I37: 3112.98 | J37: 3155.97 | K37: 3070 | L37: 2996 | M37: 9.37014
A38: 29 | B38: BAJAJFINSV | C38: 5888.45 | D38: 5936.97 | E38: 5813.93 | F38: 5739.42 | G38: 5616.38 | H38: 6011.48 | I38: 6134.52 | J38: 6209.03 | K38: 6060 | L38: 5862.45 | M38: 8.56383
A39: 30 | B39: BAJAJHLDNG | C39: 2587.5 | D39: 2562.67 | E39: 2505.28 | F39: 2423.07 | G39: 2365.68 | H39: 2644.88 | I39: 2702.27 | J39: 2784.48 | K39: 2620.05 | L39: 2480.45 | M39: 0.7873
A40: 31 | B40: BAJFINANCE | C40: 3474.8 | D40: 3469.20 | E40: 3434.60 | F40: 3394.40 | G40: 3359.80 | H40: 3509.40 | I40: 3544.00 | J40: 3584.20 | K40: 3503.8 | L40: 3429 | M40: 37.69116
A41: 32 | B41: BALKRISIND | C41: 1394.45 | D41: 1391.17 | E41: 1374.38 | F41: 1354.32 | G41: 1337.53 | H41: 1411.23 | I41: 1428.02 | J41: 1448.08 | K41: 1407.95 | L41: 1371.1 | M41: 17.72733
A42: 33 | B42: BANDHANBNK | C42: 298.75 | D42: 300.20 | E42: 292.70 | F42: 286.65 | G42: 279.15 | H42: 306.25 | I42: 313.75 | J42: 319.80 | K42: 307.7 | L42: 294.15 | M42: 141.79997
A43: 34 | B43: BANKBARODA | C43: 45.05 | D43: 45.28 | E43: 44.67 | F43: 44.28 | G43: 43.67 | H43: 45.67 | I43: 46.28 | J43: 46.67 | K43: 45.9 | L43: 44.9 | M43: 142.31696
A44: 35 | B44: BANKINDIA | C44: 44.3 | D44: 44.73 | E44: 43.67 | F44: 43.03 | G44: 41.97 | H44: 45.37 | I44: 46.43 | J44: 47.07 | K44: 45.8 | L44: 44.1 | M44: 27.59526
A45: 36 | B45: BATAINDIA | C45: 1334.7 | D45: 1338.60 | E45: 1322.20 | F45: 1309.70 | G45: 1293.30 | H45: 1351.10 | I45: 1367.50 | J45: 1380.00 | K45: 1355 | L45: 1326.1 | M45: 10.42244
A46: 37 | B46: BBTC | C46: 1392.35 | D46: 1406.28 | E46: 1366.57 | F46: 1340.78 | G46: 1301.07 | H46: 1432.07 | I46: 1471.78 | J46: 1497.57 | K46: 1446 | L46: 1380.5 | M46: 1.32498
A47: 38 | B47: BEL | C47: 103.9 | D47: 103.57 | E47: 102.53 | F47: 101.17 | G47: 100.13 | H47: 104.93 | I47: 105.97 | J47: 107.33 | K47: 104.6 | L47: 102.2 | M47: 93.28207
A48: 39 | B48: BERGEPAINT | C48: 578.5 | D48: 576.53 | E48: 570.12 | F48: 561.73 | G48: 555.32 | H48: 584.92 | I48: 591.33 | J48: 599.72 | K48: 582.95 | L48: 568.15 | M48: 17.92343
A49: 40 | B49: BHARATFORG | C49: 479.35 | D49: 481.12 | E49: 474.83 | F49: 470.32 | G49: 464.03 | H49: 485.63 | I49: 491.92 | J49: 496.43 | K49: 487.4 | L49: 476.6 | M49: 25.31657
A50: 41 | B50: BHARTIARTL | C50: 494.55 | D50: 489.17 | E50: 480.68 | F50: 466.82 | G50: 458.33 | H50: 503.03 | I50: 511.52 | J50: 525.38 | K50: 497.65 | L50: 475.3 | M50: 548.01702
A51: 42 | B51: BHEL | C51: 34.65 | D51: 34.97 | E51: 34.18 | F51: 33.72 | G51: 32.93 | H51: 35.43 | I51: 36.22 | J51: 36.68 | K51: 35.75 | L51: 34.5 | M51: 290.39359
A52: 43 | B52: BIOCON | C52: 454 | D52: 453.55 | E52: 443.20 | F52: 432.40 | G52: 422.05 | H52: 464.35 | I52: 474.70 | J52: 485.50 | K52: 463.9 | L52: 442.75 | M52: 114.10425
A53: 44 | B53: BOSCHLTD | C53: 13070.6 | D53: 13035.12 | E53: 12844.23 | F53: 12617.87 | G53: 12426.98 | H53: 13261.48 | I53: 13452.37 | J53: 13678.73 | K53: 13226 | L53: 12808.75 | M53: 0.89575
A54: 45 | B54: BPCL | C54: 412.05 | D54: 414.85 | E54: 406.80 | F54: 401.55 | G54: 393.50 | H54: 420.10 | I54: 428.15 | J54: 433.40 | K54: 422.9 | L54: 409.6 | M54: 95.55519
A55: 46 | B55: BRITANNIA | C55: 3797.5 | D55: 3804.03 | E55: 3768.32 | F55: 3739.13 | G55: 3703.42 | H55: 3833.22 | I55: 3868.93 | J55: 3898.12 | K55: 3839.75 | L55: 3774.85 | M55: 9.47698
A56: 47 | B56: CADILAHC | C56: 409.7 | D56: 409.25 | E56: 395.50 | F56: 381.30 | G56: 367.55 | H56: 423.45 | I56: 437.20 | J56: 451.40 | K56: 423 | L56: 395.05 | M56: 196.40911
A57: 48 | B57: CANBK | C57: 98.7 | D57: 99.15 | E57: 97.80 | F57: 96.90 | G57: 95.55 | H57: 100.05 | I57: 101.40 | J57: 102.30 | K57: 100.5 | L57: 98.25 | M57: 36.81449
A58: 49 | B58: CASTROLIND | C58: 119.15 | D58: 118.70 | E58: 117.05 | F58: 114.95 | G58: 113.30 | H58: 120.80 | I58: 122.45 | J58: 124.55 | K58: 120.35 | L58: 116.6 | M58: 16.24302
A59: 50 | B59: CESC | C59: 675.65 | D59: 671.53 | E59: 659.12 | F59: 642.58 | G59: 630.17 | H59: 688.07 | I59: 700.48 | J59: 717.02 | K59: 683.95 | L59: 655 | M59: 3.81721
A60: 51 | B60: CHOLAFIN | C60: 240.65 | D60: 240.62 | E60: 237.28 | F60: 233.92 | G60: 230.58 | H60: 243.98 | I60: 247.32 | J60: 250.68 | K60: 243.95 | L60: 237.25 | M60: 53.2943
A61: 52 | B61: CIPLA | C61: 806.25 | D61: 800.57 | E61: 781.83 | F61: 757.42 | G61: 738.68 | H61: 824.98 | I61: 843.72 | J61: 868.13 | K61: 819.3 | L61: 776.15 | M61: 355.27345
A62: 53 | B62: COALINDIA | C62: 123.65 | D62: 123.93 | E62: 122.62 | F62: 121.58 | G62: 120.27 | H62: 124.97 | I62: 126.28 | J62: 127.32 | K62: 125.25 | L62: 122.9 | M62: 146.14109
A63: 54 | B63: COFORGE | C63: 2193.7 | D63: 2208.90 | E63: 2168.80 | F63: 2143.90 | G63: 2103.80 | H63: 2233.80 | I63: 2273.90 | J63: 2298.80 | K63: 2249 | L63: 2184 | M63: 2.93783
A64: 55 | B64: COLPAL | C64: 1372.65 | D64: 1380.88 | E64: 1354.77 | F64: 1336.88 | G64: 1310.77 | H64: 1398.77 | I64: 1424.88 | J64: 1442.77 | K64: 1407 | L64: 1363 | M64: 9.3511
A65: 56 | B65: CONCOR | C65: 389.3 | D65: 391.07 | E65: 385.83 | F65: 382.37 | G65: 377.13 | H65: 394.53 | I65: 399.77 | J65: 403.23 | K65: 396.3 | L65: 387.6 | M65: 21.25693
A66: 57 | B66: COROMANDEL | C66: 810.1 | D66: 809.72 | E66: 798.38 | F66: 786.67 | G66: 775.33 | H66: 821.43 | I66: 832.77 | J66: 844.48 | K66: 821.05 | L66: 798 | M66: 21.39338
A67: 58 | B67: CROMPTON | C67: 279.7 | D67: 280.28 | E67: 275.12 | F67: 270.53 | G67: 265.37 | H67: 284.87 | I67: 290.03 | J67: 294.62 | K67: 285.45 | L67: 275.7 | M67: 8.62059
A68: 59 | B68: CUB | C68: 143.9 | D68: 143.77 | E68: 142.18 | F68: 140.47 | G68: 138.88 | H68: 145.48 | I68: 147.07 | J68: 148.78 | K68: 145.35 | L68: 142.05 | M68: 10.84928
A69: 60 | B69: CUMMINSIND | C69: 481.5 | D69: 483.70 | E69: 474.85 | F69: 468.20 | G69: 459.35 | H69: 490.35 | I69: 499.20 | J69: 505.85 | K69: 492.55 | L69: 477.05 | M69: 13.52075
A70: 61 | B70: DABUR | C70: 508.45 | D70: 505.70 | E70: 501.50 | F70: 494.55 | G70: 490.35 | H70: 512.65 | I70: 516.85 | J70: 523.80 | K70: 509.9 | L70: 498.75 | M70: 30.67745
A71: 62 | B71: DALBHARAT | C71: 768.95 | D71: 779.42 | E71: 751.03 | F71: 733.12 | G71: 704.73 | H71: 797.33 | I71: 825.72 | J71: 843.63 | K71: 807.8 | L71: 761.5 | M71: 3.40095
A72: 63 | B72: DIVISLAB | C72: 3344.4 | D72: 3320.47 | E72: 3251.93 | F72: 3159.47 | G72: 3090.93 | H72: 3412.93 | I72: 3481.47 | J72: 3573.93 | K72: 3389 | L72: 3228 | M72: 33.62845
A73: 64 | B73: DLF | C73: 161.25 | D73: 161.67 | E73: 156.98 | F73: 152.72 | G73: 148.03 | H73: 165.93 | I73: 170.62 | J73: 174.88 | K73: 166.35 | L73: 157.4 | M73: 196.10622
A74: 65 | B74: DMART | C74: 2149.05 | D74: 2143.00 | E74: 2110.05 | F74: 2071.05 | G74: 2038.10 | H74: 2182.00 | I74: 2214.95 | J74: 2253.95 | K74: 2175.95 | L74: 2104 | M74: 12.04363
A75: 66 | B75: DRREDDY | C75: 5333.35 | D75: 5260.18 | E75: 5023.42 | F75: 4713.48 | G75: 4476.72 | H75: 5570.12 | I75: 5806.88 | J75: 6116.82 | K75: 5496.95 | L75: 4950.25 | M75: 219.87146
A76: 67 | B76: EDELWEISS | C76: 67.55 | D76: 68.97 | E76: 66.08 | F76: 64.62 | G76: 61.73 | H76: 70.43 | I76: 73.32 | J76: 74.78 | K76: 71.85 | L76: 67.5 | M76: 15.85559
A77: 68 | B77: EICHERMOT | C77: 2152.95 | D77: 2163.98 | E77: 2124.17 | F77: 2095.38 | G77: 2055.57 | H77: 2192.77 | I77: 2232.58 | J77: 2261.37 | K77: 2203.8 | L77: 2135.2 | M77: 13.10103
A78: 69 | B78: EMAMILTD | C78: 370.15 | D78: 373.38 | E78: 359.77 | F78: 349.38 | G78: 335.77 | H78: 383.77 | I78: 397.38 | J78: 407.77 | K78: 387 | L78: 363 | M78: 7.8054
A79: 70 | B79: ENDURANCE | C79: 1144.3 | D79: 1141.82 | E79: 1127.63 | F79: 1110.97 | G79: 1096.78 | H79: 1158.48 | I79: 1172.67 | J79: 1189.33 | K79: 1156 | L79: 1125.15 | M79: 1.04959
A80: 71 | B80: ESCORTS | C80: 1238.6 | D80: 1248.38 | E80: 1216.07 | F80: 1193.53 | G80: 1161.22 | H80: 1270.92 | I80: 1303.23 | J80: 1325.77 | K80: 1280.7 | L80: 1225.85 | M80: 22.25289
A81: 72 | B81: EXIDEIND | C81: 167.25 | D81: 167.22 | E81: 164.93 | F81: 162.62 | G81: 160.33 | H81: 169.53 | I81: 171.82 | J81: 174.13 | K81: 169.5 | L81: 164.9 | M81: 41.0108
A82: 73 | B82: FEDERALBNK | C82: 51.9 | D82: 52.10 | E82: 50.80 | F82: 49.70 | G82: 48.40 | H82: 53.20 | I82: 54.50 | J82: 55.60 | K82: 53.4 | L82: 51 | M82: 333.21564
A83: 74 | B83: FORTIS | C83: 132.95 | D83: 133.53 | E83: 131.22 | F83: 129.48 | G83: 127.17 | H83: 135.27 | I83: 137.58 | J83: 139.32 | K83: 135.85 | L83: 131.8 | M83: 7.38149
A84: 75 | B84: FRETAIL | C84: 100.3 | D84: 100.38 | E84: 98.92 | F84: 97.53 | G84: 96.07 | H84: 101.77 | I84: 103.23 | J84: 104.62 | K84: 101.85 | L84: 99 | M84: 31.95539
A85: 76 | B85: GAIL | C85: 92.1 | D85: 92.12 | E85: 90.78 | F85: 89.47 | G85: 88.13 | H85: 93.43 | I85: 94.77 | J85: 96.08 | K85: 93.45 | L85: 90.8 | M85: 218.97338
A86: 77 | B86: GICRE | C86: 129 | D86: 130.37 | E86: 126.83 | F86: 124.67 | G86: 121.13 | H86: 132.53 | I86: 136.07 | J86: 138.23 | K86: 133.9 | L86: 128.2 | M86: 3.5916
A87: 78 | B87: GLENMARK | C87: 508.9 | D87: 507.47 | E87: 496.48 | F87: 484.07 | G87: 473.08 | H87: 519.88 | I87: 530.87 | J87: 543.28 | K87: 518.45 | L87: 495.05 | M87: 93.98103
A88: 79 | B88: GMRINFRA | C88: 23.95 | D88: 24.05 | E88: 23.60 | F88: 23.25 | G88: 22.80 | H88: 24.40 | I88: 24.85 | J88: 25.20 | K88: 24.5 | L88: 23.7 | M88: 205.02615
A89: 80 | B89: GODREJAGRO | C89: 529.15 | D89: 528.05 | E89: 521.70 | F89: 514.25 | G89: 507.90 | H89: 535.50 | I89: 541.85 | J89: 549.30 | K89: 534.4 | L89: 520.6 | M89: 1.03348
A90: 81 | B90: GODREJCP | C90: 713.75 | D90: 712.60 | E90: 698.50 | F90: 683.25 | G90: 669.15 | H90: 727.85 | I90: 741.95 | J90: 757.20 | K90: 726.7 | L90: 697.35 | M90: 20.29857
A91: 82 | B91: GODREJIND | C91: 409.3 | D91: 410.92 | E91: 405.38 | F91: 401.47 | G91: 395.93 | H91: 414.83 | I91: 420.37 | J91: 424.28 | K91: 416.45 | L91: 407 | M91: 1.20622
A92: 83 | B92: GODREJPROP | C92: 915.5 | D92: 912.50 | E92: 897.00 | F92: 878.50 | G92: 863.00 | H92: 931.00 | I92: 946.50 | J92: 965.00 | K92: 928 | L92: 894 | M92: 8.34198
A93: 84 | B93: GRASIM | C93: 745 | D93: 739.43 | E93: 730.22 | F93: 715.43 | G93: 706.22 | H93: 754.22 | I93: 763.43 | J93: 778.22 | K93: 748.65 | L93: 724.65 | M93: 32.16185
A94: 85 | B94: GSPL | C94: 210.1 | D94: 209.80 | E94: 205.30 | F94: 200.50 | G94: 196.00 | H94: 214.60 | I94: 219.10 | J94: 223.90 | K94: 214.3 | L94: 205 | M94: 17.44427
A95: 86 | B95: GUJGASLTD | C95: 317 | D95: 316.00 | E95: 304.50 | F95: 292.00 | G95: 280.50 | H95: 328.50 | I95: 340.00 | J95: 352.50 | K95: 327.5 | L95: 303.5 | M95: 28.4149
A96: 87 | B96: HAVELLS | C96: 675.25 | D96: 677.67 | E96: 667.78 | F96: 660.32 | G96: 650.43 | H96: 685.13 | I96: 695.02 | J96: 702.48 | K96: 687.55 | L96: 670.2 | M96: 12.7143
A97: 88 | B97: HCLTECH | C97: 810.6 | D97: 812.87 | E97: 801.73 | F97: 792.87 | G97: 781.73 | H97: 821.73 | I97: 832.87 | J97: 841.73 | K97: 824 | L97: 804 | M97: 88.47758
A98: 89 | B98: HDFC | C98: 1724 | D98: 1729.02 | E98: 1703.28 | F98: 1682.57 | G98: 1656.83 | H98: 1749.73 | I98: 1775.47 | J98: 1796.18 | K98: 1754.75 | L98: 1708.3 | M98: 56.42506
A99: 90 | B99: HDFCAMC | C99: 2215.45 | D99: 2223.80 | E99: 2172.65 | F99: 2129.85 | G99: 2078.70 | H99: 2266.60 | I99: 2317.75 | J99: 2360.55 | K99: 2274.95 | L99: 2181 | M99: 8.91189
A100: 91 | B100: HDFCBANK | C100: 1057.3 | D100: 1065.57 | E100: 1038.93 | F100: 1020.57 | G100: 993.93 | H100: 1083.93 | I100: 1110.57 | J100: 1128.93 | K100: 1092.2 | L100: 1047.2 | M100: 117.40889
A101: 92 | B101: HDFCLIFE | C101: 585.1 | D101: 587.80 | E101: 580.80 | F101: 576.50 | G101: 569.50 | H101: 592.10 | I101: 599.10 | J101: 603.40 | K101: 594.8 | L101: 583.5 | M101: 25.87595
A102: 93 | B102: HEROMOTOCO | C102: 3112.65 | D102: 3103.20 | E102: 3084.55 | F102: 3056.45 | G102: 3037.80 | H102: 3131.30 | I102: 3149.95 | J102: 3178.05 | K102: 3121.85 | L102: 3075.1 | M102: 13.62768
A103: 94 | B103: HEXAWARE | C103: 458.85 | D103: 459.17 | E103: 456.68 | F103: 454.52 | G103: 452.03 | H103: 461.33 | I103: 463.82 | J103: 465.98 | K103: 461.65 | L103: 457 | M103: 7.21879
A104: 95 | B104: HINDALCO | C104: 179.5 | D104: 179.42 | E104: 176.63 | F104: 173.77 | G104: 170.98 | H104: 182.28 | I104: 185.07 | J104: 187.93 | K104: 182.2 | L104: 176.55 | M104: 285.29345
A105: 96 | B105: HINDPETRO | C105: 194.05 | D105: 195.48 | E105: 191.97 | F105: 189.88 | G105: 186.37 | H105: 197.57 | I105: 201.08 | J105: 203.17 | K105: 199 | L105: 193.4 | M105: 63.35362
A106: 97 | B106: HINDUNILVR | C106: 2098.7 | D106: 2105.42 | E106: 2083.28 | F106: 2067.87 | G106: 2045.73 | H106: 2120.83 | I106: 2142.97 | J106: 2158.38 | K106: 2127.55 | L106: 2090 | M106: 44.75209
A107: 98 | B107: HINDZINC | C107: 213.45 | D107: 215.37 | E107: 209.88 | F107: 206.32 | G107: 200.83 | H107: 218.93 | I107: 224.42 | J107: 227.98 | K107: 220.85 | L107: 211.8 | M107: 6.1859
A108: 99 | B108: HUDCO | C108: 32.8 | D108: 33.30 | E108: 32.00 | F108: 31.20 | G108: 29.90 | H108: 34.10 | I108: 35.40 | J108: 36.20 | K108: 34.6 | L108: 32.5 | M108: 19.75
A109: 100 | B109: IBULHSGFIN | C109: 178.6 | D109: 181.03 | E109: 175.57 | F109: 172.53 | G109: 167.07 | H109: 184.07 | I109: 189.53 | J109: 192.57 | K109: 186.5 | L109: 178 | M109: 152.86759
A110: 101 | B110: IBVENTURES | C110: 226.45 | D110: 227.42 | E110: 224.13 | F110: 221.82 | G110: 218.53 | H110: 229.73 | I110: 233.02 | J110: 235.33 | K110: 230.7 | L110: 225.1 | M110: 27.99068
A111: 102 | B111: ICICIBANK | C111: 369.55 | D111: 369.58 | E111: 364.52 | F111: 359.48 | G111: 354.42 | H111: 374.62 | I111: 379.68 | J111: 384.72 | K111: 374.65 | L111: 364.55 | M111: 781.6694
A112: 103 | B112: ICICIGI | C112: 1295.95 | D112: 1292.95 | E112: 1260.45 | F112: 1224.95 | G112: 1192.45 | H112: 1328.45 | I112: 1360.95 | J112: 1396.45 | K112: 1325.45 | L112: 1257.45 | M112: 15.20695
A113: 104 | B113: ICICIPRULI | C113: 421.75 | D113: 423.33 | E113: 416.07 | F113: 410.38 | G113: 403.12 | H113: 429.02 | I113: 436.28 | J113: 441.97 | K113: 430.6 | L113: 417.65 | M113: 13.04148
A114: 105 | B114: IDBI | C114: 37.1 | D114: 37.27 | E114: 36.83 | F114: 36.57 | G114: 36.13 | H114: 37.53 | I114: 37.97 | J114: 38.23 | K114: 37.7 | L114: 37 | M114: 6.71279
A115: 106 | B115: IDEA | C115: 11.25 | D115: 11.33 | E115: 10.97 | F115: 10.68 | G115: 10.32 | H115: 11.62 | I115: 11.98 | J115: 12.27 | K115: 11.7 | L115: 11.05 | M115: 3460.87605
A116: 107 | B116: IDFCFIRSTB | C116: 31.1 | D116: 31.47 | E116: 30.63 | F116: 30.17 | G116: 29.33 | H116: 31.93 | I116: 32.77 | J116: 33.23 | K116: 32.3 | L116: 31 | M116: 383.9565
A117: 108 | B117: IGL | C117: 420 | D117: 419.43 | E117: 412.87 | F117: 405.73 | G117: 399.17 | H117: 426.57 | I117: 433.13 | J117: 440.27 | K117: 426 | L117: 412.3 | M117: 140.26634
A118: 109 | B118: INDHOTEL | C118: 100.15 | D118: 100.50 | E118: 98.65 | F118: 97.15 | G118: 95.30 | H118: 102.00 | I118: 103.85 | J118: 105.35 | K118: 102.35 | L118: 99 | M118: 19.55516
A119: 110 | B119: INDIGO | C119: 1315.2 | D119: 1317.72 | E119: 1300.53 | F119: 1285.87 | G119: 1268.68 | H119: 1332.38 | I119: 1349.57 | J119: 1364.23 | K119: 1334.9 | L119: 1303.05 | M119: 17.34743
A120: 111 | B120: INDUSINDBK | C120: 613.2 | D120: 612.62 | E120: 600.58 | F120: 587.97 | G120: 575.93 | H120: 625.23 | I120: 637.27 | J120: 649.88 | K120: 624.65 | L120: 600 | M120: 103.35152
A121: 112 | B121: INFRATEL | C121: 199.35 | D121: 198.47 | E121: 196.18 | F121: 193.02 | G121: 190.73 | H121: 201.63 | I121: 203.92 | J121: 207.08 | K121: 200.75 | L121: 195.3 | M121: 77.56023
A122: 113 | B122: INFY | C122: 1002.15 | D122: 1006.68 | E122: 994.57 | F122: 986.98 | G122: 974.87 | H122: 1014.27 | I122: 1026.38 | J122: 1033.97 | K122: 1018.8 | L122: 999.1 | M122: 128.97897
A123: 114 | B123: IOC | C123: 80.7 | D123: 81.27 | E123: 79.68 | F123: 78.67 | G123: 77.08 | H123: 82.28 | I123: 83.87 | J123: 84.88 | K123: 82.85 | L123: 80.25 | M123: 210.35497
A124: 115 | B124: IPCALAB | C124: 2167.15 | D124: 2149.60 | E124: 2100.20 | F124: 2033.25 | G124: 1983.85 | H124: 2216.55 | I124: 2265.95 | J124: 2332.90 | K124: 2199 | L124: 2082.65 | M124: 8.89743
A125: 116 | B125: IRCTC | C125: 1405.35 | D125: 1398.68 | E125: 1377.37 | F125: 1349.38 | G125: 1328.07 | H125: 1426.67 | I125: 1447.98 | J125: 1475.97 | K125: 1420 | L125: 1370.7 | M125: 7.53209
A126: 117 | B126: ITC | C126: 179.1 | D126: 178.65 | E126: 177.45 | F126: 175.80 | G126: 174.60 | H126: 180.30 | I126: 181.50 | J126: 183.15 | K126: 179.85 | L126: 177 | M126: 297.83208
A127: 118 | B127: JINDALSTEL | C127: 198.3 | D127: 199.63 | E127: 195.77 | F127: 193.23 | G127: 189.37 | H127: 202.17 | I127: 206.03 | J127: 208.57 | K127: 203.5 | L127: 197.1 | M127: 60.09913
A128: 119 | B128: JSWENERGY | C128: 60.9 | D128: 60.45 | E128: 59.40 | F128: 57.90 | G128: 56.85 | H128: 61.95 | I128: 63.00 | J128: 64.50 | K128: 61.5 | L128: 58.95 | M128: 28.84272
A129: 120 | B129: JSWSTEEL | C129: 287.7 | D129: 288.57 | E129: 283.58 | F129: 279.47 | G129: 274.48 | H129: 292.68 | I129: 297.67 | J129: 301.78 | K129: 293.55 | L129: 284.45 | M129: 99.11089
A130: 121 | B130: JUBILANT | C130: 799.25 | D130: 798.63 | E130: 773.27 | F130: 747.28 | G130: 721.92 | H130: 824.62 | I130: 849.98 | J130: 875.97 | K130: 824 | L130: 772.65 | M130: 10.96055
A131: 122 | B131: JUBLFOOD | C131: 2360.8 | D131: 2377.28 | E131: 2330.97 | F131: 2301.13 | G131: 2254.82 | H131: 2407.12 | I131: 2453.43 | J131: 2483.27 | K131: 2423.6 | L131: 2347.45 | M131: 8.08402
A132: 123 | B132: KOTAKBANK | C132: 1277.1 | D132: 1284.53 | E132: 1255.07 | F132: 1233.03 | G132: 1203.57 | H132: 1306.57 | I132: 1336.03 | J132: 1358.07 | K132: 1314 | L132: 1262.5 | M132: 65.29412
A133: 124 | B133: L&TFH | C133: 63.6 | D133: 64.28 | E133: 62.62 | F133: 61.63 | G133: 59.97 | H133: 65.27 | I133: 66.93 | J133: 67.92 | K133: 65.95 | L133: 63.3 | M133: 100.68666
A134: 125 | B134: LALPATHLAB | C134: 1986.15 | D134: 1979.28 | E134: 1948.57 | F134: 1910.98 | G134: 1880.27 | H134: 2016.87 | I134: 2047.58 | J134: 2085.17 | K134: 2010 | L134: 1941.7 | M134: 2.98684
A135: 126 | B135: LICHSGFIN | C135: 303.3 | D135: 303.82 | E135: 296.98 | F135: 290.67 | G135: 283.83 | H135: 310.13 | I135: 316.97 | J135: 323.28 | K135: 310.65 | L135: 297.5 | M135: 40.19733
A136: 127 | B136: LT | C136: 900.7 | D136: 903.93 | E136: 893.77 | F136: 886.83 | G136: 876.67 | H136: 910.87 | I136: 921.03 | J136: 927.97 | K136: 914.1 | L136: 897 | M136: 74.96745
A137: 128 | B137: LTI | C137: 2706.9 | D137: 2725.42 | E137: 2656.48 | F137: 2606.07 | G137: 2537.13 | H137: 2775.83 | I137: 2844.77 | J137: 2895.18 | K137: 2794.35 | L137: 2675 | M137: 4.05293
A138: 129 | B138: LTTS | C138: 1673.05 | D138: 1666.02 | E138: 1645.03 | F138: 1617.02 | G138: 1596.03 | H138: 1694.03 | I138: 1715.02 | J138: 1743.03 | K138: 1687 | L138: 1638 | M138: 0.58677
A139: 130 | B139: LUPIN | C139: 1085.9 | D139: 1092.87 | E139: 1063.43 | F139: 1040.97 | G139: 1011.53 | H139: 1115.33 | I139: 1144.77 | J139: 1167.23 | K139: 1122.3 | L139: 1070.4 | M139: 152.74627
A140: 131 | B140: M&M | C140: 654.15 | D140: 649.37 | E140: 639.33 | F140: 624.52 | G140: 614.48 | H140: 664.18 | I140: 674.22 | J140: 689.03 | K140: 659.4 | L140: 634.55 | M140: 135.18215
A141: 132 | B141: M&MFIN | C141: 133.25 | D141: 134.75 | E141: 131.20 | F141: 129.15 | G141: 125.60 | H141: 136.80 | I141: 140.35 | J141: 142.40 | K141: 138.3 | L141: 132.7 | M141: 56.7788
A142: 133 | B142: MANAPPURAM | C142: 161.2 | D142: 161.28 | E142: 159.27 | F142: 157.33 | G142: 155.32 | H142: 163.22 | I142: 165.23 | J142: 167.17 | K142: 163.3 | L142: 159.35 | M142: 130.30029
A143: 134 | B143: MARICO | C143: 362.5 | D143: 360.98 | E143: 357.97 | F143: 353.43 | G143: 350.42 | H143: 365.52 | I143: 368.53 | J143: 373.07 | K143: 364 | L143: 356.45 | M143: 24.45839
A144: 135 | B144: MARUTI | C144: 6964.75 | D144: 7015.12 | E144: 6881.23 | F144: 6797.72 | G144: 6663.83 | H144: 7098.63 | I144: 7232.52 | J144: 7316.03 | K144: 7149 | L144: 6931.6 | M144: 11.4356
A145: 136 | B145: MCDOWELL-N | C145: 543.7 | D145: 546.57 | E145: 536.83 | F145: 529.97 | G145: 520.23 | H145: 553.43 | I145: 563.17 | J145: 570.03 | K145: 556.3 | L145: 539.7 | M145: 23.13565
A146: 137 | B146: MFSL | C146: 610.5 | D146: 614.88 | E146: 601.77 | F146: 593.03 | G146: 579.92 | H146: 623.62 | I146: 636.73 | J146: 645.47 | K146: 628 | L146: 606.15 | M146: 8.58384
A147: 138 | B147: MGL | C147: 919.15 | D147: 919.93 | E147: 911.12 | F147: 903.08 | G147: 894.27 | H147: 927.97 | I147: 936.78 | J147: 944.82 | K147: 928.75 | L147: 911.9 | M147: 10.7229
A148: 139 | B148: MINDTREE | C148: 1272.5 | D148: 1276.95 | E148: 1261.45 | F148: 1250.40 | G148: 1234.90 | H148: 1288.00 | I148: 1303.50 | J148: 1314.55 | K148: 1292.45 | L148: 1265.9 | M148: 11.48673
A149: 140 | B149: MOTHERSUMI | C149: 122.65 | D149: 123.37 | E149: 120.98 | F149: 119.32 | G149: 116.93 | H149: 125.03 | I149: 127.42 | J149: 129.08 | K149: 125.75 | L149: 121.7 | M149: 157.51108
A150: 141 | B150: MPHASIS | C150: 1397.45 | D150: 1379.83 | E150: 1345.67 | F150: 1293.88 | G150: 1259.72 | H150: 1431.62 | I150: 1465.78 | J150: 1517.57 | K150: 1414 | L150: 1328.05 | M150: 5.21433
A151: 142 | B151: MRF | C151: 58950.6 | D151: 59150.45 | E151: 58330.90 | F151: 57711.20 | G151: 56891.65 | H151: 59770.15 | I151: 60589.70 | J151: 61209.40 | K151: 59970 | L151: 58530.75 | M151: 0.1721
A152: 143 | B152: MRPL | C152: 28.85 | D152: 29.07 | E152: 28.48 | F152: 28.12 | G152: 27.53 | H152: 29.43 | I152: 30.02 | J152: 30.38 | K152: 29.65 | L152: 28.7 | M152: 9.49839
A153: 144 | B153: MUTHOOTFIN | C153: 1105 | D153: 1113.23 | E153: 1091.77 | F153: 1078.53 | G153: 1057.07 | H153: 1126.47 | I153: 1147.93 | J153: 1161.17 | K153: 1134.7 | L153: 1100 | M153: 15.55299
A154: 145 | B154: NAM-INDIA | C154: 279.65 | D154: 279.45 | E154: 275.90 | F154: 272.15 | G154: 268.60 | H154: 283.20 | I154: 286.75 | J154: 290.50 | K154: 283 | L154: 275.7 | M154: 7.26374
A155: 146 | B155: NATCOPHARM | C155: 890.8 | D155: 869.97 | E155: 812.03 | F155: 733.27 | G155: 675.33 | H155: 948.73 | I155: 1006.67 | J155: 1085.43 | K155: 927.9 | L155: 791.2 | M155: 73.95084
A156: 147 | B156: NATIONALUM | C156: 34.9 | D156: 34.80 | E156: 34.15 | F156: 33.40 | G156: 32.75 | H156: 35.55 | I156: 36.20 | J156: 36.95 | K156: 35.45 | L156: 34.05 | M156: 191.4202
A157: 148 | B157: NAUKRI | C157: 3487.3 | D157: 3501.65 | E157: 3424.50 | F157: 3361.70 | G157: 3284.55 | H157: 3564.45 | I157: 3641.60 | J157: 3704.40 | K157: 3578.8 | L157: 3438.85 | M157: 6.43181
A158: 149 | B158: NESTLEIND | C158: 16087.05 | D158: 16087.35 | E158: 15924.70 | F158: 15762.35 | G158: 15599.70 | H158: 16249.70 | I158: 16412.35 | J158: 16574.70 | K158: 16250 | L158: 15925 | M158: 1.97351
A159: 150 | B159: NHPC | C159: 21.2 | D159: 21.12 | E159: 20.63 | F159: 20.07 | G159: 19.58 | H159: 21.68 | I159: 22.17 | J159: 22.73 | K159: 21.6 | L159: 20.55 | M159: 63.90655
A160: 151 | B160: NMDC | C160: 86.9 | D160: 87.43 | E160: 85.87 | F160: 84.83 | G160: 83.27 | H160: 88.47 | I160: 90.03 | J160: 91.07 | K160: 89 | L160: 86.4 | M160: 75.59133
A161: 152 | B161: NTPC | C161: 90.55 | D161: 90.12 | E161: 89.13 | F161: 87.72 | G161: 86.73 | H161: 91.53 | I161: 92.52 | J161: 93.93 | K161: 91.1 | L161: 88.7 | M161: 447.57936
A162: 153 | B162: OBEROIRLTY | C162: 429.35 | D162: 427.48 | E162: 411.97 | F162: 394.58 | G162: 379.07 | H162: 444.87 | I162: 460.38 | J162: 477.77 | K162: 443 | L162: 410.1 | M162: 9.10627
A163: 154 | B163: OFSS | C163: 2990.7 | D163: 3001.20 | E163: 2959.50 | F163: 2928.30 | G163: 2886.60 | H163: 3032.40 | I163: 3074.10 | J163: 3105.30 | K163: 3042.9 | L163: 2970 | M163: 2.32709
A164: 155 | B164: OIL | C164: 96.65 | D164: 96.72 | E164: 95.48 | F164: 94.32 | G164: 93.08 | H164: 97.88 | I164: 99.12 | J164: 100.28 | K164: 97.95 | L164: 95.55 | M164: 24.2193
A165: 156 | B165: ONGC | C165: 74.3 | D165: 74.02 | E165: 73.23 | F165: 72.17 | G165: 71.38 | H165: 75.08 | I165: 75.87 | J165: 76.93 | K165: 74.8 | L165: 72.95 | M165: 256.9229
A166: 157 | B166: PAGEIND | C166: 18664.25 | D166: 18800.40 | E166: 18403.85 | F166: 18143.45 | G166: 17746.90 | H166: 19060.80 | I166: 19457.35 | J166: 19717.75 | K166: 19196.95 | L166: 18540 | M166: 0.30004
A167: 158 | B167: PEL | C167: 1351.9 | D167: 1364.50 | E167: 1326.00 | F167: 1300.10 | G167: 1261.60 | H167: 1390.40 | I167: 1428.90 | J167: 1454.80 | K167: 1403 | L167: 1338.6 | M167: 23.74687
A168: 159 | B168: PETRONET | C168: 228.2 | D168: 230.32 | E168: 224.38 | F168: 220.57 | G168: 214.63 | H168: 234.13 | I168: 240.07 | J168: 243.88 | K168: 236.25 | L168: 226.5 | M168: 36.57906
A169: 160 | B169: PFC | C169: 93.4 | D169: 93.68 | E169: 91.92 | F169: 90.43 | G169: 88.67 | H169: 95.17 | I169: 96.93 | J169: 98.42 | K169: 95.45 | L169: 92.2 | M169: 83.54861
A170: 161 | B170: PFIZER | C170: 4988.1 | D170: 4991.72 | E170: 4936.38 | F170: 4884.67 | G170: 4829.33 | H170: 5043.43 | I170: 5098.77 | J170: 5150.48 | K170: 5047.05 | L170: 4940 | M170: 1.08876
A171: 162 | B171: PGHH | C171: 9902.55 | D171: 9934.07 | E171: 9829.73 | F171: 9756.92 | G171: 9652.58 | H171: 10006.88 | I171: 10111.22 | J171: 10184.03 | K171: 10038.4 | L171: 9861.25 | M171: 0.04118
A172: 163 | B172: PIDILITIND | C172: 1455.1 | D172: 1462.27 | E172: 1439.38 | F172: 1423.67 | G172: 1400.78 | H172: 1477.98 | I172: 1500.87 | J172: 1516.58 | K172: 1485.15 | L172: 1446.55 | M172: 8.08048
A173: 164 | B173: PIIND | C173: 2036.5 | D173: 2029.52 | E173: 1999.13 | F173: 1961.77 | G173: 1931.38 | H173: 2066.88 | I173: 2097.27 | J173: 2134.63 | K173: 2059.9 | L173: 1992.15 | M173: 10.84043
A174: 165 | B174: PNB | C174: 32.6 | D174: 32.80 | E174: 32.15 | F174: 31.70 | G174: 31.05 | H174: 33.25 | I174: 33.90 | J174: 34.35 | K174: 33.45 | L174: 32.35 | M174: 264.75658
A175: 166 | B175: PNBHOUSING | C175: 335.55 | D175: 335.20 | E175: 332.40 | F175: 329.25 | G175: 326.45 | H175: 338.35 | I175: 341.15 | J175: 344.30 | K175: 338 | L175: 332.05 | M175: 4.76567
A176: 167 | B176: POLYCAB | C176: 879.7 | D176: 879.03 | E176: 868.07 | F176: 856.43 | G176: 845.47 | H176: 890.67 | I176: 901.63 | J176: 913.27 | K176: 890 | L176: 867.4 | M176: 1.38719
A177: 168 | B177: POWERGRID | C177: 171.9 | D177: 170.73 | E177: 168.47 | F177: 165.03 | G177: 162.77 | H177: 174.17 | I177: 176.43 | J177: 179.87 | K177: 173 | L177: 167.3 | M177: 133.81032
A178: 169 | B178: PRESTIGE | C178: 255.25 | D178: 257.95 | E178: 248.90 | F178: 242.55 | G178: 233.50 | H178: 264.30 | I178: 273.35 | J178: 279.70 | K178: 267 | L178: 251.6 | M178: 4.95361
A179: 170 | B179: QUESS | C179: 426.55 | D179: 434.40 | E179: 409.15 | F179: 391.75 | G179: 366.50 | H179: 451.80 | I179: 477.05 | J179: 494.45 | K179: 459.65 | L179: 417 | M179: 3.19508
A180: 171 | B180: RAJESHEXPO | C180: 509.35 | D180: 495.75 | E180: 474.60 | F180: 439.85 | G180: 418.70 | H180: 530.50 | I180: 551.65 | J180: 586.40 | K180: 516.9 | L180: 461 | M180: 9.97519
A181: 172 | B181: RAMCOCEM | C181: 745.5 | D181: 749.68 | E181: 734.37 | F181: 723.23 | G181: 707.92 | H181: 760.82 | I181: 776.13 | J181: 787.27 | K181: 765 | L181: 738.55 | M181: 8.43997
A182: 173 | B182: RBLBANK | C182: 180.65 | D182: 181.13 | E182: 176.87 | F182: 173.08 | G182: 168.82 | H182: 184.92 | I182: 189.18 | J182: 192.97 | K182: 185.4 | L182: 177.35 | M182: 111.12774
A183: 174 | B183: RECLTD | C183: 108 | D183: 108.07 | E183: 106.88 | F183: 105.77 | G183: 104.58 | H183: 109.18 | I183: 110.37 | J183: 111.48 | K183: 109.25 | L183: 106.95 | M183: 65.01583
A184: 175 | B184: RELIANCE | C184: 2305.7 | D184: 2300.57 | E184: 2281.68 | F184: 2257.67 | G184: 2238.78 | H184: 2324.58 | I184: 2343.47 | J184: 2367.48 | K184: 2319.45 | L184: 2276.55 | M184: 152.64101
A185: 176 | B185: SAIL | C185: 37.85 | D185: 38.07 | E185: 37.48 | F185: 37.12 | G185: 36.53 | H185: 38.43 | I185: 39.02 | J185: 39.38 | K185: 38.65 | L185: 37.7 | M185: 125.10062
A186: 177 | B186: SBICARD | C186: 849.4 | D186: 846.58 | E186: 829.37 | F186: 809.33 | G186: 792.12 | H186: 866.62 | I186: 883.83 | J186: 903.87 | K186: 863.8 | L186: 826.55 | M186: 81.26328
A187: 178 | B187: SBILIFE | C187: 848.1 | D187: 851.65 | E187: 841.50 | F187: 834.90 | G187: 824.75 | H187: 858.25 | I187: 868.40 | J187: 875.00 | K187: 861.8 | L187: 845.05 | M187: 12.45818
A188: 179 | B188: SBIN | C188: 192.6 | D188: 193.17 | E188: 189.13 | F188: 185.67 | G188: 181.63 | H188: 196.63 | I188: 200.67 | J188: 204.13 | K188: 197.2 | L188: 189.7 | M188: 552.86449
A189: 180 | B189: SHREECEM | C189: 19520.95 | D189: 19676.33 | E189: 19244.12 | F189: 18967.28 | G189: 18535.07 | H189: 19953.17 | I189: 20385.38 | J189: 20662.22 | K189: 20108.55 | L189: 19399.5 | M189: 0.82189
A190: 181 | B190: SIEMENS | C190: 1256.85 | D190: 1254.08 | E190: 1241.17 | F190: 1225.48 | G190: 1212.57 | H190: 1269.77 | I190: 1282.68 | J190: 1298.37 | K190: 1267 | L190: 1238.4 | M190: 5.54209
A191: 182 | B191: SRF | C191: 4317.95 | D191: 4349.62 | E191: 4255.83 | F191: 4193.72 | G191: 4099.93 | H191: 4411.73 | I191: 4505.52 | J191: 4567.63 | K191: 4443.4 | L191: 4287.5 | M191: 4.87825
A192: 183 | B192: SRTRANSFIN | C192: 646.6 | D192: 647.42 | E192: 633.18 | F192: 619.77 | G192: 605.53 | H192: 660.83 | I192: 675.07 | J192: 688.48 | K192: 661.65 | L192: 634 | M192: 28.61747
A193: 184 | B193: SUNPHARMA | C193: 523.35 | D193: 524.45 | E193: 513.90 | F193: 504.45 | G193: 493.90 | H193: 533.90 | I193: 544.45 | J193: 553.90 | K193: 535 | L193: 515 | M193: 256.85408
A194: 185 | B194: SUNTV | C194: 484.5 | D194: 482.73 | E194: 477.17 | F194: 469.83 | G194: 464.27 | H194: 490.07 | I194: 495.63 | J194: 502.97 | K194: 488.3 | L194: 475.4 | M194: 21.00723
A195: 186 | B195: SYNGENE | C195: 567.85 | D195: 569.42 | E195: 558.83 | F195: 549.82 | G195: 539.23 | H195: 578.43 | I195: 589.02 | J195: 598.03 | K195: 580 | L195: 560.4 | M195: 15.97518
A196: 187 | B196: TATACONSUM | C196: 540.6 | D196: 543.72 | E196: 534.18 | F196: 527.77 | G196: 518.23 | H196: 550.13 | I196: 559.67 | J196: 566.08 | K196: 553.25 | L196: 537.3 | M196: 93.95458
A197: 188 | B197: TATAMOTORS | C197: 147.9 | D197: 148.22 | E197: 145.93 | F197: 143.97 | G197: 141.68 | H197: 150.18 | I197: 152.47 | J197: 154.43 | K197: 150.5 | L197: 146.25 | M197: 462.71652
A198: 189 | B198: TATAPOWER | C198: 56.2 | D198: 56.43 | E198: 55.52 | F198: 54.83 | G198: 53.92 | H198: 57.12 | I198: 58.03 | J198: 58.72 | K198: 57.35 | L198: 55.75 | M198: 156.97139
A199: 190 | B199: TATASTEEL | C199: 395.5 | D199: 398.18 | E199: 390.72 | F199: 385.93 | G199: 378.47 | H199: 402.97 | I199: 410.43 | J199: 415.22 | K199: 405.65 | L199: 393.4 | M199: 168.42244
A200: 191 | B200: TCS | C200: 2449.9 | D200: 2462.23 | E200: 2424.07 | F200: 2398.23 | G200: 2360.07 | H200: 2488.07 | I200: 2526.23 | J200: 2552.07 | K200: 2500.4 | L200: 2436.4 | M200: 41.83256
A201: 192 | B201: TECHM | C201: 804.65 | D201: 800.48 | E201: 792.17 | F201: 779.68 | G201: 771.37 | H201: 812.97 | I201: 821.28 | J201: 833.77 | K201: 808.8 | L201: 788 | M201: 62.81494
A202: 193 | B202: TITAN | C202: 1163.6 | D202: 1174.15 | E202: 1146.80 | F202: 1130.00 | G202: 1102.65 | H202: 1190.95 | I202: 1218.30 | J202: 1235.10 | K202: 1201.5 | L202: 1157.35 | M202: 25.75064
A203: 194 | B203: TORNTPHARM | C203: 2876.3 | D203: 2890.82 | E203: 2837.13 | F203: 2797.97 | G203: 2744.28 | H203: 2929.98 | I203: 2983.67 | J203: 3022.83 | K203: 2944.5 | L203: 2851.65 | M203: 11.52251
A204: 195 | B204: TORNTPOWER | C204: 325.8 | D204: 327.80 | E204: 321.80 | F204: 317.80 | G204: 311.80 | H204: 331.80 | I204: 337.80 | J204: 341.80 | K204: 333.8 | L204: 323.8 | M204: 11.64441
A205: 196 | B205: TRENT | C205: 682 | D205: 693.25 | E205: 659.75 | F205: 637.50 | G205: 604.00 | H205: 715.50 | I205: 749.00 | J205: 771.25 | K205: 726.75 | L205: 671 | M205: 45.483
... 29 more rows

Sheet MidCap Intra
L5: Back To Main Page
A6: FOR INTRA DAY TRADING | K6: =Main!B10 -> 2020-09-21
A9: Sr.no | B9: Scrip | C9: CLOSE RATE | D9: Pivot Point | E9: Supports | H9: Resistances
C10: Point | E10: S1 | F10: S2 | G10: S3 | H10: R1 | I10: R2 | J10: R3 | K10: HIGH | L10: LOW | M10: Total Trade Quanity in Lakhs
A11: 1 | B11: 3MINDIA | C11: 18747.5 | D11: 18744.47 | E11: 18427.03 | F11: 18106.57 | G11: 17789.13 | H11: 19064.93 | I11: 19382.37 | J11: 19702.83 | K11: 19061.9 | L11: 18424 | M11: 0.08313
A12: 2 | B12: AARTIIND | C12: 1070.1 | D12: 1083.02 | E12: 1039.08 | F12: 1008.07 | G12: 964.13 | H12: 1114.03 | I12: 1157.97 | J12: 1188.98 | K12: 1126.95 | L12: 1052 | M12: 4.40488
A13: 3 | B13: AAVAS | C13: 1397.5 | D13: 1399.53 | E13: 1379.07 | F13: 1360.63 | G13: 1340.17 | H13: 1417.97 | I13: 1438.43 | J13: 1456.87 | K13: 1420 | L13: 1381.1 | M13: 0.63407
A14: 4 | B14: ABB | C14: 900.8 | D14: 908.02 | E14: 891.23 | F14: 881.67 | G14: 864.88 | H14: 917.58 | I14: 934.37 | J14: 943.93 | K14: 924.8 | L14: 898.45 | M14: 0.79802
A15: 5 | B15: ABBOTINDIA | C15: 16506.15 | D15: 16546.12 | E15: 16401.33 | F15: 16296.52 | G15: 16151.73 | H15: 16650.93 | I15: 16795.72 | J15: 16900.53 | K15: 16690.9 | L15: 16441.3 | M15: 0.09254
A16: 6 | B16: ABCAPITAL | C16: 69.85 | D16: 70.27 | E16: 68.83 | F16: 67.82 | G16: 66.38 | H16: 71.28 | I16: 72.72 | J16: 73.73 | K16: 71.7 | L16: 69.25 | M16: 26.26204
A17: 7 | B17: ABFRL | C17: 133.15 | D17: 134.12 | E17: 131.53 | F17: 129.92 | G17: 127.33 | H17: 135.73 | I17: 138.32 | J17: 139.93 | K17: 136.7 | L17: 132.5 | M17: 13.44005
A18: 8 | B18: ACC | C18: 1431.8 | D18: 1426.30 | E18: 1414.55 | F18: 1397.30 | G18: 1385.55 | H18: 1443.55 | I18: 1455.30 | J18: 1472.55 | K18: 1438.05 | L18: 1409.05 | M18: 12.70015
A19: 9 | B19: ADANIGAS | C19: 193.3 | D19: 196.67 | E19: 188.63 | F19: 183.97 | G19: 175.93 | H19: 201.33 | I19: 209.37 | J19: 214.03 | K19: 204.7 | L19: 192 | M19: 42.79285
A20: 10 | B20: ADANIGREEN | C20: 665.6 | D20: 665.27 | E20: 642.58 | F20: 619.57 | G20: 596.88 | H20: 688.28 | I20: 710.97 | J20: 733.98 | K20: 687.95 | L20: 642.25 | M20: 201.07415
A21: 11 | B21: ADANIPORTS | C21: 357.85 | D21: 354.92 | E21: 350.03 | F21: 342.22 | G21: 337.33 | H21: 362.73 | I21: 367.62 | J21: 375.43 | K21: 359.8 | L21: 347.1 | M21: 49.63128
A22: 12 | B22: ADANIPOWER | C22: 37.4 | D22: 37.38 | E22: 37.02 | F22: 36.63 | G22: 36.27 | H22: 37.77 | I22: 38.13 | J22: 38.52 | K22: 37.75 | L22: 37 | M22: 26.54769
A23: 13 | B23: ADANITRANS | C23: 257.95 | D23: 259.80 | E23: 254.15 | F23: 250.35 | G23: 244.70 | H23: 263.60 | I23: 269.25 | J23: 273.05 | K23: 265.45 | L23: 256 | M23: 2.38374
A24: 14 | B24: ADVENZYMES | C24: 251.05 | D24: 249.38 | E24: 244.77 | F24: 238.48 | G24: 233.87 | H24: 255.67 | I24: 260.28 | J24: 266.57 | K24: 254 | L24: 243.1 | M24: 8.29415
A25: 15 | B25: AEGISCHEM | C25: 235.1 | D25: 238.63 | E25: 226.57 | F25: 218.03 | G25: 205.97 | H25: 247.17 | I25: 259.23 | J25: 267.77 | K25: 250.7 | L25: 230.1 | M25: 8.16332
A26: 16 | B26: AFFLE | C26: 3035.1 | D26: 3045.03 | E26: 3001.12 | F26: 2967.13 | G26: 2923.22 | H26: 3079.02 | I26: 3122.93 | J26: 3156.92 | K26: 3088.95 | L26: 3011.05 | M26: 0.49123
A27: 17 | B27: AIAENG | C27: 1865.65 | D27: 1842.47 | E27: 1774.93 | F27: 1684.22 | G27: 1616.68 | H27: 1933.18 | I27: 2000.72 | J27: 2091.43 | K27: 1910 | L27: 1751.75 | M27: 4.07838
A28: 18 | B28: AJANTPHARM | C28: 1613.1 | D28: 1602.03 | E28: 1570.07 | F28: 1527.03 | G28: 1495.07 | H28: 1645.07 | I28: 1677.03 | J28: 1720.07 | K28: 1634 | L28: 1559 | M28: 6.99933
A29: 19 | B29: AKZOINDIA | C29: 2164.35 | D29: 2142.68 | E29: 2106.62 | F29: 2048.88 | G29: 2012.82 | H29: 2200.42 | I29: 2236.48 | J29: 2294.22 | K29: 2178.75 | L29: 2084.95 | M29: 0.09131
A30: 20 | B30: ALKEM | C30: 2874.85 | D30: 2877.03 | E30: 2824.07 | F30: 2773.28 | G30: 2720.32 | H30: 2927.82 | I30: 2980.78 | J30: 3031.57 | K30: 2930 | L30: 2826.25 | M30: 2.53381
A31: 21 | B31: ALKYLAMINE | C31: 3334.75 | D31: 3321.25 | E31: 3282.50 | F31: 3230.25 | G31: 3191.50 | H31: 3373.50 | I31: 3412.25 | J31: 3464.50 | K31: 3360 | L31: 3269 | M31: 0.27078
A32: 22 | B32: ALLCARGO | C32: 119.5 | D32: 120.37 | E32: 118.33 | F32: 117.17 | G32: 115.13 | H32: 121.53 | I32: 123.57 | J32: 124.73 | K32: 122.4 | L32: 119.2 | M32: 3.67922
A33: 23 | B33: AMARAJABAT | C33: 762.6 | D33: 768.55 | E33: 750.65 | F33: 738.70 | G33: 720.80 | H33: 780.50 | I33: 798.40 | J33: 810.35 | K33: 786.45 | L33: 756.6 | M33: 9.88158
A34: 24 | B34: AMBER | C34: 2037.85 | D34: 2021.85 | E34: 1985.95 | F34: 1934.05 | G34: 1898.15 | H34: 2073.75 | I34: 2109.65 | J34: 2161.55 | K34: 2057.75 | L34: 1969.95 | M34: 6.04479
A35: 25 | B35: AMBUJACEM | C35: 220 | D35: 220.02 | E35: 217.03 | F35: 214.07 | G35: 211.08 | H35: 222.98 | I35: 225.97 | J35: 228.93 | K35: 223 | L35: 217.05 | M35: 35.67707
A36: 26 | B36: APLAPOLLO | C36: 2704.95 | D36: 2709.42 | E36: 2643.33 | F36: 2581.72 | G36: 2515.63 | H36: 2771.03 | I36: 2837.12 | J36: 2898.73 | K36: 2775.5 | L36: 2647.8 | M36: 3.32896
A37: 27 | B37: APLLTD | C37: 963.55 | D37: 966.60 | E37: 949.20 | F37: 934.85 | G37: 917.45 | H37: 980.95 | I37: 998.35 | J37: 1012.70 | K37: 984 | L37: 952.25 | M37: 10.64148
A38: 28 | B38: APOLLOHOSP | C38: 1828.45 | D38: 1824.82 | E38: 1777.68 | F38: 1726.92 | G38: 1679.78 | H38: 1875.58 | I38: 1922.72 | J38: 1973.48 | K38: 1871.95 | L38: 1774.05 | M38: 32.35148
A39: 29 | B39: APOLLOTYRE | C39: 130.7 | D39: 132.00 | E39: 128.45 | F39: 126.20 | G39: 122.65 | H39: 134.25 | I39: 137.80 | J39: 140.05 | K39: 135.55 | L39: 129.75 | M39: 60.45625
A40: 30 | B40: ARVINDFASN | C40: 132.35 | D40: 133.52 | E40: 130.73 | F40: 129.12 | G40: 126.33 | H40: 135.13 | I40: 137.92 | J40: 139.53 | K40: 136.3 | L40: 131.9 | M40: 1.5972
A41: 31 | B41: ASAHIINDIA | C41: 223.65 | D41: 226.50 | E41: 219.20 | F41: 214.75 | G41: 207.45 | H41: 230.95 | I41: 238.25 | J41: 242.70 | K41: 233.8 | L41: 222.05 | M41: 0.23518
A42: 32 | B42: ASHOKA | C42: 71.9 | D42: 71.28 | E42: 70.12 | F42: 68.33 | G42: 67.17 | H42: 73.07 | I42: 74.23 | J42: 76.02 | K42: 72.45 | L42: 69.5 | M42: 11.56565
A43: 33 | B43: ASHOKLEY | C43: 79.7 | D43: 80.58 | E43: 77.77 | F43: 75.83 | G43: 73.02 | H43: 82.52 | I43: 85.33 | J43: 87.27 | K43: 83.4 | L43: 78.65 | M43: 786.61749
A44: 34 | B44: ASIANPAINT | C44: 2028.4 | D44: 2029.25 | E44: 2014.15 | F44: 1999.90 | G44: 1984.80 | H44: 2043.50 | I44: 2058.60 | J44: 2072.85 | K44: 2044.35 | L44: 2015 | M44: 30.21436
A45: 35 | B45: ASTERDM | C45: 145.65 | D45: 143.38 | E45: 139.27 | F45: 132.88 | G45: 128.77 | H45: 149.77 | I45: 153.88 | J45: 160.27 | K45: 147.5 | L45: 137 | M45: 7.25352
A46: 36 | B46: ASTRAL | C46: 1126.35 | D46: 1141.80 | E46: 1101.60 | F46: 1076.85 | G46: 1036.65 | H46: 1166.55 | I46: 1206.75 | J46: 1231.50 | K46: 1182 | L46: 1117.05 | M46: 2.70912
A47: 37 | B47: ASTRAZEN | C47: 4296.8 | D47: 4336.27 | E47: 4122.63 | F47: 3948.47 | G47: 3734.83 | H47: 4510.43 | I47: 4724.07 | J47: 4898.23 | K47: 4549.9 | L47: 4162.1 | M47: 3.88311
A48: 38 | B48: ATUL | C48: 6645.6 | D48: 6696.95 | E48: 6495.05 | F48: 6344.50 | G48: 6142.60 | H48: 6847.50 | I48: 7049.40 | J48: 7199.95 | K48: 6898.85 | L48: 6546.4 | M48: 4.96709
A49: 39 | B49: AUBANK | C49: 726.55 | D49: 723.53 | E49: 710.17 | F49: 693.78 | G49: 680.42 | H49: 739.92 | I49: 753.28 | J49: 769.67 | K49: 736.9 | L49: 707.15 | M49: 7.39071
A50: 40 | B50: AUROPHARMA | C50: 828.1 | D50: 827.92 | E50: 815.83 | F50: 803.57 | G50: 791.48 | H50: 840.18 | I50: 852.27 | J50: 864.53 | K50: 840 | L50: 815.65 | M50: 62.49036
A51: 41 | B51: AVANTIFEED | C51: 520.2 | D51: 522.90 | E51: 513.35 | F51: 506.50 | G51: 496.95 | H51: 529.75 | I51: 539.30 | J51: 546.15 | K51: 532.45 | L51: 516.05 | M51: 3.56815
A52: 42 | B52: AXISBANK | C52: 443.35 | D52: 442.90 | E52: 436.50 | F52: 429.65 | G52: 423.25 | H52: 449.75 | I52: 456.15 | J52: 463.00 | K52: 449.3 | L52: 436.05 | M52: 208.097
A53: 43 | B53: BAJAJ-AUTO | C53: 3050.95 | D53: 3038.98 | E53: 3007.97 | F53: 2964.98 | G53: 2933.97 | H53: 3081.97 | I53: 3112.98 | J53: 3155.97 | K53: 3070 | L53: 2996 | M53: 9.37014
A54: 44 | B54: BAJAJCON | C54: 190 | D54: 192.28 | E54: 185.87 | F54: 181.73 | G54: 175.32 | H54: 196.42 | I54: 202.83 | J54: 206.97 | K54: 198.7 | L54: 188.15 | M54: 19.07658
A55: 45 | B55: BAJAJELEC | C55: 493.9 | D55: 498.95 | E55: 483.20 | F55: 472.50 | G55: 456.75 | H55: 509.65 | I55: 525.40 | J55: 536.10 | K55: 514.7 | L55: 488.25 | M55: 2.18651
A56: 46 | B56: BAJAJFINSV | C56: 5888.45 | D56: 5936.97 | E56: 5813.93 | F56: 5739.42 | G56: 5616.38 | H56: 6011.48 | I56: 6134.52 | J56: 6209.03 | K56: 6060 | L56: 5862.45 | M56: 8.56383
A57: 47 | B57: BAJAJHLDNG | C57: 2587.5 | D57: 2562.67 | E57: 2505.28 | F57: 2423.07 | G57: 2365.68 | H57: 2644.88 | I57: 2702.27 | J57: 2784.48 | K57: 2620.05 | L57: 2480.45 | M57: 0.7873
A58: 48 | B58: BAJFINANCE | C58: 3474.8 | D58: 3469.20 | E58: 3434.60 | F58: 3394.40 | G58: 3359.80 | H58: 3509.40 | I58: 3544.00 | J58: 3584.20 | K58: 3503.8 | L58: 3429 | M58: 37.69116
A59: 49 | B59: BALKRISIND | C59: 1394.45 | D59: 1391.17 | E59: 1374.38 | F59: 1354.32 | G59: 1337.53 | H59: 1411.23 | I59: 1428.02 | J59: 1448.08 | K59: 1407.95 | L59: 1371.1 | M59: 17.72733
A60: 50 | B60: BALMLAWRIE | C60: 112.7 | D60: 112.27 | E60: 110.43 | F60: 108.17 | G60: 106.33 | H60: 114.53 | I60: 116.37 | J60: 118.63 | K60: 114.1 | L60: 110 | M60: 4.58842
A61: 51 | B61: BALRAMCHIN | C61: 160.4 | D61: 160.22 | E61: 158.83 | F61: 157.27 | G61: 155.88 | H61: 161.78 | I61: 163.17 | J61: 164.73 | K61: 161.6 | L61: 158.65 | M61: 11.90982
A62: 52 | B62: BANDHANBNK | C62: 298.75 | D62: 300.20 | E62: 292.70 | F62: 286.65 | G62: 279.15 | H62: 306.25 | I62: 313.75 | J62: 319.80 | K62: 307.7 | L62: 294.15 | M62: 141.79997
A63: 53 | B63: BANKBARODA | C63: 45.05 | D63: 45.28 | E63: 44.67 | F63: 44.28 | G63: 43.67 | H63: 45.67 | I63: 46.28 | J63: 46.67 | K63: 45.9 | L63: 44.9 | M63: 142.31696
A64: 54 | B64: BANKINDIA | C64: 44.3 | D64: 44.73 | E64: 43.67 | F64: 43.03 | G64: 41.97 | H64: 45.37 | I64: 46.43 | J64: 47.07 | K64: 45.8 | L64: 44.1 | M64: 27.59526
A65: 55 | B65: BASF | C65: 1512.35 | D65: 1521.05 | E65: 1493.10 | F65: 1473.85 | G65: 1445.90 | H65: 1540.30 | I65: 1568.25 | J65: 1587.50 | K65: 1549 | L65: 1501.8 | M65: 0.24889
A66: 56 | B66: BATAINDIA | C66: 1334.7 | D66: 1338.60 | E66: 1322.20 | F66: 1309.70 | G66: 1293.30 | H66: 1351.10 | I66: 1367.50 | J66: 1380.00 | K66: 1355 | L66: 1326.1 | M66: 10.42244
A67: 57 | B67: BAYERCROP | C67: 6352.2 | D67: 6256.95 | E67: 5975.35 | F67: 5598.50 | G67: 5316.90 | H67: 6633.80 | I67: 6915.40 | J67: 7292.25 | K67: 6538.55 | L67: 5880.1 | M67: 2.84769
A68: 58 | B68: BBTC | C68: 1392.35 | D68: 1406.28 | E68: 1366.57 | F68: 1340.78 | G68: 1301.07 | H68: 1432.07 | I68: 1471.78 | J68: 1497.57 | K68: 1446 | L68: 1380.5 | M68: 1.32498
A69: 59 | B69: BDL | C69: 318.5 | D69: 317.20 | E69: 314.45 | F69: 310.40 | G69: 307.65 | H69: 321.25 | I69: 324.00 | J69: 328.05 | K69: 319.95 | L69: 313.15 | M69: 5.58204
A70: 60 | B70: BEL | C70: 103.9 | D70: 103.57 | E70: 102.53 | F70: 101.17 | G70: 100.13 | H70: 104.93 | I70: 105.97 | J70: 107.33 | K70: 104.6 | L70: 102.2 | M70: 93.28207
A71: 61 | B71: BEML | C71: 647.15 | D71: 644.17 | E71: 633.88 | F71: 620.62 | G71: 610.33 | H71: 657.43 | I71: 667.72 | J71: 680.98 | K71: 654.45 | L71: 630.9 | M71: 3.29641
A72: 62 | B72: BERGEPAINT | C72: 578.5 | D72: 576.53 | E72: 570.12 | F72: 561.73 | G72: 555.32 | H72: 584.92 | I72: 591.33 | J72: 599.72 | K72: 582.95 | L72: 568.15 | M72: 17.92343
A73: 63 | B73: BHARATFORG | C73: 479.35 | D73: 481.12 | E73: 474.83 | F73: 470.32 | G73: 464.03 | H73: 485.63 | I73: 491.92 | J73: 496.43 | K73: 487.4 | L73: 476.6 | M73: 25.31657
A74: 64 | B74: BHARATRAS | C74: 9855.2 | D74: 9870.07 | E74: 9670.13 | F74: 9485.07 | G74: 9285.13 | H74: 10055.13 | I74: 10255.07 | J74: 10440.13 | K74: 10070 | L74: 9685 | M74: 0.04203
A75: 65 | B75: BHARTIARTL | C75: 494.55 | D75: 489.17 | E75: 480.68 | F75: 466.82 | G75: 458.33 | H75: 503.03 | I75: 511.52 | J75: 525.38 | K75: 497.65 | L75: 475.3 | M75: 548.01702
A76: 66 | B76: BHEL | C76: 34.65 | D76: 34.97 | E76: 34.18 | F76: 33.72 | G76: 32.93 | H76: 35.43 | I76: 36.22 | J76: 36.68 | K76: 35.75 | L76: 34.5 | M76: 290.39359
A77: 67 | B77: BIOCON | C77: 454 | D77: 453.55 | E77: 443.20 | F77: 432.40 | G77: 422.05 | H77: 464.35 | I77: 474.70 | J77: 485.50 | K77: 463.9 | L77: 442.75 | M77: 114.10425
A78: 68 | B78: BIRLACORPN | C78: 718.95 | D78: 717.15 | E78: 697.35 | F78: 675.75 | G78: 655.95 | H78: 738.75 | I78: 758.55 | J78: 780.15 | K78: 736.95 | L78: 695.55 | M78: 5.21815
A79: 69 | B79: BLISSGVS | C79: 153.4 | D79: 154.25 | E79: 151.15 | F79: 148.90 | G79: 145.80 | H79: 156.50 | I79: 159.60 | J79: 161.85 | K79: 157.35 | L79: 152 | M79: 6.02019
A80: 70 | B80: BLUEDART | C80: 2766.65 | D80: 2792.22 | E80: 2724.43 | F80: 2682.22 | G80: 2614.43 | H80: 2834.43 | I80: 2902.22 | J80: 2944.43 | K80: 2860 | L80: 2750 | M80: 0.12409
A81: 71 | B81: BLUESTARCO | C81: 632.6 | D81: 648.53 | E81: 612.07 | F81: 591.53 | G81: 555.07 | H81: 669.07 | I81: 705.53 | J81: 726.07 | K81: 685 | L81: 628 | M81: 8.972
A82: 72 | B82: BOMDYEING | C82: 68 | D82: 68.25 | E82: 67.00 | F82: 66.00 | G82: 64.75 | H82: 69.25 | I82: 70.50 | J82: 71.50 | K82: 69.5 | L82: 67.25 | M82: 10.40354
A83: 73 | B83: BOSCHLTD | C83: 13070.6 | D83: 13035.12 | E83: 12844.23 | F83: 12617.87 | G83: 12426.98 | H83: 13261.48 | I83: 13452.37 | J83: 13678.73 | K83: 13226 | L83: 12808.75 | M83: 0.89575
A84: 74 | B84: BPCL | C84: 412.05 | D84: 414.85 | E84: 406.80 | F84: 401.55 | G84: 393.50 | H84: 420.10 | I84: 428.15 | J84: 433.40 | K84: 422.9 | L84: 409.6 | M84: 95.55519
A85: 75 | B85: BRIGADE | C85: 174.9 | D85: 174.28 | E85: 171.32 | F85: 167.73 | G85: 164.77 | H85: 177.87 | I85: 180.83 | J85: 184.42 | K85: 177.25 | L85: 170.7 | M85: 5.21261
A86: 76 | B86: BRITANNIA | C86: 3797.5 | D86: 3804.03 | E86: 3768.32 | F86: 3739.13 | G86: 3703.42 | H86: 3833.22 | I86: 3868.93 | J86: 3898.12 | K86: 3839.75 | L86: 3774.85 | M86: 9.47698
A87: 77 | B87: BSE | C87: 567.9 | D87: 572.52 | E87: 560.63 | F87: 553.37 | G87: 541.48 | H87: 579.78 | I87: 591.67 | J87: 598.93 | K87: 584.4 | L87: 565.25 | M87: 3.1499
A88: 78 | B88: BSOFT | C88: 195.7 | D88: 198.47 | E88: 190.43 | F88: 185.17 | G88: 177.13 | H88: 203.73 | I88: 211.77 | J88: 217.03 | K88: 206.5 | L88: 193.2 | M88: 49.56508
A89: 79 | B89: CADILAHC | C89: 409.7 | D89: 409.25 | E89: 395.50 | F89: 381.30 | G89: 367.55 | H89: 423.45 | I89: 437.20 | J89: 451.40 | K89: 423 | L89: 395.05 | M89: 196.40911
A90: 80 | B90: CANBK | C90: 98.7 | D90: 99.15 | E90: 97.80 | F90: 96.90 | G90: 95.55 | H90: 100.05 | I90: 101.40 | J90: 102.30 | K90: 100.5 | L90: 98.25 | M90: 36.81449
A91: 81 | B91: CANFINHOME | C91: 420.5 | D91: 425.82 | E91: 410.68 | F91: 400.87 | G91: 385.73 | H91: 435.63 | I91: 450.77 | J91: 460.58 | K91: 440.95 | L91: 416 | M91: 13.29428
A92: 82 | B92: CAPLIPOINT | C92: 593.8 | D92: 590.25 | E92: 575.70 | F92: 557.60 | G92: 543.05 | H92: 608.35 | I92: 622.90 | J92: 641.00 | K92: 604.8 | L92: 572.15 | M92: 9.3692
A93: 83 | B93: CARBORUNIV | C93: 273.5 | D93: 274.87 | E93: 268.73 | F93: 263.97 | G93: 257.83 | H93: 279.63 | I93: 285.77 | J93: 290.53 | K93: 281 | L93: 270.1 | M93: 2.05086
A94: 84 | B94: CARERATING | C94: 381.9 | D94: 386.97 | E94: 374.93 | F94: 367.97 | G94: 355.93 | H94: 393.93 | I94: 405.97 | J94: 412.93 | K94: 399 | L94: 380 | M94: 0.82764
A95: 85 | B95: CASTROLIND | C95: 119.15 | D95: 118.70 | E95: 117.05 | F95: 114.95 | G95: 113.30 | H95: 120.80 | I95: 122.45 | J95: 124.55 | K95: 120.35 | L95: 116.6 | M95: 16.24302
A96: 86 | B96: CCL | C96: 277.55 | D96: 275.60 | E96: 267.70 | F96: 257.85 | G96: 249.95 | H96: 285.45 | I96: 293.35 | J96: 303.20 | K96: 283.5 | L96: 265.75 | M96: 1.76827
A97: 87 | B97: CDSL | C97: 469.15 | D97: 470.72 | E97: 461.43 | F97: 453.72 | G97: 444.43 | H97: 478.43 | I97: 487.72 | J97: 495.43 | K97: 480 | L97: 463 | M97: 8.35818
A98: 88 | B98: CEATLTD | C98: 959.4 | D98: 960.80 | E98: 951.60 | F98: 943.80 | G98: 934.60 | H98: 968.60 | I98: 977.80 | J98: 985.60 | K98: 970 | L98: 953 | M98: 2.81142
A99: 89 | B99: CENTRALBK | C99: 15.8 | D99: 15.92 | E99: 15.53 | F99: 15.27 | G99: 14.88 | H99: 16.18 | I99: 16.57 | J99: 16.83 | K99: 16.3 | L99: 15.65 | M99: 9.93225
A100: 90 | B100: CENTURYPLY | C100: 183.6 | D100: 183.47 | E100: 180.18 | F100: 176.77 | G100: 173.48 | H100: 186.88 | I100: 190.17 | J100: 193.58 | K100: 186.75 | L100: 180.05 | M100: 2.97081
A101: 91 | B101: CENTURYTEX | C101: 369.95 | D101: 370.02 | E101: 364.03 | F101: 358.12 | G101: 352.13 | H101: 375.93 | I101: 381.92 | J101: 387.83 | K101: 376 | L101: 364.1 | M101: 14.9755
A102: 92 | B102: CERA | C102: 2432.65 | D102: 2452.00 | E102: 2402.65 | F102: 2372.65 | G102: 2323.30 | H102: 2482.00 | I102: 2531.35 | J102: 2561.35 | K102: 2501.35 | L102: 2422 | M102: 0.05163
A103: 93 | B103: CESC | C103: 675.65 | D103: 671.53 | E103: 659.12 | F103: 642.58 | G103: 630.17 | H103: 688.07 | I103: 700.48 | J103: 717.02 | K103: 683.95 | L103: 655 | M103: 3.81721
A104: 94 | B104: CGCL | C104: 232.85 | D104: 229.28 | E104: 223.57 | F104: 214.28 | G104: 208.57 | H104: 238.57 | I104: 244.28 | J104: 253.57 | K104: 235 | L104: 220 | M104: 1.36529
A105: 95 | B105: CHAMBLFERT | C105: 156.75 | D105: 156.17 | E105: 154.38 | F105: 152.02 | G105: 150.23 | H105: 158.53 | I105: 160.32 | J105: 162.68 | K105: 157.95 | L105: 153.8 | M105: 33.42966
A106: 96 | B106: CHENNPETRO | C106: 76.25 | D106: 77.10 | E106: 74.50 | F106: 72.75 | G106: 70.15 | H106: 78.85 | I106: 81.45 | J106: 83.20 | K106: 79.7 | L106: 75.35 | M106: 7.98532
A107: 97 | B107: CHOLAFIN | C107: 240.65 | D107: 240.62 | E107: 237.28 | F107: 233.92 | G107: 230.58 | H107: 243.98 | I107: 247.32 | J107: 250.68 | K107: 243.95 | L107: 237.25 | M107: 53.2943
A108: 98 | B108: CHOLAHLDNG | C108: 429.1 | D108: 434.98 | E108: 419.97 | F108: 410.83 | G108: 395.82 | H108: 444.12 | I108: 459.13 | J108: 468.27 | K108: 450 | L108: 425.85 | M108: 2.68157
A109: 99 | B109: CIPLA | C109: 806.25 | D109: 800.57 | E109: 781.83 | F109: 757.42 | G109: 738.68 | H109: 824.98 | I109: 843.72 | J109: 868.13 | K109: 819.3 | L109: 776.15 | M109: 355.27345
A110: 100 | B110: COALINDIA | C110: 123.65 | D110: 123.93 | E110: 122.62 | F110: 121.58 | G110: 120.27 | H110: 124.97 | I110: 126.28 | J110: 127.32 | K110: 125.25 | L110: 122.9 | M110: 146.14109
A111: 101 | B111: COCHINSHIP | C111: 344.35 | D111: 345.95 | E111: 341.45 | F111: 338.55 | G111: 334.05 | H111: 348.85 | I111: 353.35 | J111: 356.25 | K111: 350.45 | L111: 343.05 | M111: 2.49253
A112: 102 | B112: COFORGE | C112: 2193.7 | D112: 2208.90 | E112: 2168.80 | F112: 2143.90 | G112: 2103.80 | H112: 2233.80 | I112: 2273.90 | J112: 2298.80 | K112: 2249 | L112: 2184 | M112: 2.93783
A113: 103 | B113: COLPAL | C113: 1372.65 | D113: 1380.88 | E113: 1354.77 | F113: 1336.88 | G113: 1310.77 | H113: 1398.77 | I113: 1424.88 | J113: 1442.77 | K113: 1407 | L113: 1363 | M113: 9.3511
A114: 104 | B114: CONCOR | C114: 389.3 | D114: 391.07 | E114: 385.83 | F114: 382.37 | G114: 377.13 | H114: 394.53 | I114: 399.77 | J114: 403.23 | K114: 396.3 | L114: 387.6 | M114: 21.25693
A115: 105 | B115: COROMANDEL | C115: 810.1 | D115: 809.72 | E115: 798.38 | F115: 786.67 | G115: 775.33 | H115: 821.43 | I115: 832.77 | J115: 844.48 | K115: 821.05 | L115: 798 | M115: 21.39338
A116: 106 | B116: CREDITACC | C116: 725.4 | D116: 726.05 | E116: 716.55 | F116: 707.70 | G116: 698.20 | H116: 734.90 | I116: 744.40 | J116: 753.25 | K116: 735.55 | L116: 717.2 | M116: 0.56269
A117: 107 | B117: CRISIL | C117: 1725.35 | D117: 1756.25 | E117: 1674.10 | F117: 1622.85 | G117: 1540.70 | H117: 1807.50 | I117: 1889.65 | J117: 1940.90 | K117: 1838.4 | L117: 1705 | M117: 3.10169
A118: 108 | B118: CROMPTON | C118: 279.7 | D118: 280.28 | E118: 275.12 | F118: 270.53 | G118: 265.37 | H118: 284.87 | I118: 290.03 | J118: 294.62 | K118: 285.45 | L118: 275.7 | M118: 8.62059
A119: 109 | B119: CSBBANK | C119: 223.2 | D119: 224.38 | E119: 219.12 | F119: 215.03 | G119: 209.77 | H119: 228.47 | I119: 233.73 | J119: 237.82 | K119: 229.65 | L119: 220.3 | M119: 0.79499
A120: 110 | B120: CUB | C120: 143.9 | D120: 143.77 | E120: 142.18 | F120: 140.47 | G120: 138.88 | H120: 145.48 | I120: 147.07 | J120: 148.78 | K120: 145.35 | L120: 142.05 | M120: 10.84928
A121: 111 | B121: CUMMINSIND | C121: 481.5 | D121: 483.70 | E121: 474.85 | F121: 468.20 | G121: 459.35 | H121: 490.35 | I121: 499.20 | J121: 505.85 | K121: 492.55 | L121: 477.05 | M121: 13.52075
A122: 112 | B122: CYIENT | C122: 422.45 | D122: 422.13 | E122: 415.32 | F122: 408.18 | G122: 401.37 | H122: 429.27 | I122: 436.08 | J122: 443.22 | K122: 428.95 | L122: 415 | M122: 4.68117
A123: 113 | B123: DABUR | C123: 508.45 | D123: 505.70 | E123: 501.50 | F123: 494.55 | G123: 490.35 | H123: 512.65 | I123: 516.85 | J123: 523.80 | K123: 509.9 | L123: 498.75 | M123: 30.67745
A124: 114 | B124: DALBHARAT | C124: 768.95 | D124: 779.42 | E124: 751.03 | F124: 733.12 | G124: 704.73 | H124: 797.33 | I124: 825.72 | J124: 843.63 | K124: 807.8 | L124: 761.5 | M124: 3.40095
A125: 115 | B125: DBCORP | C125: 77.15 | D125: 78.18 | E125: 75.97 | F125: 74.78 | G125: 72.57 | H125: 79.37 | I125: 81.58 | J125: 82.77 | K125: 80.4 | L125: 77 | M125: 1.40535
A126: 116 | B126: DBL | C126: 357.8 | D126: 363.18 | E126: 348.72 | F126: 339.63 | G126: 325.17 | H126: 372.27 | I126: 386.73 | J126: 395.82 | K126: 377.65 | L126: 354.1 | M126: 1.81974
A127: 117 | B127: DCAL | C127: 163.8 | D127: 168.17 | E127: 157.73 | F127: 151.67 | G127: 141.23 | H127: 174.23 | I127: 184.67 | J127: 190.73 | K127: 178.6 | L127: 162.1 | M127: 8.82823
A128: 118 | B128: DCBBANK | C128: 92.75 | D128: 91.92 | E128: 90.33 | F128: 87.92 | G128: 86.33 | H128: 94.33 | I128: 95.92 | J128: 98.33 | K128: 93.5 | L128: 89.5 | M128: 20.9143
A129: 119 | B129: DCMSHRIRAM | C129: 390 | D129: 386.33 | E129: 379.67 | F129: 369.33 | G129: 362.67 | H129: 396.67 | I129: 403.33 | J129: 413.67 | K129: 393 | L129: 376 | M129: 0.90134
A130: 120 | B130: DEEPAKNTR | C130: 853.85 | D130: 852.62 | E130: 817.23 | F130: 780.62 | G130: 745.23 | H130: 889.23 | I130: 924.62 | J130: 961.23 | K130: 888 | L130: 816 | M130: 38.52089
A131: 121 | B131: DELTACORP | C131: 114.05 | D131: 113.93 | E131: 109.12 | F131: 104.18 | G131: 99.37 | H131: 118.87 | I131: 123.68 | J131: 128.62 | K131: 118.75 | L131: 109 | M131: 36.44709
A132: 122 | B132: DHANUKA | C132: 825.3 | D132: 823.60 | E132: 811.70 | F132: 798.10 | G132: 786.20 | H132: 837.20 | I132: 849.10 | J132: 862.70 | K132: 835.5 | L132: 810 | M132: 2.95461
A133: 123 | B133: DISHTV | C133: 14.7 | D133: 14.35 | E133: 14.00 | F133: 13.30 | G133: 12.95 | H133: 15.05 | I133: 15.40 | J133: 16.10 | K133: 14.7 | L133: 13.65 | M133: 286.4802
A134: 124 | B134: DIVISLAB | C134: 3344.4 | D134: 3320.47 | E134: 3251.93 | F134: 3159.47 | G134: 3090.93 | H134: 3412.93 | I134: 3481.47 | J134: 3573.93 | K134: 3389 | L134: 3228 | M134: 33.62845
A135: 125 | B135: DIXON | C135: 9400.55 | D135: 9550.53 | E135: 9156.07 | F135: 8911.58 | G135: 8517.12 | H135: 9795.02 | I135: 10189.48 | J135: 10433.97 | K135: 9945 | L135: 9306.05 | M135: 1.51199
A136: 126 | B136: DLF | C136: 161.25 | D136: 161.67 | E136: 156.98 | F136: 152.72 | G136: 148.03 | H136: 165.93 | I136: 170.62 | J136: 174.88 | K136: 166.35 | L136: 157.4 | M136: 196.10622
A137: 127 | B137: DMART | C137: 2149.05 | D137: 2143.00 | E137: 2110.05 | F137: 2071.05 | G137: 2038.10 | H137: 2182.00 | I137: 2214.95 | J137: 2253.95 | K137: 2175.95 | L137: 2104 | M137: 12.04363
A138: 128 | B138: DRREDDY | C138: 5333.35 | D138: 5260.18 | E138: 5023.42 | F138: 4713.48 | G138: 4476.72 | H138: 5570.12 | I138: 5806.88 | J138: 6116.82 | K138: 5496.95 | L138: 4950.25 | M138: 219.87146
A139: 129 | B139: ECLERX | C139: 773.7 | D139: 766.30 | E139: 750.60 | F139: 727.50 | G139: 711.80 | H139: 789.40 | I139: 805.10 | J139: 828.20 | K139: 782 | L139: 743.2 | M139: 1.46017
A140: 130 | B140: EDELWEISS | C140: 67.55 | D140: 68.97 | E140: 66.08 | F140: 64.62 | G140: 61.73 | H140: 70.43 | I140: 73.32 | J140: 74.78 | K140: 71.85 | L140: 67.5 | M140: 15.85559
A141: 131 | B141: EICHERMOT | C141: 2152.95 | D141: 2163.98 | E141: 2124.17 | F141: 2095.38 | G141: 2055.57 | H141: 2192.77 | I141: 2232.58 | J141: 2261.37 | K141: 2203.8 | L141: 2135.2 | M141: 13.10103
A142: 132 | B142: EIDPARRY | C142: 301.9 | D142: 304.93 | E142: 296.42 | F142: 290.93 | G142: 282.42 | H142: 310.42 | I142: 318.93 | J142: 324.42 | K142: 313.45 | L142: 299.45 | M142: 17.09478
A143: 133 | B143: EIHOTEL | C143: 86.6 | D143: 87.30 | E143: 84.80 | F143: 83.00 | G143: 80.50 | H143: 89.10 | I143: 91.60 | J143: 93.40 | K143: 89.8 | L143: 85.5 | M143: 20.95341
A144: 134 | B144: ELGIEQUIP | C144: 240.2 | D144: 240.40 | E144: 238.80 | F144: 237.40 | G144: 235.80 | H144: 241.80 | I144: 243.40 | J144: 244.80 | K144: 242 | L144: 239 | M144: 1.19312
A145: 135 | B145: EMAMILTD | C145: 370.15 | D145: 373.38 | E145: 359.77 | F145: 349.38 | G145: 335.77 | H145: 383.77 | I145: 397.38 | J145: 407.77 | K145: 387 | L145: 363 | M145: 7.8054
A146: 136 | B146: ENDURANCE | C146: 1144.3 | D146: 1141.82 | E146: 1127.63 | F146: 1110.97 | G146: 1096.78 | H146: 1158.48 | I146: 1172.67 | J146: 1189.33 | K146: 1156 | L146: 1125.15 | M146: 1.04959
A147: 137 | B147: ENGINERSIN | C147: 68.85 | D147: 69.12 | E147: 67.93 | F147: 67.02 | G147: 65.83 | H147: 70.03 | I147: 71.22 | J147: 72.13 | K147: 70.3 | L147: 68.2 | M147: 38.07892
A148: 138 | B148: EQUITAS | C148: 54.8 | D148: 54.52 | E148: 53.78 | F148: 52.77 | G148: 52.03 | H148: 55.53 | I148: 56.27 | J148: 57.28 | K148: 55.25 | L148: 53.5 | M148: 41.59743
A149: 139 | B149: ERIS | C149: 539.5 | D149: 541.82 | E149: 530.68 | F149: 521.87 | G149: 510.73 | H149: 550.63 | I149: 561.77 | J149: 570.58 | K149: 552.95 | L149: 533 | M149: 2.97813
A150: 140 | B150: ESABINDIA | C150: 1372.65 | D150: 1383.78 | E150: 1356.92 | F150: 1341.18 | G150: 1314.32 | H150: 1399.52 | I150: 1426.38 | J150: 1442.12 | K150: 1410.65 | L150: 1368.05 | M150: 0.05254
A151: 141 | B151: ESCORTS | C151: 1238.6 | D151: 1248.38 | E151: 1216.07 | F151: 1193.53 | G151: 1161.22 | H151: 1270.92 | I151: 1303.23 | J151: 1325.77 | K151: 1280.7 | L151: 1225.85 | M151: 22.25289
A152: 142 | B152: ESSELPACK | C152: 251.85 | D152: 255.35 | E152: 246.70 | F152: 241.55 | G152: 232.90 | H152: 260.50 | I152: 269.15 | J152: 274.30 | K152: 264 | L152: 250.2 | M152: 98.34336
A153: 143 | B153: EXIDEIND | C153: 167.25 | D153: 167.22 | E153: 164.93 | F153: 162.62 | G153: 160.33 | H153: 169.53 | I153: 171.82 | J153: 174.13 | K153: 169.5 | L153: 164.9 | M153: 41.0108
A154: 144 | B154: FCONSUMER | C154: 9.6 | D154: 9.62 | E154: 9.48 | F154: 9.37 | G154: 9.23 | H154: 9.73 | I154: 9.87 | J154: 9.98 | K154: 9.75 | L154: 9.5 | M154: 63.34409
A155: 145 | B155: FDC | C155: 357.9 | D155: 358.92 | E155: 350.48 | F155: 343.07 | G155: 334.63 | H155: 366.33 | I155: 374.77 | J155: 382.18 | K155: 367.35 | L155: 351.5 | M155: 6.53221
A156: 146 | B156: FEDERALBNK | C156: 51.9 | D156: 52.10 | E156: 50.80 | F156: 49.70 | G156: 48.40 | H156: 53.20 | I156: 54.50 | J156: 55.60 | K156: 53.4 | L156: 51 | M156: 333.21564
A157: 147 | B157: FINCABLES | C157: 294.45 | D157: 294.43 | E157: 289.92 | F157: 285.38 | G157: 280.87 | H157: 298.97 | I157: 303.48 | J157: 308.02 | K157: 298.95 | L157: 289.9 | M157: 4.64005
A158: 148 | B158: FINEORG | C158: 2863.35 | D158: 2891.87 | E158: 2793.73 | F158: 2724.12 | G158: 2625.98 | H158: 2961.48 | I158: 3059.62 | J158: 3129.23 | K158: 2990 | L158: 2822.25 | M158: 1.1391
A159: 149 | B159: FINPIPE | C159: 543.05 | D159: 539.13 | E159: 530.92 | F159: 518.78 | G159: 510.57 | H159: 551.27 | I159: 559.48 | J159: 571.62 | K159: 547.35 | L159: 527 | M159: 0.61052
A160: 150 | B160: FLUOROCHEM | C160: 532.15 | D160: 530.72 | E160: 526.43 | F160: 520.72 | G160: 516.43 | H160: 536.43 | I160: 540.72 | J160: 546.43 | K160: 535 | L160: 525 | M160: 0.38552
A161: 151 | B161: FORTIS | C161: 132.95 | D161: 133.53 | E161: 131.22 | F161: 129.48 | G161: 127.17 | H161: 135.27 | I161: 137.58 | J161: 139.32 | K161: 135.85 | L161: 131.8 | M161: 7.38149
A162: 152 | B162: FRETAIL | C162: 100.3 | D162: 100.38 | E162: 98.92 | F162: 97.53 | G162: 96.07 | H162: 101.77 | I162: 103.23 | J162: 104.62 | K162: 101.85 | L162: 99 | M162: 31.95539
A163: 153 | B163: FSL | C163: 74.25 | D163: 74.03 | E163: 72.22 | F163: 70.18 | G163: 68.37 | H163: 76.07 | I163: 77.88 | J163: 79.92 | K163: 75.85 | L163: 72 | M163: 50.50363
A164: 154 | B164: GAIL | C164: 92.1 | D164: 92.12 | E164: 90.78 | F164: 89.47 | G164: 88.13 | H164: 93.43 | I164: 94.77 | J164: 96.08 | K164: 93.45 | L164: 90.8 | M164: 218.97338
A165: 155 | B165: GALAXYSURF | C165: 1987.7 | D165: 1968.78 | E165: 1939.07 | F165: 1890.43 | G165: 1860.72 | H165: 2017.42 | I165: 2047.13 | J165: 2095.77 | K165: 1998.5 | L165: 1920.15 | M165: 0.49019
A166: 156 | B166: GARFIBRES | C166: 1993.25 | D166: 1997.75 | E166: 1975.50 | F166: 1957.75 | G166: 1935.50 | H166: 2015.50 | I166: 2037.75 | J166: 2055.50 | K166: 2020 | L166: 1980 | M166: 0.14252
A167: 157 | B167: GEPIL | C167: 463.35 | D167: 467.23 | E167: 458.17 | F167: 452.98 | G167: 443.92 | H167: 472.42 | I167: 481.48 | J167: 486.67 | K167: 476.3 | L167: 462.05 | M167: 0.16936
A168: 158 | B168: GESHIP | C168: 251.95 | D168: 254.00 | E168: 242.95 | F168: 233.95 | G168: 222.90 | H168: 263.00 | I168: 274.05 | J168: 283.05 | K168: 265.05 | L168: 245 | M168: 3.56166
A169: 159 | B169: GET&D | C169: 99 | D169: 99.30 | E169: 98.20 | F169: 97.40 | G169: 96.30 | H169: 100.10 | I169: 101.20 | J169: 102.00 | K169: 100.4 | L169: 98.5 | M169: 0.27161
A170: 160 | B170: GHCL | C170: 164 | D170: 166.17 | E170: 161.08 | F170: 158.17 | G170: 153.08 | H170: 169.08 | I170: 174.17 | J170: 177.08 | K170: 171.25 | L170: 163.25 | M170: 1.72618
A171: 161 | B171: GICRE | C171: 129 | D171: 130.37 | E171: 126.83 | F171: 124.67 | G171: 121.13 | H171: 132.53 | I171: 136.07 | J171: 138.23 | K171: 133.9 | L171: 128.2 | M171: 3.5916
A172: 162 | B172: GILLETTE | C172: 5557.65 | D172: 5561.42 | E172: 5526.43 | F172: 5495.22 | G172: 5460.23 | H172: 5592.63 | I172: 5627.62 | J172: 5658.83 | K172: 5596.4 | L172: 5530.2 | M172: 0.16493
A173: 163 | B173: GLAXO | C173: 1697.9 | D173: 1716.30 | E173: 1642.60 | F173: 1587.30 | G173: 1513.60 | H173: 1771.60 | I173: 1845.30 | J173: 1900.60 | K173: 1790 | L173: 1661 | M173: 8.5917
A174: 164 | B174: GLENMARK | C174: 508.9 | D174: 507.47 | E174: 496.48 | F174: 484.07 | G174: 473.08 | H174: 519.88 | I174: 530.87 | J174: 543.28 | K174: 518.45 | L174: 495.05 | M174: 93.98103
A175: 165 | B175: GMDCLTD | C175: 45.25 | D175: 45.22 | E175: 44.43 | F175: 43.62 | G175: 42.83 | H175: 46.03 | I175: 46.82 | J175: 47.63 | K175: 46 | L175: 44.4 | M175: 7.98274
A176: 166 | B176: GMMPFAUDLR | C176: 5358.6 | D176: 5335.53 | E176: 5223.07 | F176: 5087.53 | G176: 4975.07 | H176: 5471.07 | I176: 5583.53 | J176: 5719.07 | K176: 5448 | L176: 5200 | M176: 1.30025
A177: 167 | B177: GMRINFRA | C177: 23.95 | D177: 24.05 | E177: 23.60 | F177: 23.25 | G177: 22.80 | H177: 24.40 | I177: 24.85 | J177: 25.20 | K177: 24.5 | L177: 23.7 | M177: 205.02615
A178: 168 | B178: GNFC | C178: 223.35 | D178: 222.85 | E178: 217.00 | F178: 210.65 | G178: 204.80 | H178: 229.20 | I178: 235.05 | J178: 241.40 | K178: 228.7 | L178: 216.5 | M178: 43.00097
A179: 169 | B179: GODFRYPHLP | C179: 948.9 | D179: 947.95 | E179: 941.20 | F179: 933.50 | G179: 926.75 | H179: 955.65 | I179: 962.40 | J179: 970.10 | K179: 954.7 | L179: 940.25 | M179: 0.56717
A180: 170 | B180: GODREJAGRO | C180: 529.15 | D180: 528.05 | E180: 521.70 | F180: 514.25 | G180: 507.90 | H180: 535.50 | I180: 541.85 | J180: 549.30 | K180: 534.4 | L180: 520.6 | M180: 1.03348
A181: 171 | B181: GODREJCP | C181: 713.75 | D181: 712.60 | E181: 698.50 | F181: 683.25 | G181: 669.15 | H181: 727.85 | I181: 741.95 | J181: 757.20 | K181: 726.7 | L181: 697.35 | M181: 20.29857
A182: 172 | B182: GODREJIND | C182: 409.3 | D182: 410.92 | E182: 405.38 | F182: 401.47 | G182: 395.93 | H182: 414.83 | I182: 420.37 | J182: 424.28 | K182: 416.45 | L182: 407 | M182: 1.20622
A183: 173 | B183: GODREJPROP | C183: 915.5 | D183: 912.50 | E183: 897.00 | F183: 878.50 | G183: 863.00 | H183: 931.00 | I183: 946.50 | J183: 965.00 | K183: 928 | L183: 894 | M183: 8.34198
A184: 174 | B184: GPPL | C184: 89.55 | D184: 87.98 | E184: 85.07 | F184: 80.58 | G184: 77.67 | H184: 92.47 | I184: 95.38 | J184: 99.87 | K184: 90.9 | L184: 83.5 | M184: 13.56794
A185: 175 | B185: GRANULES | C185: 365.15 | D185: 368.75 | E185: 352.50 | F185: 339.85 | G185: 323.60 | H185: 381.40 | I185: 397.65 | J185: 410.30 | K185: 385 | L185: 356.1 | M185: 112.38327
A186: 176 | B186: GRAPHITE | C186: 182.15 | D186: 182.63 | E186: 178.37 | F186: 174.58 | G186: 170.32 | H186: 186.42 | I186: 190.68 | J186: 194.47 | K186: 186.9 | L186: 178.85 | M186: 5.13267
A187: 177 | B187: GRASIM | C187: 745 | D187: 739.43 | E187: 730.22 | F187: 715.43 | G187: 706.22 | H187: 754.22 | I187: 763.43 | J187: 778.22 | K187: 748.65 | L187: 724.65 | M187: 32.16185
A188: 178 | B188: GREAVESCOT | C188: 78.05 | D188: 78.47 | E188: 77.33 | F188: 76.62 | G188: 75.48 | H188: 79.18 | I188: 80.32 | J188: 81.03 | K188: 79.6 | L188: 77.75 | M188: 3.27596
A189: 179 | B189: GRINDWELL | C189: 546.8 | D189: 550.95 | E189: 541.85 | F189: 536.90 | G189: 527.80 | H189: 555.90 | I189: 565.00 | J189: 569.95 | K189: 560.05 | L189: 546 | M189: 0.17643
A190: 180 | B190: GRSE | C190: 182.05 | D190: 183.65 | E190: 179.50 | F190: 176.95 | G190: 172.80 | H190: 186.20 | I190: 190.35 | J190: 192.90 | K190: 187.8 | L190: 181.1 | M190: 0.99413
A191: 181 | B191: GSFC | C191: 60.45 | D191: 60.57 | E191: 58.48 | F191: 56.52 | G191: 54.43 | H191: 62.53 | I191: 64.62 | J191: 66.58 | K191: 62.65 | L191: 58.6 | M191: 11.35716
A192: 182 | B192: GSPL | C192: 210.1 | D192: 209.80 | E192: 205.30 | F192: 200.50 | G192: 196.00 | H192: 214.60 | I192: 219.10 | J192: 223.90 | K192: 214.3 | L192: 205 | M192: 17.44427
A193: 183 | B193: GUJALKALI | C193: 350.3 | D193: 347.28 | E193: 341.52 | F193: 332.73 | G193: 326.97 | H193: 356.07 | I193: 361.83 | J193: 370.62 | K193: 353.05 | L193: 338.5 | M193: 1.65649
A194: 184 | B194: GUJGASLTD | C194: 317 | D194: 316.00 | E194: 304.50 | F194: 292.00 | G194: 280.50 | H194: 328.50 | I194: 340.00 | J194: 352.50 | K194: 327.5 | L194: 303.5 | M194: 28.4149
A195: 185 | B195: GULFOILLUB | C195: 658.2 | D195: 664.02 | E195: 649.18 | F195: 640.17 | G195: 625.33 | H195: 673.03 | I195: 687.87 | J195: 696.88 | K195: 678.85 | L195: 655 | M195: 0.07685
A196: 186 | B196: HAL | C196: 841.9 | D196: 840.98 | E196: 832.12 | F196: 822.33 | G196: 813.47 | H196: 850.77 | I196: 859.63 | J196: 869.42 | K196: 849.85 | L196: 831.2 | M196: 7.22873
A197: 187 | B197: HATHWAY | C197: 32.75 | D197: 32.93 | E197: 32.37 | F197: 31.98 | G197: 31.42 | H197: 33.32 | I197: 33.88 | J197: 34.27 | K197: 33.5 | L197: 32.55 | M197: 1.51923
A198: 188 | B198: HATSUN | C198: 835.3 | D198: 839.77 | E198: 822.53 | F198: 809.77 | G198: 792.53 | H198: 852.53 | I198: 869.77 | J198: 882.53 | K198: 857 | L198: 827 | M198: 0.30965
A199: 189 | B199: HAVELLS | C199: 675.25 | D199: 677.67 | E199: 667.78 | F199: 660.32 | G199: 650.43 | H199: 685.13 | I199: 695.02 | J199: 702.48 | K199: 687.55 | L199: 670.2 | M199: 12.7143
A200: 190 | B200: HCLTECH | C200: 810.6 | D200: 812.87 | E200: 801.73 | F200: 792.87 | G200: 781.73 | H200: 821.73 | I200: 832.87 | J200: 841.73 | K200: 824 | L200: 804 | M200: 88.47758
A201: 191 | B201: HDFC | C201: 1724 | D201: 1729.02 | E201: 1703.28 | F201: 1682.57 | G201: 1656.83 | H201: 1749.73 | I201: 1775.47 | J201: 1796.18 | K201: 1754.75 | L201: 1708.3 | M201: 56.42506
A202: 192 | B202: HDFCAMC | C202: 2215.45 | D202: 2223.80 | E202: 2172.65 | F202: 2129.85 | G202: 2078.70 | H202: 2266.60 | I202: 2317.75 | J202: 2360.55 | K202: 2274.95 | L202: 2181 | M202: 8.91189
A203: 193 | B203: HDFCBANK | C203: 1057.3 | D203: 1065.57 | E203: 1038.93 | F203: 1020.57 | G203: 993.93 | H203: 1083.93 | I203: 1110.57 | J203: 1128.93 | K203: 1092.2 | L203: 1047.2 | M203: 117.40889
A204: 194 | B204: HDFCLIFE | C204: 585.1 | D204: 587.80 | E204: 580.80 | F204: 576.50 | G204: 569.50 | H204: 592.10 | I204: 599.10 | J204: 603.40 | K204: 594.8 | L204: 583.5 | M204: 25.87595
A205: 195 | B205: HEG | C205: 759.85 | D205: 761.28 | E205: 748.57 | F205: 737.28 | G205: 724.57 | H205: 772.57 | I205: 785.28 | J205: 796.57 | K205: 774 | L205: 750 | M205: 3.00046
A206: 196 | B206: HEIDELBERG | C206: 189 | D206: 188.05 | E206: 185.25 | F206: 181.50 | G206: 178.70 | H206: 191.80 | I206: 194.60 | J206: 198.35 | K206: 190.85 | L206: 184.3 | M206: 2.09293
... 321 more rows

Sheet Bulk Deals
E6: Back To Main Page
A7: Subject : | B7: BULK DEAL | D7: =Main!B10 -> 2020-09-21
A9: Date | B9: Scrip code | C9: Scrip Name | D9: Client Name | E9: Buy / Sell | F9: Quantity Traded | G9: Trade Price / Wt.Avg.trade price | H9: Exchange
A10: 2020-09-18 | B10: 541401 | C10: ARIHANTINS | D10: MANISHABEN KALPESHBHAI MALVI | E10: SELL | F10: 60,000 | G10: 2.49 | H10: BSE
A11: 2020-09-18 | B11: 532406 | C11: AVANTEL | D11: VELDI RAMBABU | E11: SELL | F11: 21,700 | G11: 394.21 | H11: BSE
A12: 2020-09-18 | B12: 540545 | C12: BGJL | D12: PRASHANT GOVINDBHAI PARMAR | E12: SELL | F12: 58,224 | G12: 56.05 | H12: BSE
A13: 2020-09-18 | B13: 539800 | C13: CHDCHEM | D13: REENA SHARMA | E13: BUY | F13: 102,385 | G13: 57.07 | H13: BSE
A14: 2020-09-18 | B14: 539800 | C14: CHDCHEM | D14: JAGDISH PRASAD ARYA | E14: BUY | F14: 159,780 | G14: 57.07 | H14: BSE
A15: 2020-09-18 | B15: 539800 | C15: CHDCHEM | D15: REENA SHARMA | E15: SELL | F15: 102,385 | G15: 57.1 | H15: BSE
A16: 2020-09-18 | B16: 539800 | C16: CHDCHEM | D16: JAGDISH PRASAD ARYA | E16: SELL | F16: 123,079 | G16: 57.1 | H16: BSE
A17: 2020-09-18 | B17: 500135 | C17: ESSELPRO | D17: EPSILON BIDCO PTE LTD | E17: SELL | F17: 18,000,000 | G17: 256.44 | H17: BSE
A18: 2020-09-18 | B18: 500135 | C18: ESSELPRO | D18: INTEGRATED CORE STRATEGIES (ASIA) PTE.LTD. | E18: BUY | F18: 2,039,100 | G18: 256.3 | H18: BSE
A19: 2020-09-18 | B19: 500135 | C19: ESSELPRO | D19: EPSILON BIDCO PTE LTD | E19: SELL | F19: 54,580,090 | G19: 256.49 | H19: BSE
A20: 2020-09-18 | B20: 500135 | C20: ESSELPRO | D20: AXIS MUTUAL FUND | E20: BUY | F20: 2,341,006 | G20: 256.3 | H20: BSE
A21: 2020-09-18 | B21: 500135 | C21: ESSELPRO | D21: AXIS MUTUAL FUND | E21: BUY | F21: 5,331,667 | G21: 256.3 | H21: BSE
A22: 2020-09-18 | B22: 500135 | C22: ESSELPRO | D22: AXIS MUTUAL FUND | E22: BUY | F22: 2,341,006 | G22: 256.3 | H22: BSE
A23: 2020-09-18 | B23: 500135 | C23: ESSELPRO | D23: IDFC MUTUAL FUND | E23: BUY | F23: 2,731,174 | G23: 256.3 | H23: BSE
A24: 2020-09-18 | B24: 500135 | C24: ESSELPRO | D24: ADITYA BIRLA SUN LIFE MUTUAL FUND | E24: BUY | F24: 2,331,643 | G24: 256.3 | H24: BSE
A25: 2020-09-18 | B25: 500135 | C25: ESSELPRO | D25: ADITYA BIRLA SUN LIFE MUTUAL FUND | E25: BUY | F25: 1,785,017 | G25: 256.3 | H25: BSE
A26: 2020-09-18 | B26: 500135 | C26: ESSELPRO | D26: ADITYA BIRLA SUN LIFE MUTUAL FUND | E26: BUY | F26: 1,735,857 | G26: 256.3 | H26: BSE
A27: 2020-09-18 | B27: 500135 | C27: ESSELPRO | D27: TNTBC AS THE TRUSTEE OF NOMURA INDIA STOCK MOTHER FUND | E27: BUY | F27: 2,891,964 | G27: 256.3 | H27: BSE
A28: 2020-09-18 | B28: 500135 | C28: ESSELPRO | D28: FRANKLIN TEMPLETON MUTUAL FUND | E28: BUY | F28: 2,996,395 | G28: 256.3 | H28: BSE
A29: 2020-09-18 | B29: 500135 | C29: ESSELPRO | D29: FTIF - TEMPLETON ASIAN SMALLER COMPANIES FUND | E29: BUY | F29: 2,079,350 | G29: 256.3 | H29: BSE
A30: 2020-09-18 | B30: 500135 | C30: ESSELPRO | D30: NORGES BANK ON ACCOUNT OF THE GOVERNMENT PENSION FUND GLOBAL | E30: BUY | F30: 3,750,000 | G30: 256.3 | H30: BSE
A31: 2020-09-18 | B31: 500135 | C31: ESSELPRO | D31: DSP MUTUAL FUND | E31: BUY | F31: 1,872,913 | G31: 256.3 | H31: BSE
A32: 2020-09-18 | B32: 500135 | C32: ESSELPRO | D32: DSP MUTUAL FUND | E32: BUY | F32: 2,230,484 | G32: 256.3 | H32: BSE
A33: 2020-09-18 | B33: 500135 | C33: ESSELPRO | D33: EMERGING MARKETS EQUITY FUND | E33: BUY | F33: 3,951,968 | G33: 256.3 | H33: BSE
A34: 2020-09-18 | B34: 500135 | C34: ESSELPRO | D34: NEUBERGER BERMAN EQUITY FUNDS A/C NEUBERGER BERMAN EMERGING MARKETS EQ FUND | E34: BUY | F34: 2,716,697 | G34: 256.3 | H34: BSE
A35: 2020-09-18 | B35: 542651 | C35: KPITTECH | D35: ANUPAMA KISHOR PATIL | E35: BUY | F35: 1,400,000 | G35: 100.01 | H35: BSE
A36: 2020-09-18 | B36: 539519 | C36: MAYUKH | D36: POONAMCHAND RUGHLAL MUNDHRA | E36: BUY | F36: 22,901 | G36: 10.49 | H36: BSE
A37: 2020-09-18 | B37: 539519 | C37: MAYUKH | D37: RAMAKANT GAGGAR | E37: SELL | F37: 23,000 | G37: 10.49 | H37: BSE
A38: 2020-09-18 | B38: 539519 | C38: MAYUKH | D38: DEVRAM ZIPA LONDHE | E38: BUY | F38: 25,000 | G38: 10.55 | H38: BSE
A39: 2020-09-18 | B39: 539519 | C39: MAYUKH | D39: GAGANBASE VINCOM PVT. LTD. | E39: SELL | F39: 42,470 | G39: 10.54 | H39: BSE
A40: 2020-09-18 | B40: 539126 | C40: MEP | D40: SWETSAM STOCK HOLDING PRIVATE LIMITED | E40: BUY | F40: 1,000,000 | G40: 16 | H40: BSE
A41: 2020-09-18 | B41: 539126 | C41: MEP | D41: SAMIR ROHITBHAI SHAH | E41: SELL | F41: 1,000,000 | G41: 16 | H41: BSE
A42: 2020-09-18 | B42: 513511 | C42: PANCHMAHQ | D42: DARSHAN TRADING COMPANY | E42: SELL | F42: 105,810 | G42: 29.15 | H42: BSE
A43: 2020-09-18 | B43: 540175 | C43: REGENCY | D43: NAVEEN GUPTA | E43: BUY | F43: 12,106 | G43: 28.13 | H43: BSE
A44: 2020-09-18 | B44: 540175 | C44: REGENCY | D44: NAVEEN GUPTA | E44: SELL | F44: 19,961 | G44: 27.8 | H44: BSE
A45: 2020-09-18 | B45: 540175 | C45: REGENCY | D45: NIKHIL KAKKAR | E45: BUY | F45: 5,203 | G45: 28.39 | H45: BSE
A46: 2020-09-18 | B46: 540175 | C46: REGENCY | D46: NIKHIL KAKKAR | E46: SELL | F46: 24,552 | G46: 27.51 | H46: BSE
A47: 2020-09-18 | B47: 540725 | C47: SISL | D47: SUNIL KUMAR GUPTA HUF | E47: SELL | F47: 200,000 | G47: 95.48 | H47: BSE
A48: 2020-09-18 | B48: 540738 | C48: STL | D48: ARYAMAN BROKING LIMITED | E48: BUY | F48: 90,000 | G48: 30.12 | H48: BSE
A49: 2020-09-18 | B49: 540738 | C49: STL | D49: ARYAMAN BROKING LIMITED | E49: SELL | F49: 6,000 | G49: 30.5 | H49: BSE
A50: 2020-09-18 | B50: 541701 | C50: SUPERSHAKT | D50: ARYAMAN BROKING LIMITED | E50: SELL | F50: 67,200 | G50: 310 | H50: BSE
A51: 2020-09-18 | B51: 541701 | C51: SUPERSHAKT | D51: SUDHIR MALLAPPA KATTI | E51: BUY | F51: 67,200 | G51: 310 | H51: BSE
A52: 2020-09-18 | B52: 536264 | C52: TIGERLOGS | D52: NISHIL SURENDRABHAI MARFATIA | E52: BUY | F52: 105,278 | G52: 43.93 | H52: BSE
A53: 2020-09-18 | B53: 536264 | C53: TIGERLOGS | D53: NISHIL SURENDRABHAI MARFATIA | E53: SELL | F53: 136,731 | G53: 43.71 | H53: BSE
A54: 2020-09-18 | B54: 540145 | C54: VALIANTORG | D54: DILESH ROADLINES PVT LTD | E54: SELL | F54: 400,000 | G54: 2749.1 | H54: BSE
A55: 2020-09-18 | B55: 540145 | C55: VALIANTORG | D55: GOLDMAN SACHS INDIA FUND LIMITED | E55: BUY | F55: 106,502 | G55: 2749 | H55: BSE
A56: 2020-09-18 | B56: 540145 | C56: VALIANTORG | D56: NIPPON INDIA MUTUAL FUND | E56: BUY | F56: 200,000 | G56: 2749.02 | H56: BSE
A57: 2020-09-18 | B57: 540145 | C57: VALIANTORG | D57: NIPPON INDIA MUTUAL FUND | E57: BUY | F57: 90,000 | G57: 2749.02 | H57: BSE
A58: 2020-09-18 | B58: 530665 | C58: ZENITHHE | D58: ORIPARAMBIL VELAPPAN SHABU | E58: SELL | F58: 516,242 | G58: 4.23 | H58: BSE
A59: 2020-09-18 | B59: ADANIGREEN | C59: Adani Green Energy Ltd | D59: THE VANGUARD GROUP INC A/C VANGUARD EMERG. MKTS STOCK INDEXFD A SERIES OF V I E I F | E59: BUY | F59: 13,084,019 | G59: 666.96 | H59: NSE
A60: 2020-09-18 | B60: AMBER | C60: Amber Enterprises (I) Ltd | D60: THE VANGUARD GROUP INC A/C VANGUARD EMERG. MKTS STOCK INDEXFD A SERIES OF V I E I F | E60: BUY | F60: 246,949 | G60: 2042.81 | H60: NSE
A61: 2020-09-18 | B61: AMJUMBO | C61: A and M Jumbo Bags Ltd | D61: PARTH HITESHKUMAR SHAH | E61: BUY | F61: 40,000 | G61: 8 | H61: NSE
A62: 2020-09-18 | B62: ATUL | C62: Atul Ltd. | D62: THE VANGUARD GROUP INC A/C VANGUARD EMERG. MKTS STOCK INDEXFD A SERIES OF V I E I F | E62: BUY | F62: 287,366 | G62: 6664.02 | H62: NSE
A63: 2020-09-18 | B63: DEEPAKNTR | C63: Deepak Nitrite Ltd | D63: THE VANGUARD GROUP INC A/C VANGUARD EMERG. MKTS STOCK INDEXFD A SERIES OF V I E I F | E63: BUY | F63: 1,081,688 | G63: 861.54 | H63: NSE
A64: 2020-09-18 | B64: DIXON | C64: Dixon Techno (India) Ltd | D64: THE VANGUARD GROUP INC A/C VANGUARD EMERG. MKTS STOCK INDEXFD A SERIES OF V I E I F | E64: BUY | F64: 90,797 | G64: 9421.52 | H64: NSE
A65: 2020-09-18 | B65: GATI | C65: GATI Limited | D65: EQ INDIA FUND | E65: BUY | F65: 888,888 | G65: 49.45 | H65: NSE
A66: 2020-09-18 | B66: GRANULES | C66: Granules India Limited | D66: THE VANGUARD GROUP INC A/C VANGUARD EMERG. MKTS STOCK INDEXFD A SERIES OF V I E I F | E66: BUY | F66: 2,609,758 | G66: 370.42 | H66: NSE
A67: 2020-09-18 | B67: IGL | C67: Indraprastha Gas Limited | D67: THE VANGUARD GROUP INC A/C VANGUARD EMERG. MKTS STOCK INDEXFD A SERIES OF V I E I F | E67: BUY | F67: 5,419,615 | G67: 420.03 | H67: NSE
A68: 2020-09-18 | B68: INFIBEAM | C68: Infibeam Avenues Limited | D68: THE VANGUARD GROUP INC A/C VANGUARD EMERG. MKTS STOCK INDEXFD A SERIES OF V I E I F | E68: BUY | F68: 3,716,086 | G68: 77.09 | H68: NSE
A69: 2020-09-18 | B69: JBCHEPHARM | C69: JB Chem & Pharm Ltd. | D69: THE VANGUARD GROUP INC A/C VANGUARD EMERG. MKTS STOCK INDEXFD A SERIES OF V I E I F | E69: BUY | F69: 706,756 | G69: 1121.89 | H69: NSE
A70: 2020-09-18 | B70: MANAPPURAM | C70: Manappuram Finance Ltd | D70: THE VANGUARD GROUP INC A/C VANGUARD EMERG. MKTS STOCK INDEXFD A SERIES OF V I E I F | E70: BUY | F70: 5,736,216 | G70: 161.52 | H70: NSE
A71: 2020-09-18 | B71: NAVINFLUOR | C71: Navin Fluorine Internatio | D71: THE VANGUARD GROUP INC A/C VANGUARD EMERG. MKTS STOCK INDEXFD A SERIES OF V I E I F | E71: BUY | F71: 343,451 | G71: 2048.79 | H71: NSE
A72: 2020-09-18 | B72: ORIENTALTL | C72: Oriental Trimex Limited | D72: SAWARNBHUMI VANIJYA PVT LTD | E72: BUY | F72: 500,490 | G72: 9.95 | H72: NSE
A73: 2020-09-18 | B73: PKTEA | C73: The P K Tea Prod Co Ltd | D73: PLACID LIMITED | E73: BUY | F73: 18,500 | G73: 202.46 | H73: NSE
A74: 2020-09-18 | B74: SUVEN | C74: Suven Life Sciences Ltd | D74: KATKAR SANJAY | E74: BUY | F74: 688,893 | G74: 56.27 | H74: NSE
A75: 2020-09-18 | B75: TATAELXSI | C75: Tata Elxsi Limited | D75: THE VANGUARD GROUP INC A/C VANGUARD EMERG. MKTS STOCK INDEXFD A SERIES OF V I E I F | E75: BUY | F75: 346,065 | G75: 1277.32 | H75: NSE
A76: 2020-09-18 | B76: TEMBO | C76: Tembo Global Ind Ltd | D76: VINOD HARILAL JHAVERI | E76: BUY | F76: 38,000 | G76: 170 | H76: NSE
A77: 2020-09-18 | B77: TRENT | C77: Trent Ltd. | D77: THE VANGUARD GROUP INC A/C VANGUARD EMERG. MKTS STOCK INDEXFD A SERIES OF V I E I F | E77: BUY | F77: 2,413,964 | G77: 683.04 | H77: NSE
A78: 2020-09-18 | B78: UNITEDPOLY | C78: United Polyfab Guj. Ltd. | D78: HARSH VINODBHAI MITTAL | E78: BUY | F78: 102,000 | G78: 13.45 | H78: NSE
A79: 2020-09-18 | B79: UNITEDPOLY | C79: United Polyfab Guj. Ltd. | D79: POONAM HARSH MITTAL | E79: BUY | F79: 102,000 | G79: 13.45 | H79: NSE
A80: 2020-09-18 | B80: UNITEDPOLY | C80: United Polyfab Guj. Ltd. | D80: YASH VINOD MITTAL | E80: BUY | F80: 102,000 | G80: 13.45 | H80: NSE
A81: 2020-09-18 | B81: UNITEDPOLY | C81: United Polyfab Guj. Ltd. | D81: SWETA YASH MITTAL | E81: BUY | F81: 102,000 | G81: 13.45 | H81: NSE
A82: 2020-09-18 | B82: AMBER | C82: Amber Enterprises (I) Ltd | D82: INTEGRATED CORE STRATEGIES (ASIA) PTE. LTD. | E82: SELL | F82: 183,459 | G82: 2034.02 | H82: NSE
A83: 2020-09-18 | B83: APLAPOLLO | C83: Apl Apollo Tubes Ltd | D83: INTEGRATED CORE STRATEGIES ASIA PTE LTD | E83: SELL | F83: 159,642 | G83: 2704.67 | H83: NSE
A84: 2020-09-18 | B84: ATUL | C84: Atul Ltd. | D84: INTEGRATED CORE STRATEGIES (ASIA) PTE. LTD. | E84: SELL | F84: 180,829 | G84: 6601.04 | H84: NSE
A85: 2020-09-18 | B85: BLUESTARCO | C85: Blue Star Ltd. | D85: INTEGRATED CORE STRATEGIES ASIA PTE LTD | E85: SELL | F85: 517,661 | G85: 632.77 | H85: NSE
A86: 2020-09-18 | B86: DEEPAKNTR | C86: Deepak Nitrite Ltd | D86: INTEGRATED CORE STRATEGIES ASIA PTE LTD | E86: SELL | F86: 824,457 | G86: 853.75 | H86: NSE
A87: 2020-09-18 | B87: DISHTV | C87: Dish TV India Limited | D87: THE VANGUARD GROUP INC A/C VANGUARD EMERG. MKTS STOCK INDEXFD A SERIES OF V I E I F | E87: SELL | F87: 11,667,063 | G87: 14.68 | H87: NSE
A88: 2020-09-18 | B88: DIXON | C88: Dixon Techno (India) Ltd | D88: INTEGRATED CORE STRATEGIES (ASIA) PTE. LTD. | E88: SELL | F88: 77,005 | G88: 9408.56 | H88: NSE
A89: 2020-09-18 | B89: GRANULES | C89: Granules India Limited | D89: INTEGRATED CORE STRATEGIES (ASIA) PTE. LTD. | E89: SELL | F89: 1,507,444 | G89: 365.06 | H89: NSE
A90: 2020-09-18 | B90: IGL | C90: Indraprastha Gas Limited | D90: THE VANGUARD GROUP INC A/C VANGUARD EMERG. MKTS STOCK INDEXFD A SERIES OF V I E I F | E90: SELL | F90: 371,167 | G90: 419.25 | H90: NSE
A91: 2020-09-18 | B91: INFIBEAM | C91: Infibeam Avenues Limited | D91: INTEGRATED CORE STRATEGIES (ASIA) PTE. LTD. | E91: SELL | F91: 3,652,143 | G91: 77.06 | H91: NSE
A92: 2020-09-18 | B92: NAVINFLUOR | C92: Navin Fluorine Internatio | D92: INTEGRATED CORE STRATEGIES ASIA PTE LTD | E92: SELL | F92: 382,711 | G92: 2047.75 | H92: NSE
A93: 2020-09-18 | B93: ORIENTALTL | C93: Oriental Trimex Limited | D93: CAPSTON CAPITAL PARTNERS | E93: SELL | F93: 500,000 | G93: 9.95 | H93: NSE
A94: 2020-09-18 | B94: ORIENTALTL | C94: Oriental Trimex Limited | D94: SAWARNBHUMI VANIJYA PVT LTD | E94: SELL | F94: 490 | G94: 9.95 | H94: NSE
A95: 2020-09-18 | B95: TATAELXSI | C95: Tata Elxsi Limited | D95: INTEGRATED CORE STRATEGIES ASIA PTE LTD | E95: SELL | F95: 357,262 | G95: 1273.07 | H95: NSE
A96: 2020-09-18 | B96: TEMBO | C96: Tembo Global Ind Ltd | D96: SAJANKUMAR RAMESHWARLAL BAJAJ | E96: SELL | F96: 38,000 | G96: 170 | H96: NSE
A97: 2020-09-18 | B97: TRENT | C97: Trent Ltd. | D97: INTEGRATED CORE STRATEGIES (ASIA) PTE. LTD. | E97: SELL | F97: 2,328,680 | G97: 682.76 | H97: NSE
A98: 2020-09-18 | B98: UNITEDPOLY | C98: United Polyfab Guj. Ltd. | D98: AMAYSHA TEXTILES PRIVATE LIMITED | E98: SELL | F98: 213,000 | G98: 13.45 | H98: NSE
A99: 2020-09-18 | B99: UNITEDPOLY | C99: United Polyfab Guj. Ltd. | D99: DHANSHREE BARTER PVT LTD | E99: SELL | F99: 201,000 | G99: 13.45 | H99: NSE
A100: 2020-09-18 | B100: WABAG | C100: VA Tech Wabag Ltd | D100: THE VANGUARD GROUP INC A/C VANGUARD EMERG. MKTS STOCK INDEXFD A SERIES OF V I E I F | E100: SELL | F100: 357,454 | G100: 212.39 | H100: NSE

Sheet Call Tracker (Equity & F&O)
M5: Back To Main Page
A6: Retail Research Technical Calls & Fundamental Performance Report for the month of September-2020
M7: =Main!B10 -> 2020-09-21
B8: Positional Call
A9: Sr.no | B9: Date | D9: Company | E9: Rec | F9: Rec Price | G9: Stop Loss*** | H9: Call Closed At | I9: Target | J9: Remark | K9: Profit / Loss per Share | L9: All charges | M9: Net Gain / Loss % | N9: Status | O9: Closed Date
A10: 1 | B10: 2020-07-22 | D10: NESTLEIND | E10: Buy | F10: 17030 | G10: 15950 | H10: 15950 | I10: 18500-19000 | J10: Loss of Rs.1080/- | K10: =H10-F10 -> -1080 | L10: =(F10*-0.8)/100 -> -136.24 | M10: =(K10+L10)/F10 -> -7.14% | N10: Unsuccessful | O10: 2020-09-01 | R10: H
A11: 2 | B11: 2020-08-14 | D11: ITC | E11: Buy | F11: 198 | G11: 187 | H11: 187 | I11: 218-220 | J11: Loss of Rs.11/- | K11: =H11-F11 -> -11 | L11: =(F11*-0.8)/100 -> -1.58 | M11: =(K11+L11)/F11 -> -6.36% | N11: Unsuccessful | O11: 2020-09-04 | R11: A
A12: 3 | B12: 2020-08-20 | D12: THERMAX | E12: Buy | F12: 785 | G12: 730.00 | H12: 825.00 | I12: 880-900 | J12: Part Profit of Rs.40/- | K12: =H12-F12 -> 40 | L12: =(F12*-0.8)/100 -> -6.28 | M12: =(K12+L12)/F12 -> 4.30% | N12: Successful | O12: 2020-08-21 | R12: H
A13: 4 | B13: 2020-08-21 | D13: VGUARD | E13: Buy | F13: 172 | G13: 160.00 | H13: 180.50 | I13: 195 | J13: Part Profit of Rs.8.5/- | K13: =H13-F13 -> 8.5 | L13: =(F13*-0.8)/100 -> -1.38 | M13: =(K13+L13)/F13 -> 4.14% | N13: Successful | O13: 2020-08-27 | R13: N
A14: 5 | B14: 2020-08-28 | D14: GSPL | E14: Buy | F14: 214 | G14: 199 | H14: 200 | I14: 235-245 | J14: Loss of Rs.14/- | K14: -14 | L14: -1.71 | M14: -7.34% | N14: Unsuccessful | O14: 2020-09-02 | R14: H
A15: 6 | B15: 2020-08-28 | D15: WHIRLPOOL | E15: Buy | F15: 2142.5 | G15: 1,980.00 | H15: 2,250.00 | I15: 2400-2500 | J15: Profit of Rs.107.5/- | K15: =H15-F15 -> 107.5 | L15: =(F15*-0.8)/100 -> -17.14 | M15: =(K15+L15)/F15 -> 4.22% | N15: Successful | O15: 2020-09-17 | R15: H
A16: 7 | B16: 2020-09-01 | D16: SUNPHARMA | E16: Buy | F16: 514-520 | G16: 487 | I16: 560-580 | J16: Open | R16: H
A17: 8 | B17: 2020-09-01 | D17: TATACHEM | E17: Buy | F17: 309 | G17: 290 | H17: 289.5 | I17: 340-350 | J17: Loss of Rs.19.5/- | K17: =H17-F17 -> -19.5 | L17: =(F17*-0.8)/100 -> -2.47 | M17: =(K17+L17)/F17 -> -7.11% | N17: Unsuccessful | O17: 2020-09-08 | R17: N
A18: 9 | B18: 2020-09-01 | D18: BHARTIARTL | E18: Buy | F18: 529 | G18: 490.00 | H18: =(551+487.5)/2 -> 519.25 | I18: 580-600 | J18: Loss of Rs.9.75/- | K18: =H18-F18 -> -9.75 | L18: =(F18*-0.45)/100 -> -2.38 | M18: =(K18+L18)/F18 -> -2.29% | N18: Unsuccessful | O18: 2020-09-14 | R18: H
A19: 10 | B19: 2020-09-02 | D19: NESTLEIND | E19: Buy | F19: 15900-16100 | G19: 15300 | I19: 17000-17500 | J19: Open | R19: H
A20: 11 | B20: 2020-09-02 | D20: MGL | E20: Buy<> | F20: 879.5 | G20: 825.00 | H20: 928.00 | I20: 975 | J20: Profit of Rs.48.5/- | K20: =H20-F20 -> 48.5 | L20: =(F20*-0.8)/100 -> -7.04 | M20: =(K20+L20)/F20 -> 4.71% | N20: Successful | O20: 2020-09-18 | R20: N
A21: 12 | B21: 2020-09-03 | D21: VINATIORGA | E21: Buy | F21: 1008 | G21: 950 | H21: 1,074.00 | I21: 1080-1100 | J21: Profit of Rs.66/- | K21: =H21-F21 -> 66 | L21: =(F21*-0.8)/100 -> -8.06 | M21: =(K21+L21)/F21 -> 5.75% | N21: Successful | O21: 2020-09-14 | R21: N
A22: 13 | B22: 2020-09-09 | D22: EXIDEIND | E22: Buy | F22: 156 | G22: 145.00 | H22: 165.00 | I22: 175 | J22: Profit of Rs.9/- | K22: 9 | L22: -1.25 | M22: 4.97% | N22: Successful | O22: 2020-09-16 | R22: N
A23: 14 | B23: 2020-09-14 | D23: JKLAKSHMI | E23: Buy | F23: 263.5 | G23: 248.00 | H23: 274.00 | I23: 290 | J23: Part Profit of Rs.10.50/- | K23: 10.5 | L23: -2.11 | M23: 3.18% | N23: Successful | O23: 2020-09-17 | R23: N
A24: 15 | B24: 2020-09-14 | D24: CESC | E24: Buy | F24: 636 | G24: 600 | H24: 680.00 | I24: 700 | J24: Profit of Rs.44/- | K24: =H24-F24 -> 44 | L24: =(F24*-0.8)/100 -> -5.09 | M24: =(K24+L24)/F24 -> 6.12% | N24: Successful | O24: 2020-09-15 | R24: N
A25: 16 | B25: 2020-09-14 | D25: GODFRYPHLP | E25: Buy | F25: 920-930 | G25: 870 | I25: 1020-1050 | J25: Open | R25: H
A26: 17 | B26: 2020-09-14 | D26: CHOLAFIN | E26: Buy | F26: 229.5 | G26: 217.00 | H26: 243.00 | I26: 250-255 | J26: Profit of Rs.13.5/- | K26: =H26-F26 -> 13.5 | L26: =(F26*-0.8)/100 -> -1.84 | M26: =(K26+L26)/F26 -> 5.08% | N26: Successful | O26: 2020-09-17 | R26: N
A27: 18 | B27: 2020-09-14 | D27: JKCEMENT | E27: Buy | F27: 1482.5 | G27: 1380 | H27: 1,543.00 | I27: 1650 | J27: Profit of Rs.60.5/- | K27: =H27-F27 -> 60.5 | L27: =(F27*-0.07)/100 -> -1.04 | M27: =(K27+L27)/F27 -> 4.01% | N27: Successful | O27: 2020-09-14 | R27: H
A28: 19 | B28: 2020-09-14 | D28: HAVELLS | E28: Buy | F28: 660-666 | G28: 630 | I28: 730 | J28: Open | R28: N
A29: 20 | B29: 2020-09-14 | D29: GREAVESCOT | E29: Buy | F29: 79-79.5 | G29: 74 | I29: 88-90 | J29: Open | R29: H
A30: 21 | B30: 2020-09-14 | D30: GULFOILLUB | E30: Buy | F30: 642.5 | G30: 599 | H30: 673.00 | I30: 700-720 | J30: Profit of Rs.30.5/- | K30: =H30-F30 -> 30.5 | L30: =(F30*-0.7)/100 -> -4.50 | M30: =(K30+L30)/F30 -> 4.05% | N30: Successful | O30: 2020-09-16 | R30: N
A31: 22 | B31: 2020-09-14 | D31: INDIACEM | E31: Buy | F31: 124 | G31: 115.00 | H31: 129.00 | I31: 140-145 | J31: Part Profit of Rs.5/- | K31: 5 | L31: =(F31*-0.8)/100 -> -0.99 | M31: 3.23% | N31: Successful | O31: 2020-09-17 | R31: H
A32: 23 | B32: 2020-09-17 | D32: SIEMENS | E32: Buy | F32: 1242-1252 | G32: 1180 | I32: 1350-1380 | J32: Open | R32: N
A33: 24 | B33: 2020-09-17 | D33: MCX | E33: Buy | F33: 1655 | G33: 1520 | H33: 1,742.50 | I33: 1850-1900 | J33: Profit of Rs.87.5/- | K33: =H33-F33 -> 87.5 | L33: =(F33*-0.07)/100 -> -1.16 | M33: =(K33+L33)/F33 -> 5.22% | N33: Successful | O33: 2020-09-17 | R33: H
A37: CLBS = Closing Basis ***
A38: Dividend adjusted <> | F38: Reinitiated $
A39: Part book {} | F39: Revised stoploss #
B41: Momentum Call
A42: Sr.no | B42: Date | D42: Company | E42: Rec | F42: Rec Price | G42: Stop Loss | H42: Call Closed At | I42: Target | J42: Remark | K42: Profit / Loss per Share/Lot | L42: All charges | M42: Net Gain / Loss % | N42: Status | O42: Closed Date
A43: 1 | B43: 2020-09-01 | D43: ICICIPRULI | E43: Sell | F43: 433 | G43: 443 | H43: 426.00 | I43: 415-410 | J43: Profit of Rs.7/- | K43: =+F43-H43 -> 7 | L43: =(F43*-0.07)/100 -> -0.30 | M43: =(K43+L43)/F43 -> 1.55% | N43: Successful | O43: 2020-09-01 | R43: H
A44: 2 | B44: 2020-09-01 | D44: HINDALCO | E44: Sell | F44: 191 | G44: 197 | H44: 195.00 | I44: 184-182 | J44: Loss of Rs. 4/- | K44: =F44-H44 -> -4 | L44: =(F44*-0.8)/100 -> -1.53 | M44: -2.89% | N44: Unsuccessful | O44: 2020-09-03 | R44: H
A45: 3 | B45: 2020-09-01 | D45: ULTRACEMCO | E45: Buy | F45: 3865 | G45: 3740 | H45: 3,930.00 | I45: 4050-4150 | J45: Profit of Rs.65/- | K45: =H45-F45 -> 65 | L45: =(F45*-0.07)/100 -> -2.71 | M45: =(K45+L45)/F45 -> 1.61% | N45: Successful | O45: 2020-09-01 | R45: H
A46: 4 | B46: 2020-09-02 | D46: CROMPTON | E46: Buy | F46: 267 | G46: 260 | H46: 260.00 | I46: 278 | J46: Loss of Rs. 7/- | K46: -7 | L46: =(F46*-0.8)/100 -> -2.14 | M46: -3.42% | N46: Unsuccessful | O46: 2020-09-03 | R46: N
A47: 5 | B47: 2020-09-02 | D47: RELAXO | E47: Buy | F47: 642 | G47: 625 | H47: 659.50 | I47: 670-680 | J47: Profit of Rs.17.5/- | K47: 17.5 | L47: =(F47*-0.8)/100 -> -5.14 | M47: 1.93% | N47: Successful | O47: 2020-09-04 | R47: H
A48: 6 | B48: 2020-09-02 | D48: LT | E48: Buy | F48: 948 | G48: 918 | H48: 969.50 | I48: 1000-1010 | J48: Profit of Rs.21.5/- | K48: =H48-F48 -> 21.5 | L48: =(F48*-0.8)/100 -> -7.58 | M48: =(K48+L48)/F48 -> 1.47% | N48: Successful | O48: 2020-09-03 | R48: H
A49: 7 | B49: 2020-09-04 | D49: TATASTEEL | E49: Sell | F49: 431.5 | G49: 446 | H49: 425.00 | I49: 415-410 | J49: Profit of Rs.6.5/- | K49: =+F49-H49 -> 6.5 | L49: =(F49*-0.07)/100 -> -0.30 | M49: 1.44% | N49: Successful | O49: 2020-09-04 | R49: H
A50: 8 | B50: 2020-09-04 | D50: HINDUNILVR | E50: Buy | F50: 2125 | G50: 2060 | H50: 2,135.00 | I50: 2220-2250 | J50: Profit of Rs.10/- | K50: =H50-F50 -> 10 | L50: =(F50*-0.8)/100 -> -17.00 | M50: -0.33% | N50: Neutral | O50: 2020-09-14 | R50: H
A51: 9 | B51: 2020-09-07 | D51: TATASTEEL | E51: Sell | F51: 425.5 | G51: 442 | H51: 418.50 | I51: 410-405 | J51: Profit of Rs.7/- | K51: =+F51-H51 -> 7 | L51: =(F51*-0.07)/100 -> -0.30 | M51: =(K51+L51)/F51 -> 1.58% | N51: Successful | O51: 2020-09-07 | R51: H
A52: 10 | B52: 2020-09-07 | D52: BHARATFORG | E52: Buy | F52: 491 | G52: 477 | H52: 477.00 | I52: 515-518 | J52: Loss of Rs. 14/- | K52: =H52-F52 -> -14 | L52: =(F52*-0.8)/100 -> -3.93 | M52: -3.65% | N52: Unsuccessful | O52: 2020-09-08 | R52: N
A53: 11 | B53: 2020-09-07 | D53: DLF | E53: Sell | F53: 155 | G53: 160 | H53: 152.00 | I53: 135 | J53: Profit of Rs.3/- | K53: =+F53-H53 -> 3 | L53: =(F53*-0.07)/100 -> -0.11 | M53: =(K53+L53)/F53 -> 1.87% | N53: Successful | O53: 2020-09-07 | R53: N
A54: 12 | B54: 2020-09-08 | D54: LT | E54: Buy | F54: 925-929 | G54: 900 | I54: 980-1000 | J54: Open | R54: H
A55: 13 | B55: 2020-09-08 | D55: MINDTREE | E55: Buy | F55: 1205 | G55: 1170 | H55: 1,170.00 | I55: 1270 | J55: Loss of Rs. 35/- | K55: =H55-F55 -> -35 | L55: =(F55*-0.8)/100 -> -9.64 | M55: =(K55+L55)/F55 -> -3.70% | N55: Unsuccessful | O55: 2020-09-10 | R55: N
A56: 14 | B56: 2020-09-09 | D56: HCLTECH | E56: Buy | F56: 714.5 | G56: 695 | H56: 726.00 | I56: 740 | J56: Profit of Rs.11.5/- | K56: =H56-F56 -> 11.5 | L56: =(F56*-0.07)/100 -> -0.50 | M56: =(K56+L56)/F56 -> 1.54% | N56: Successful | O56: 2020-09-09 | R56: H
A57: 15 | B57: 2020-09-09 | D57: ULTRACEMCO | E57: Buy | F57: 3825 | G57: 3710 | H57: 3,911.00 | I57: 3970-4000 | J57: Profit of Rs.86/- | K57: 86 | L57: =(F57*-0.8)/100 -> -30.60 | M57: 1.45% | N57: Successful | O57: 2020-09-10 | R57: H
A58: 16 | B58: 2020-09-11 | D58: DLF | E58: Sell | F58: 156.5 | G58: 162 | H58: 153.75 | I58: 147 | J58: Profit of Rs.2.75/- | K58: =+F58-H58 -> 2.75 | L58: =(F58*-0.07)/100 -> -0.11 | M58: 1.69% | N58: Successful | O58: 2020-09-11 | R58: N
A59: 17 | B59: 2020-09-11 | D59: IGL | E59: Buy | F59: 393.5 | G59: 384 | H59: 399.50 | I59: 410-415 | J59: Profit of Rs.6/- | K59: =H59-F59 -> 6 | L59: =(F59*-0.07)/100 -> -0.28 | M59: =(K59+L59)/F59 -> 1.45% | N59: Successful | O59: 2020-09-11 | R59: H
A60: 18 | B60: 2020-09-11 | D60: BPCL | E60: Buy | F60: 423-425 | G60: 409 | I60: 440-450 | J60: Open | R60: H
A61: 19 | B61: 2020-09-11 | D61: LUPIN | E61: Buy | F61: 963.5 | G61: 938 | H61: 986.00 | I61: 1000-1020 | J61: Profit of Rs.22.5/- | K61: =H61-F61 -> 22.5 | L61: =(F61*-0.8)/100 -> -7.71 | M61: =(K61+L61)/F61 -> 1.54% | N61: Successful | O61: 2020-09-15 | R61: N
A62: 20 | B62: 2020-09-14 | D62: COFORGE | E62: Buy | F62: 2080 | G62: 2030 | H62: 2,122.50 | I62: 2180-2200 | J62: Profit of Rs.42.5/- | K62: =H62-F62 -> 42.5 | L62: =(F62*-0.07)/100 -> -1.46 | M62: =(K62+L62)/F62 -> 1.97% | N62: Successful | O62: 2020-09-14 | R62: H
A63: 21 | B63: 2020-09-15 | D63: CEATLTD | E63: Buy | F63: 940 | G63: 900 | H63: 957.00 | I63: 1000 | J63: Profit of Rs.17/- | K63: 17 | L63: =(F63*-0.07)/100 -> -0.66 | M63: 1.74% | N63: Successful | O63: 2020-09-15 | R63: N
A64: 22 | B64: 2020-09-15 | D64: UBL | E64: Buy | F64: 1055 | G64: 1025 | H64: 1,025.00 | I64: 1100-1120 | J64: Loss of Rs. 30/- | K64: -30 | L64: =(F64*-0.8)/100 -> -8.44 | M64: -3.64% | N64: Unsuccessful | O64: 2020-09-18 | R64: H
A65: 23 | B65: 2020-09-15 | D65: HINDPETRO | E65: Buy | F65: 197.5-198.5 | G65: 192.5 | I65: 210 | J65: Open | R65: N
A66: 24 | B66: 2020-09-15 | D66: FINPIPE | E66: Buy | F66: 536 | G66: 518 | H66: 538.00 | I66: 570-580 | J66: Profit of Rs.2/- | K66: =H66-F66 -> 2 | L66: =(F66*-0.8)/100 -> -4.29 | M66: =(K66+L66)/F66 -> -0.43% | N66: Neutral | O66: 2020-09-16 | R66: H
A67: 25 | B67: 2020-09-15 | D67: IEX | E67: Buy | F67: 201.5 | G67: 195 | H67: 205.25 | I67: 210-212 | J67: Profit of Rs.3.75/- | K67: =H67-F67 -> 3.75 | L67: =(F67*-0.07)/100 -> -0.14 | M67: =(K67+L67)/F67 -> 1.79% | N67: Successful | O67: 2020-09-15 | R67: H
A68: 26 | B68: 2020-09-15 | D68: CUMMINSIND | E68: Buy | F68: 479 | G68: 468 | H68: 490.50 | I68: 500 | J68: Profit of Rs.11.5/- | K68: =H68-F68 -> 11.5 | L68: =(F68*-0.07)/100 -> -0.34 | M68: =(K68+L68)/F68 -> 2.33% | N68: Successful | O68: 2020-09-15 | R68: N
A69: 27 | B69: 2020-09-15 | D69: CENTURYTEX | E69: Buy | F69: 361 | G69: 350 | H69: 367.00 | I69: 380 | J69: Profit of Rs.6/- | K69: =H69-F69 -> 6 | L69: =(F69*-0.07)/100 -> -0.25 | M69: =(K69+L69)/F69 -> 1.59% | N69: Successful | O69: 2020-09-15 | R69: N
A70: 28 | B70: 2020-09-16 | D70: BEML | E70: Buy | F70: 651 | G70: 630 | H70: 630.00 | I70: 690 | J70: Loss of Rs. 21/- | K70: -21 | L70: =(F70*-0.8)/100 -> -5.21 | M70: -4.03% | N70: Unsuccessful | O70: 2020-09-17 | R70: N
A71: 29 | B71: 2020-09-16 | D71: DLF | E71: Sell | F71: 156 | G71: 160 | H71: 159.50 | I71: 145 | J71: Loss of Rs. 3.5/- | K71: =F71-H71 -> -3.5 | L71: =(F71*-0.07)/100 -> -0.11 | M71: =(K71+L71)/F71 -> -2.31% | N71: Unsuccessful | O71: 2020-09-16 | R71: N
A72: 30 | B72: 2020-09-16 | D72: JYOTHYLAB | E72: Buy | F72: 153-154 | G72: 149 | I72: 160-162 | J72: Open | R72: H
A73: 31 | B73: 2020-09-16 | D73: BAJAJCON | E73: Buy | F73: 186 | G73: 181 | H73: 191.50 | I73: 196 | J73: Profit of Rs.5.50/- | K73: =H73-F73 -> 5.5 | L73: =(F73*-0.8)/100 -> -1.49 | M73: =(K73+L73)/F73 -> 2.16% | N73: Successful | O73: 2020-09-17 | R73: N
A74: 32 | B74: 2020-09-18 | D74: ACC | E74: Sell | F74: 1410-1420 | G74: 1455 | I74: 1350-1330 | J74: Open | R74: H
A75: 33 | B75: 2020-09-18 | D75: TORNTPHARM | E75: Buy | F75: 2920-2940 | G75: 2870 | I75: 3050 | J75: Open | R75: H
A83: CLBS = Closing Basis *** | H83: *
A84: Dividend adjusted <> | F84: Reinitiated $
F85: Revised stoploss #
A87: Master Trade High Risk
A88: Sr.no | B88: Date | D88: Company | E88: Rec | F88: Rec Price | G88: Stop Loss | H88: Call Closed At | I88: Target | J88: Remark | K88: Profit / Loss per share | L88: All charges | M88: Gain / Loss per Lot | N88: Lot | O88: Status | P88: Closed Date
A89: 1 | B89: 2020-08-28 | D89: TCS SEP FUT | E89: Buy | F89: 2272 | G89: 2230 | H89: 2298.5 | I89: 2450 | J89: Profit of Rs.26.5/- | K89: =H89-F89 -> 26.5 | L89: =(H89*N89)*0.07% -> 482.69 | M89: =(K89*N89)-L89 -> 7467.32 | N89: 300 | O89: Successful | P89: 2020-09-03 | R89: N
A90: 2 | B90: 2020-09-01 | D90: NIFTY SEPT FUT | E90: Sell | F90: 11510 | G90: 11610 | H90: 11420 | I90: 11300-11250 | J90: Profit of Rs.90/- | K90: =F90-H90 -> 90 | L90: =(H90*N90)*0.07% -> 599.55 | M90: 6150.45 | N90: 75 | O90: Successful | P90: 2020-09-01 | R90: H
A91: 3 | B91: 2020-09-01 | D91: NIFTY SEPT FUT | E91: Sell | F91: 11525 | G91: 11650 | H91: 11445 | I91: 11300-11250 | J91: Profit of Rs.80/- | K91: 80 | L91: 600.86 | M91: 5399.14 | N91: 75 | O91: Successful | P91: 2020-09-01 | R91: H
A92: 4 | B92: 2020-09-02 | D92: NIFTY SEPT FUT | E92: Sell | F92: 11525 | G92: 11650 | H92: 11455 | I92: 11300-11250 | J92: Profit of Rs.70/- | K92: 70 | L92: 601.39 | M92: 4648.61 | N92: 75 | O92: Successful | P92: 2020-09-02 | R92: H
A93: 5 | B93: 2020-09-03 | D93: NIFTY SEPT FUT | E93: Sell | F93: 11590 | G93: 11710 | H93: 11520 | I93: 11400 | J93: Profit of Rs.70/- | K93: 70 | L93: 604.80 | M93: 4645.20 | N93: 75 | O93: Successful | P93: 2020-09-03 | R93: H
A94: 6 | B94: 2020-09-08 | D94: NIFTY SEPT FUT | E94: Sell | F94: 11415 | G94: 11540 | H94: 11355 | I94: 11300-11250 | J94: Profit of Rs.60/- | K94: 60 | L94: 596.14 | M94: 3903.86 | N94: 75 | O94: Successful | P94: 2020-09-08 | R94: H
A95: 7 | B95: 2020-09-10 | D95: NIFTY SEPT FUT | E95: Sell | F95: 11410 | G95: 11510 | H95: 11525 | I95: 11200 | J95: Loss of Rs.115/- | K95: -115 | L95: =(H95*N95)*0.07% -> 605.06 | M95: =(K95*N95)-L95 -> -9230.06 | N95: 75 | O95: Unsuccessful | P95: 2020-09-14 | R95: N
A96: 8 | B96: 2020-09-11 | D96: AMBUJACEM SEPT FUT | E96: Sell | F96: 213.75 | G96: 218 | H96: 211.75 | I96: 205 | J96: Profit of Rs.2/- | K96: 2 | L96: =(H96*N96)*0.07% -> 444.68 | M96: =(K96*N96)-L96 -> 5555.33 | N96: 3000 | O96: Successful | P96: 2020-09-12 | R96: H
A97: 9 | B97: 2020-09-15 | D97: NIFTY SEPT FUT | E97: Sell | F97: 11500 | G97: 11610 | H97: 11610 | I97: 11300 | J97: Loss of Rs.110/- | K97: =F97-H97 -> -110 | L97: 609.53 | M97: -8859.53 | N97: 75 | O97: Unsuccessful | P97: 2020-09-16 | R97: H
A98: 10 | B98: 2020-09-16 | D98: BANKNIFTY SEPT FUT | E98: Sell | F98: 22505 | G98: 22810 | H98: 22380 | I98: 22000-21900 | J98: Profit of Rs.125/- | K98: =F98-H98 -> 125 | L98: =(H98*N98)*0.07% -> 313.32 | M98: =(K98*N98)-L98 -> 2186.68 | N98: 20 | O98: Successful | P98: 2020-09-16 | R98: H
A99: 11 | B99: 2020-09-18 | D99: UBL SEPT FUT | E99: Buy | F99: 1043.5 | G99: 1025 | H99: 1025 | I99: 1080 | J99: Profit of Rs.18.5/- | K99: =H99-F99 -> -18.5 | L99: =(H99*N99)*0.07% -> 502.25 | M99: -13452.25 | N99: 700 | O99: Unsuccessful | P99: 2020-09-19 | R99: N
A100: 12 | B100: 2020-09-18 | D100: NIFTY SEPT FUT | E100: Sell | F100: 11560 | G100: 11650 | H100: 11475 | I100: 11350 | J100: Profit of Rs.85/- | K100: 85 | L100: =(H100*N100)*0.07% -> 602.44 | M100: =(K100*N100)-L100 -> 5772.56 | N100: 75 | O100: Successful | P100: 2020-09-19 | R100: H
A101: 13 | B101: 2020-09-18 | D101: APOLLOHOSP SEPT FUT | E101: Buy | F101: 1825-1830 | G101: 1795 | I101: 1890 | J101: Open | R101: N
A106: Master Trade Medium Risk
A107: Sr.no | B107: Date | D107: Company | E107: Rec | F107: Rec Price | G107: Stop Loss | H107: Call Closed At | I107: Target | J107: Remark | K107: Profit/ Loss per lot | L107: All charges | M107: Gain / Loss per Lot | N107: Lot | O107: Status | P107: Closed Date
A108: 1 | B108: 2020-09-01 | D108: NIFTY 11400 PE 03-SEP | E108: Buy | F108: 72 | G108: 35 | H108: 87 | I108: 150 | J108: Profit of Rs.15/- | K108: =H108-F108 -> 15 | L108: 100 | M108: =(K108*N108)-100 -> 1025 | N108: 75 | O108: Successful | P108: 2020-09-01 | R108: N
A109: 2 | B109: 2020-09-01 | D109: NIFTY 11400 PE 03-SEP | E109: Buy | F109: 47.50 | G109: 0 | H109: 63 | I109: 120 | J109: Profit of Rs.15.50/- | K109: 15.5 | L109: 100 | M109: 1062.5 | N109: 75 | O109: Successful | P109: 2020-09-01 | R109: N
A110: 3 | B110: 2020-09-02 | D110: NIFTY 11450 PE 03-SEP | E110: Buy | F110: 45 | H110: 57 | I110: 90 | J110: Profit of Rs.12/- | K110: =H110-F110 -> 12 | L110: 100 | M110: =(K110*N110)-100 -> 800 | N110: 75 | O110: Successful | P110: 2020-09-02 | R110: N
A111: 4 | B111: 2020-09-02 | D111: NIFTY 11500 PE 03-SEP | E111: Buy | F111: 37.5 | H111: 0 | I111: 80 | J111: Loss of Rs.37.5/- | K111: -37.5 | L111: 100 | M111: -2912.5 | N111: 75 | O111: Unsuccessful | P111: 2020-09-03 | R111: N
A112: 5 | B112: 2020-09-02 | D112: TCS 2300 CE SEP | E112: Buy | F112: 51 | G112: 35 | H112: 60 | I112: 75-85 | J112: Profit of Rs.9/- | K112: =H112-F112 -> 9 | L112: 100 | M112: =(K112*N112)-100 -> 2600 | N112: 300 | O112: Successful | P112: 2020-09-03 | R112: H
A113: 6 | B113: 2020-09-03 | D113: BHARTIARTL 570 CE | E113: Buy | F113: 10.75 | G113: 7.5 | H113: 12.75 | I113: 15-16 | J113: Profit of Rs.2/- | K113: 2 | L113: 100 | M113: 3602 | N113: 1851 | O113: Successful | P113: 2020-09-03 | R113: H
A114: 7 | B114: 2020-09-03 | D114: BHARTIARTL 570 CE | E114: Buy | F114: 10.8 | G114: 7.5 | H114: 7.5 | I114: 15-16 | J114: Loss of Rs.3.3/- | K114: =H114-F114 -> -3.3 | L114: 100 | M114: =(K114*N114)-100 -> -6208.3 | N114: 1851 | O114: Unsuccessful | P114: 2020-09-04 | R114: H
A115: 8 | B115: 2020-09-04 | D115: INFY 940 CE SEP | E115: Buy | F115: 20.5 | G115: 15.5 | H115: 22.4 | I115: 30 | J115: Profit of Rs.1.9/- | K115: 1.9 | L115: 100 | M115: 2180 | N115: 1200 | O115: Successful | P115: 2020-09-04 | R115: N
A116: 9 | B116: 2020-09-04 | D116: TCS 2300 CE SEP | E116: Buy | F116: 55 | G116: 37 | H116: 62 | I116: 75-85 | J116: Profit of Rs.7/- | K116: =H116-F116 -> 7 | L116: 100 | M116: =(K116*N116)-100 -> 2000 | N116: 300 | O116: Successful | P116: 2020-09-04 | R116: H
A117: 10 | B117: 2020-09-04 | D117: MARUTI 7000 PE SEP | E117: Buy | F117: 142.5 | G117: 95 | H117: 95 | I117: 200-250 | J117: Loss of Rs.47.5/- | K117: -47.5 | L117: 100 | M117: -4850 | N117: 100 | O117: Unsuccessful | P117: 2020-09-04 | R117: H
A118: 11 | B118: 2020-09-04 | D118: NIFTY 11200 PE 10-SEP | E118: Buy | F118: 46 | G118: 15 | H118: 61.5 | I118: 80-100 | J118: Profit of Rs.15.5/- | K118: =H118-F118 -> 15.5 | L118: 100 | M118: =(K118*N118)-100 -> 1062.5 | N118: 75 | O118: Successful | P118: 2020-09-04 | R118: H
A119: 12 | B119: 2020-09-07 | D119: NIFTY 11200 PE 10-SEP | E119: Buy | F119: 61.5 | G119: 25 | H119: 81 | I119: 100-120 | J119: Profit of Rs.19.5/- | K119: =H119-F119 -> 19.5 | L119: 100 | M119: =(K119*N119)-100 -> 1362.5 | N119: 75 | O119: Successful | P119: 2020-09-07 | R119: H
A120: 13 | B120: 2020-09-07 | D120: NIFTY 11200 PE 10-SEP | E120: Buy | F120: 60 | G120: 25 | H120: 30 | I120: 100-120 | J120: Loss of Rs.30/- | K120: -30 | L120: 100 | M120: -2350 | N120: 75 | O120: Unsuccessful | P120: 2020-09-08 | R120: H
A121: 14 | B121: 2020-09-08 | D121: NIFTY 11300 PE 10-SEP | E121: Buy | F121: 58 | G121: 18 | H121: 75 | I121: 100-120 | J121: Profit of Rs.17/- | K121: =H121-F121 -> 17 | L121: 100 | M121: =(K121*N121)-100 -> 1175 | N121: 75 | O121: Successful | P121: 2020-09-08 | R121: H
A122: 15 | B122: 2020-09-09 | D122: TCS 2380 CE SEP | E122: Buy | F122: 39 | G122: 23 | H122: 48 | I122: 70 | J122: Profit of Rs.9/- | K122: 9 | L122: 100 | M122: 2600 | N122: 300 | O122: Successful | P122: 2020-09-11 | R122: N
A123: 16 | B123: 2020-09-09 | D123: NIFTY 11000 PE 17-SEP | E123: Buy | F123: 60 | G123: 18 | H123: 18 | I123: 120-140 | J123: Loss of Rs.42/- | K123: =H123-F123 -> -42 | L123: 100 | M123: =(K123*N123)-100 -> -3250 | N123: 75 | O123: Unsuccessful | P123: 2020-09-11 | R123: H
A124: 17 | B124: 2020-09-11 | D124: NIFTY 11350 PE 17-SEP | E124: Buy | F124: 60 | G124: 18 | H124: 76 | I124: 120-140 | J124: Profit of Rs.16/- | K124: =H124-F124 -> 16 | L124: 100 | M124: =(K124*N124)-100 -> 1100 | N124: 75 | O124: Successful | P124: 2020-09-11 | R124: H
A125: 18 | B125: 2020-09-11 | D125: NIFTY 11350 PE 17-SEP | E125: Buy | F125: 59 | G125: 18 | H125: 71.5 | I125: 120-140 | J125: Profit of Rs.12.5/- | K125: =H125-F125 -> 12.5 | L125: 100 | M125: =(K125*N125)-100 -> 837.5 | N125: 75 | O125: Successful | P125: 2020-09-14 | R125: H
A126: 19 | B126: 2020-09-16 | D126: NIFTY 11500 PE 17-SEP | E126: Buy | F126: 42.5 | G126: 15 | H126: 15 | I126: 100 | J126: Loss of Rs.27.5/- | K126: -27.5 | L126: 100 | M126: -2162.5 | N126: 75 | O126: Unsuccessful | P126: 2020-09-16 | R126: N
A127: 20 | B127: 2020-09-16 | D127: DLF 150 PE SEP | E127: Buy | F127: 2.9 | G127: 1.4 | H127: 1.7 | I127: 5.0-6.0 | J127: Loss of Rs.1.2/- | K127: =H127-F127 -> -1.2 | L127: 100 | M127: =(K127*N127)-100 -> -4060 | N127: 3300 | O127: Unsuccessful | P127: 2020-09-16 | R127: H
A128: 21 | B128: 2020-09-18 | D128: NIFTY 11400 PE 24-SEP | E128: Buy | F128: 54-58 | I128: 120-140 | J128: Open | R128: H
A133: Techno -Funda (positional)
A134: Sr.no | B134: Date | D134: Company | E134: Rec | F134: Rec Price | G134: Stop Loss*** | H134: Call Closed At | I134: Target | J134: Remark | K134: Profit / Loss per Share/Lot | L134: All charges | M134: Net Gain / Loss % | N134: Status | O134: Closed Date
A135: 1 | B135: 2020-08-28 | D135: CCL | E135: Buy | F135: 267 | G135: 245 | H135: 243 | I135: 310-320 | J135: Loss of Rs.24/- | K135: =H135-F135 -> -24 | L135: =(F135*-0.8)/100 -> -2.14 | M135: =(K135+L135)/F135 -> -9.79% | N135: Unsuccessful | O135: 2020-09-09 | R135: H
A137: CLBS = Closing Basis *** | F137: Reinitiated $
A138: Dividend adjusted <> | F138: Revised stoploss #
B140: Intrday Call
A141: Sr.no | B141: Date | D141: Company | E141: Rec | F141: Rec Price | G141: Stop Loss | H141: Call Closed At | I141: Target | J141: Remark | K141: Profit / Loss per Share/Lot | L141: Gain / Loss per Lot | M141: Lot | N141: All charges | O141: Net Gain / Loss % | P141: Status | Q141: Closed Date
A142: 1 | B142: 2020-09-18 | D142: BAJAJFINSV SEPT FUT | E142: Sell | F142: 5967.5 | G142: 6040 | H142: 5,915.00 | I142: 5850 | J142: Profit of Rs.52.5/- | K142: =+F142-H142 -> 52.5 | L142: =(125*52.5)-N142 -> 6040.34 | M142: 125 | N142: =(F142*M142)*0.07% -> 522.16 | P142: Successful | Q142: 2020-09-01 | R142: H
A143: 2 | B143: 2020-09-18 | D143: DLF | E143: Sell | F143: 161.1 | G143: 165 | H143: 165.00 | I143: 184-182 | J143: Loss of Rs. 3.9/- | K143: =F143-H143 -> -3.9 | N143: =(H143*-0.07)/100 -> -0.12 | O143: =(K143+N143)/F143 -> -2.49% | P143: Unsuccessful | Q143: 2020-09-03 | R143: H
B147: Investment Idea
A148: Sr.no | B148: Date | D148: Company | E148: Rec | F148: Rec Price | G148: Point of Review | H148: Close Rate | I148: Target | J148: Remark | K148: Profit / Loss per Share | L148: Gain / Loss % | M148: Status | N148: Closed Date
A149: 1 | B149: 2013-11-01 | D149: L&T Finance Holding | E149: Accu | F149: 82.00 | G149: - | H149: 100 | I149: 100.00 | J149: Target Achieved | K149: =H149-F149 -> 18.00 | L149: =K149/F149 -> 21.95% | M149: Successful | N149: 2016-10-14
A150: 2 | B150: 2014-06-04 | D150: Finolex Inds | E150: Buy | F150: 257.00 | G150: - | H150: 300 | I150: 300.00 | J150: Target Achieved | K150: 43.00 | L150: 16.73% | M150: Successful | N150: 2014-07-02
A151: 3 | B151: 2014-07-08 | D151: JK Cement | E151: Buy | F151: 393.00 | G151: - | H151: 468 | I151: 468.00 | J151: Target Achieved | K151: 75.00 | L151: 19.08% | M151: Successful | N151: 2014-08-12
A152: 4 | B152: 2014-08-06 | D152: Finolex Cables | E152: Buy | F152: 205.00 | G152: - | H152: 275 | I152: 250.00 | J152: Target Achieved | K152: 70.00 | L152: 34.15% | M152: Successful | N152: 2014-11-19
A153: 5 | B153: 2014-09-04 | D153: Exide Inds | E153: Buy | F153: 162.00 | G153: - | H153: 190 | I153: 190.00 | J153: Target Achieved | K153: 28.00 | L153: 17.28% | M153: Successful | N153: 2015-01-02
A154: 6 | B154: 2014-09-04 | D154: Deepak Nitrite | E154: Buy | F154: 75.00 | G154: - | H154: 91.5 | I154: 95-100 | J154: Profit of Rs.16.50/- | K154: 16.50 | L154: 22.00% | M154: Successful | N154: 2014-11-11
A155: 7 | B155: 2014-10-01 | D155: Mercks | E155: Buy | F155: 850.00 | G155: - | H155: 982.5 | I155: 1050.00 | J155: Profit of Rs.132.50/- | K155: 132.50 | L155: 15.59% | M155: Successful | N155: 2015-02-04
A156: 8 | B156: 2014-10-01 | D156: Grindwell Norton | E156: Buy | F156: 475.00 | G156: - | H156: 515 | I156: 600.00 | J156: Profit of Rs.40/- | K156: 40.00 | L156: 8.42% | M156: Successful | N156: 2014-10-27
A157: 9 | B157: 2014-10-01 | D157: Snowman Logistics | E157: Buy | F157: 86.00 | G157: - | H157: 99 | I157: 140.00 | J157: Profit of Rs.13.00/- | K157: 13.00 | L157: 15.12% | M157: Successful | N157: 2014-10-27
A158: 10 | B158: 2014-10-14 | D158: Birla Corp | E158: Buy | F158: 496.60 | G158: - | H158: 621 | I158: 580.00 | J158: Target Achieved | K158: 124.40 | L158: 25.05% | M158: Successful | N158: 2016-08-23
A159: 11 | B159: 2014-10-14 | D159: Ultratech Cem | E159: Buy | F159: 2481.90 | G159: - | H159: 2840 | I159: 2870.00 | J159: Profit of Rs.358.10/- | K159: 358.10 | L159: 14.43% | M159: Successful | N159: 2015-01-13
A160: 12 | B160: 2014-10-16 | D160: Sintex Inds | E160: Buy | F160: 84.50 | G160: - | H160: 93 | I160: 110.00 | J160: Profit of Rs.8.50/- | K160: 8.50 | L160: 10.06% | M160: Successful | N160: 2014-10-27
A161: 13 | B161: 2014-10-16 | D161: HSIL | E161: Buy | F161: 401.00 | G161: - | H161: 428 | I161: 450.00 | J161: Profit of Rs.27.00/- | K161: 27.00 | L161: 6.73% | M161: Successful | N161: 2015-01-16
A162: 14 | B162: 2014-10-16 | D162: Eveready Inds | E162: Buy | F162: 101.00 | G162: - | H162: 112 | I162: 120.00 | J162: Profit of Rs.11.00/- | K162: 11.00 | L162: 10.89% | M162: Successful | N162: 2014-10-27
A163: 15 | B163: 2014-11-11 | D163: Pennar Inds | E163: Buy | F163: 59.00 | G163: - | H163: 76 | I163: 76.00 | J163: Target Achieved | K163: 17.00 | L163: 28.81% | M163: Successful | N163: 2017-10-24
A164: 16 | B164: 2014-11-11 | D164: Snowman Logistics | E164: Buy | F164: 99.00 | G164: - | H164: 120 | I164: 120.00 | J164: Profit of Rs.21/- | K164: 21.00 | L164: 21.21% | M164: Successful | N164: 2014-11-17
A165: 17 | B165: 2014-11-13 | D165: Dharamsi Morarji Chem | E165: Buy | F165: 22.00 | G165: - | H165: 33.55 | I165: 32.00 | J165: Profit of Rs 11.55/- | K165: 11.55 | L165: 52.50% | M165: Successful | N165: 2015-07-03
A166: 18 | B166: 2014-12-03 | D166: Tatachem | E166: Buy | F166: 440.00 | G166: - | H166: 520 | I166: 520.00 | J166: Profit of Rs 80.00/- | K166: 80.00 | L166: 18.18% | M166: Successful | N166: 2015-07-23
A167: 19 | B167: 2014-12-03 | D167: Advanta | E167: Buy | F167: 360.00 | G167: - | H167: 427 | I167: 425.00 | J167: Profit of Rs.67.00/- | K167: 67.00 | L167: 18.61% | M167: Successful | N167: 2015-02-23
A168: 20 | B168: 2015-01-08 | D168: GDL | E168: Buy | F168: 360.00 | G168: - | H168: 455 | I168: 420.00 | J168: Profit of Rs.95.00/- | K168: 95.00 | L168: 26.39% | M168: Successful | N168: 2015-01-20
A169: 21 | B169: 2015-01-08 | D169: NRB Bearing | E169: Buy | F169: 130.00 | H169: 175.5 | I169: 165.00 | J169: Profit of Rs 45.50/- | K169: 45.50 | L169: 35.00% | M169: Successful | N169: 2017-12-19
A170: 22 | B170: 2015-02-05 | D170: GSFC | E170: Accu | F170: 98.00 | H170: 120 | I170: 120.00 | J170: Target Achieved | K170: 22.00 | L170: 22.45% | M170: Successful | N170: 2017-01-18
A171: 23 | B171: 2015-02-05 | D171: Sundrmfast | E171: Accu | F171: 196.00 | H171: 262 | I171: 255.00 | J171: Target Achieved | K171: 66.00 | L171: 33.67% | M171: Successful | N171: 2016-08-17
A172: 24 | B172: 2015-03-04 | D172: GPPL | E172: Accu | F172: 235 | H172: 77.00 | I172: 280-285 | J172: Loss of Rs.158/- | K172: -158.00 | L172: -67.23% | M172: Unsuccessful | N172: 2019-02-26
A173: 25 | B173: 2015-03-04 | D173: ORIENTCEM | E173: Accu | F173: 185.00 | H173: 224 | I173: 220-225 | J173: Target Achieved | K173: 39.00 | L173: 21.08% | M173: Successful | N173: 2016-10-04
A174: 26 | B174: 2015-03-27 | D174: PFS | E174: Accu | F174: 49.5 | H174: 15.85 | I174: 67.00 | J174: Loss of Rs.33.65/- | K174: -33.65 | L174: -68% | M174: Unsuccessful | N174: 2019-06-11
A175: 27 | B175: 2015-03-30 | D175: Walchandnagar Ind Ltd | E175: Accu | F175: 183.50 | H175: 219 | I175: 218.00 | J175: Profit of Rs.35.50/- | K175: 35.50 | L175: 19.35% | M175: Successful | N175: 2015-04-09
A176: 28 | B176: 2015-04-20 | D176: Kalpataru Power Transmission Ltd | E176: Accu | F176: =(227+237)/2 -> 232.00 | H176: 298 | I176: 298.00 | J176: Target Achieved | K176: 66.00 | L176: 28.45% | M176: Successful | N176: 2017-03-29
A177: 29 | B177: 2015-05-04 | D177: Mastek Ltd | E177: Buy | F177: 385.00 | H177: =212.5+331 -> 543.5 | I177: 510.00 | J177: Profit of Rs 158.50/- | K177: 158.50 | L177: 41.17% | M177: Successful | N177: 2015-08-19
A178: 30 | B178: 2015-05-04 | D178: Suprajit Eng | E178: Buy | F178: 115.50 | H178: 146 | I178: 142.00 | J178: Profit of Rs 30.50/- | K178: 30.50 | L178: 26.41% | M178: Successful | N178: 2015-07-17
A179: 31 | B179: 2015-05-27 | D179: TCI | E179: Buy | F179: 237.50 | H179: 279.5 | I179: 278.00 | J179: Target Achieved | K179: 42.00 | L179: 17.68% | M179: Successful | N179: 2015-08-06
A180: 32 | B180: 2015-06-19 | D180: HSIL | E180: Accu | F180: 340.00 | H180: 448 | I180: 448.00 | J180: Target Achieved | K180: 108.00 | L180: 31.76% | M180: Successful | N180: 2017-10-10
A181: 33 | B181: 2015-07-06 | D181: Capital First | E181: Accu | F181: 390.00 | H181: 460 | I181: 460.00 | J181: Target Achieved | K181: =H181-F181 -> 70.00 | L181: =K181/F181 -> 17.95% | M181: Successful | N181: 2016-04-18
A182: 34 | B182: 2015-07-10 | D182: Dolphin OffShore | E182: Accu | F182: 122.5 | H182: 61.00 | I182: 172.00 | J182: Loss of Rs.61.50/- | K182: -61.50 | L182: -50.20% | M182: Unsuccessful | N182: 2018-08-21
A183: 35 | B183: 2015-08-03 | D183: Allcargo logistics | E183: Accu | F183: 297.50 | H183: 350 | I183: 360.00 | J183: Profit of Rs 52.50/- | K183: 52.50 | L183: 17.65% | M183: Successful | N183: 2015-08-16
A184: 36 | B184: 2015-08-03 | D184: Camline Fine | E184: Accu | F184: 115.50 | H184: 149 | I184: 140.00 | J184: Profit of Rs 33.50/- | K184: 33.50 | L184: 29.00% | M184: Successful | N184: 2017-01-05
A185: 37 | B185: 2015-09-04 | D185: TCI | E185: Accu | F185: 226.00 | H185: 292 | I185: 292.00 | J185: Target Achieved | K185: 66.00 | L185: 29.20% | M185: Successful | N185: 2015-10-09
A186: 38 | B186: 2015-09-07 | D186: Kalpataru Power Transmission Ltd | E186: Accu | F186: 232.50 | H186: 312.5 | I186: 310.00 | J186: Target Achieved | K186: 80.00 | L186: 34.41% | M186: Successful | N186: 2017-03-29
A187: 39 | B187: 2015-09-21 | D187: LLOYD ELECTRIC & ENG LTD | E187: Accu | F187: 196.50 | H187: 238 | I187: 238.00 | J187: Target Achieved | K187: 41.50 | L187: 21.12% | M187: Successful | N187: 2015-10-14
A188: 40 | B188: 2015-09-24 | D188: L&T Finance Holding | E188: Accu | F188: 65.00 | H188: 82 | I188: 82.00 | J188: Target Achieved | K188: 17.00 | L188: 26.15% | M188: Successful | N188: 2016-07-27
A189: 41 | B189: 2015-10-14 | D189: KEC International ltd | E189: Accu | F189: 144.00 | H189: 182.5 | I189: 181.00 | J189: Target Achieved | K189: 38.50 | L189: 26.74% | M189: Successful | N189: 2017-03-23
A190: 42 | B190: 2015-10-14 | D190: Gruh Finance | E190: Accu | F190: 264.00 | H190: 311 | I190: 311.00 | J190: Target Achieved | K190: 47.00 | L190: 17.80% | M190: Successful | N190: 2016-08-22
A191: 43 | B191: 2015-11-10 | D191: Pidilitind | E191: Buy | F191: 549.50 | H191: 630 | I191: 630.00 | J191: Target Achieved | K191: 80.50 | L191: 14.65% | M191: Successful | N191: 2016-02-19
A192: 44 | B192: 2015-12-04 | D192: Zensar Technology | E192: Accu | F192: 1027.50 | H192: 1315 | I192: 1250.00 | J192: Target Achieved | K192: 287.50 | L192: 27.98% | M192: Successful | N192: 2018-05-24
A193: 45 | B193: 2015-12-29 | D193: Vinati Organics Ltd | E193: Accu | F193: 465.00 | H193: 540 | I193: 540.00 | J193: Target Achieved | K193: 75.00 | L193: 16.13% | M193: Successful | N193: 2016-06-09
A194: 46 | B194: 2016-01-11 | D194: GSFC | E194: Buy | F194: 81.00 | H194: 110 | I194: 110.00 | J194: Target Achieved | K194: 29.00 | L194: 35.80% | M194: Successful | N194: 2017-01-10
A195: 47 | B195: 2016-01-13 | D195: SSWL | E195: Buy | F195: 417.50 | H195: 547 | I195: 535.00 | J195: Target Achieved | K195: 129.50 | L195: 31.02% | M195: Successful | N195: 2016-07-27
A196: 48 | B196: 2016-02-08 | D196: Persistent System Ltd | E196: Accu | F196: 650.00 | H196: 800 | I196: 800.00 | J196: Target Achieved | K196: 150.00 | L196: 23.08% | M196: Successful | N196: 2018-02-23
A197: 49 | B197: 2016-03-04 | D197: UPL | E197: Accu | F197: 437.50 | H197: 504.5 | I197: 522.00 | J197: Profit of Rs.67/- | K197: 67.00 | L197: 15.31% | M197: Successful | N197: 2016-04-20
A198: 50 | B198: 2016-03-09 | D198: Ashoka Buildcon Ltd | E198: Accu | F198: 189.50 | H198: 218 | I198: 218.00 | J198: Target Achieved | K198: 28.50 | L198: 15.04% | M198: Successful | N198: 2017-10-26
A199: 51 | B199: 2016-04-11 | D199: PTC INDIA FIN SERV LTD | E199: Accu | F199: 36.5 | H199: 15.85 | I199: 60.00 | J199: Loss of Rs.20.65/- | K199: -20.65 | L199: -56.58% | M199: Unsuccessful | N199: 2019-06-11
A200: 52 | B200: 2016-04-12 | D200: CAMLINFINE $ | E200: Accu | F200: 93.00 | H200: 149 | I200: 140.00 | J200: Profit of Rs 56/- | K200: 56.00 | L200: 60.22% | M200: Successful | N200: 2017-01-05
A201: 53 | B201: 2016-04-12 | D201: Greaves Cotton Ltd. | E201: Accu | F201: 130.00 | H201: 150 | I201: 150-155 | J201: Target Achieved | K201: 20.00 | L201: 15.38% | M201: Successful | N201: 2016-07-13
A202: 54 | B202: 2016-04-13 | D202: DHFL | E202: Accu | F202: 196.00 | H202: 299 | I202: 299.00 | J202: Target Achieved | K202: 103.00 | L202: 52.55% | M202: Successful | N202: 2016-09-07
A203: 55 | B203: 2016-04-13 | D203: Magma | E203: Accu | F203: 88.00 | H203: 103 | I203: 103.00 | J203: Target Achieved | K203: 15.00 | L203: 17.05% | M203: Successful | N203: 2016-06-09
A204: 56 | B204: 2016-05-02 | D204: KEC International ltd $ | E204: Accu | F204: 127.50 | H204: 148 | I204: 148-150 | J204: Target Achieved | K204: =H204-F204 -> 20.50 | L204: =K204/F204 -> 16.08% | M204: Successful | N204: 2016-07-13
A205: 57 | B205: 2016-05-03 | D205: Mindtree | E205: Accu | F205: 675.00 | H205: 815 | I205: 790-800 | J205: Target Achieved | K205: =H205-F205 -> 140.00 | L205: =K205/F205 -> 20.74% | M205: Successful | N205: 2018-02-23
A206: 58 | B206: 2016-06-01 | D206: Atulauto | E206: Accu | F206: 500 | H206: 232.50 | I206: 565-570 | J206: Loss of Rs.267.50 /- | K206: =H206-F206 -> -267.50 | L206: =K206/F206 -> -53.50% | M206: Unsuccessful | N206: 2019-09-27
A207: 59 | B207: 2016-06-06 | D207: TRITURBINE | E207: Accu | F207: 110.00 | H207: 126.5 | I207: 125.00 | J207: Profit of Rs.16.50/- | K207: =H207-F207 -> 16.50 | L207: =K207/F207 -> 15.00% | M207: Successful | N207: 2016-07-01
A208: 60 | B208: 2016-06-17 | D208: Pennar Industries Ltd | E208: Accu | F208: 44.00 | H208: 69.5 | I208: 69.50 | J208: Profit of Rs.25.50/- | K208: =H208-F208 -> 25.50 | L208: =K208/F208 -> 57.95% | M208: Successful | N208: 2017-08-30
A209: 61 | B209: 2016-06-28 | D209: EVEREADY | E209: Accu | F209: 262.50 | H209: 340 | I209: 333.00 | J209: Profit of Rs.77.50/- | K209: 77.50 | L209: 29.52% | M209: Successful | N209: 2017-10-09
A210: 62 | B210: 2016-06-28 | D210: FIEMIND | E210: Accu | F210: 840.00 | H210: 1230 | I210: 1230.00 | J210: Target Achieved | K210: 390.00 | L210: 46.43% | M210: Successful | N210: 2016-10-06
A211: 63 | B211: 2016-07-05 | D211: Bajaj Corp Ltd | E211: Accu | F211: 395 | H211: =(468.5+342.5)/2 -> 405.50 | I211: 510.00 | J211: Profit of Rs.10.50/- | K211: =H211-F211 -> 10.50 | L211: =K211/F211 -> 3% | M211: Neutral | N211: 2019-05-21
A212: 64 | B212: 2016-08-02 | D212: GPPL $ | E212: Buy | F212: =169.5-12.8 -> 156.7 | H212: 77.00 | I212: 198-200 | J212: Loss of Rs.79.7/- | K212: -79.70 | L212: -50.86% | M212: Unsuccessful | N212: 2019-02-26
A213: 65 | B213: 2016-08-04 | D213: WONDERLA HOLIDAYS LTD | E213: Accu | F213: 400 | H213: 305.00 | I213: 475.00 | J213: Loss of Rs.95/- | K213: -95.00 | L213: -23.75% | M213: Unsuccessful | N213: 2019-05-21
A214: 66 | B214: 2016-08-11 | D214: CAMLINFINE | E214: Accu | F214: 86.50 | H214: 130 | I214: 130.00 | J214: Profit of Rs.43.50/- | K214: 43.50 | L214: 50.29% | M214: Successful | N214: 2017-12-22
A215: 67 | B215: 2016-08-18 | D215: GRANULES | E215: Accu | F215: 133.5 | H215: 126.50 | I215: 178.00 | J215: Exit | K215: -7.00 | L215: -5.24% | M215: Unsuccessful | N215: 2016-09-02
A216: 68 | B216: 2016-08-31 | D216: VA TECH WABAG | E216: Accu | F216: 560.00 | H216: 725 | I216: 725.00 | J216: Target Achieved | K216: 165.00 | L216: 29.46% | M216: Successful | N216: 2016-03-27
A217: 69 | B217: 2016-09-01 | D217: SKIPPER LIMITED | E217: Accu | F217: 160.50 | H217: 210 | I217: 210.00 | J217: Target Achieved | K217: 49.50 | L217: 30.84% | M217: Successful | N217: 2017-05-16
A218: 70 | B218: 2016-10-03 | D218: IFBIND | E218: Accu | F218: 430.00 | H218: 596 | I218: 575.00 | J218: Profit of Rs.166/- | K218: 166.00 | L218: 38.60% | M218: Successful | N218: 2017-02-03
A219: 71 | B219: 2016-10-14 | D219: ASIANTILES | E219: Accu | F219: 280.00 | H219: 345 | I219: 345.00 | J219: Target Achieved | K219: =H219-F219 -> 65.00 | L219: =K219/F219 -> 23.21% | M219: Successful | N219: 2017-03-20
A220: 72 | B220: 2016-10-14 | D220: DEEPIND | E220: Accu | F220: 245.00 | H220: 325.5 | I220: 330.00 | J220: Profit of Rs.80.5/- | K220: 80.50 | L220: =K220/F220 -> 32.86% | M220: Successful | N220: 2017-02-03
A221: 73 | B221: 2016-10-17 | D221: DCBBANK | E221: Accu | F221: 125.00 | H221: 160 | I221: 160.00 | J221: Target Achieved | K221: 35.00 | L221: 28.00% | M221: Successful | N221: 2017-03-09
A222: 74 | B222: 2016-10-17 | D222: ORIENTREF | E222: Accu | F222: 114.00 | H222: 145 | I222: 145.00 | J222: Target Achieved | K222: 31.00 | L222: =K222/F222 -> 27.19% | M222: Successful | N222: 2017-05-04
A223: 75 | B223: 2016-10-17 | D223: GANECOS | E223: Accu | F223: 212.00 | H223: 280 | I223: 276.00 | J223: Profit of Rs.68/- | K223: 68.00 | L223: =K223/F223 -> 32.08% | M223: Successful | N223: 2017-05-03
A224: 76 | B224: 2016-11-04 | D224: NBCC | E224: Accu | F224: 155.00 | H224: 210 | I224: 210.00 | J224: Profit of Rs.55/- | K224: 55.00 | L224: =K224/F224 -> 35.48% | M224: Successful | N224: 2017-07-28
A225: 77 | B225: 2016-12-06 | D225: PRECAM | E225: Accu | F225: 150.5 | H225: 72.50 | I225: 174.00 | J225: Loss of Rs.78/- | K225: -78.00 | L225: -51.83% | M225: Unsuccessful | N225: 2018-08-21
A226: 78 | B226: 2016-12-08 | D226: INFRATEL | E226: Accu | F226: 380.00 | H226: 478 | I226: 468.00 | J226: Target Achieved | K226: =H226-F226 -> 98.00 | L226: =K226/F226 -> 25.79% | M226: Successful | N226: 2017-10-17
A227: 79 | B227: 2016-12-30 | D227: GODREJPROP | E227: Accu | F227: 305.00 | H227: 375 | I227: 375.00 | J227: Target Achieved | K227: =H227-F227 -> 70.00 | L227: =K227/F227 -> 22.95% | M227: Successful | N227: 2017-02-02
A228: 80 | B228: 2017-01-04 | D228: DEEPAKNTR | E228: Accu | F228: 99.50 | H228: 158 | I228: 158.00 | J228: Target Achieved | K228: =H228-F228 -> 58.50 | L228: =K228/F228 -> 58.79% | M228: Successful | N228: 2017-06-12
A229: 81 | B229: 2017-01-04 | D229: DEEPAKNTR | E229: Accu | F229: 99.50 | H229: 158 | I229: 158.00 | J229: Target Achieved | K229: 58.50 | L229: 58.79% | M229: Successful | N229: 2017-06-12
... 75 more rows

Sheet Sheet2 (hidden)
A1: SYMBOL | B1: SERIES | C1: OPEN | D1: HIGH | E1: LOW | F1: CLOSE | G1: LAST | H1: PREVCLOSE | I1: TOTTRDQTY | J1: TOTTRDVAL | K1: TIMESTAMP | L1: TOTALTRADES | M1: ISIN | N1: ISIN
A2: 20MICRONS | B2: EQ | C2: 27.9 | D2: 29 | E2: 25.9 | F2: 26.2 | G2: 25.9 | H2: 27.5 | I2: 80527 | J2: 2193820.55 | K2: 2020-04-08 | L2: 1099 | M2: INE144J01027
A3: 21STCENMGM | B3: EQ | C3: 10.15 | D3: 10.5 | E3: 10.1 | F3: 10.4 | G3: 10.5 | H3: 10.3 | I3: 3205 | J3: 32728.25 | K3: 2020-04-08 | L3: 28 | M3: INE253B01015
A4: 3IINFOTECH | B4: EQ | C4: 1.35 | D4: 1.35 | E4: 1.2 | F4: 1.25 | G4: 1.25 | H4: 1.35 | I4: 2793301 | J4: 3578364.95 | K4: 2020-04-08 | L4: 46535 | M4: INE748C01020
A5: 3MINDIA | B5: EQ | C5: 18950 | D5: 19170 | E5: 18155.05 | F5: 18318.2 | G5: 18270 | H5: 18755.7 | I5: 9926 | J5: 183605811.2 | K5: 2020-04-08 | L5: 4453 | M5: INE470A01017
A6: 3PLAND | B6: EQ | C6: 3.7 | D6: 3.85 | E6: 3.7 | F6: 3.85 | G6: 3.85 | H6: 3.7 | I6: 406 | J6: 1557.85 | K6: 2020-04-08 | L6: 9 | M6: INE105C01023
A7: 5PAISA | B7: EQ | C7: 119.95 | D7: 134 | E7: 115 | F7: 123.35 | G7: 120.5 | H7: 116.4 | I7: 6500 | J7: 793277.05 | K7: 2020-04-08 | L7: 265 | M7: INE618L01018
A8: 63MOONS | B8: EQ | C8: 50.7 | D8: 55.45 | E8: 50.7 | F8: 53.7 | G8: 53.55 | H8: 50.7 | I8: 72221 | J8: 3890984.7 | K8: 2020-04-08 | L8: 3078 | M8: INE111B01023
A9: A2ZINFRA | B9: EQ | C9: 3.15 | D9: 3.25 | E9: 3.1 | F9: 3.15 | G9: 3.15 | H9: 3.15 | I9: 116011 | J9: 367778.85 | K9: 2020-04-08 | L9: 227 | M9: INE619I01012
A10: AARTIDRUGS | B10: EQ | C10: 627 | D10: 669.3 | E10: 605 | F10: 631.6 | G10: 625 | H10: 607.85 | I10: 75970 | J10: 48223549.15 | K10: 2020-04-08 | L10: 5720 | M10: INE767A01016
A11: AARTIIND | B11: EQ | C11: 839.95 | D11: 909.8 | E11: 818 | F11: 854.9 | G11: 864 | H11: 830.7 | I11: 477805 | J11: 419092386.9 | K11: 2020-04-08 | L11: 50045 | M11: INE769A01020
A12: AARVEEDEN | B12: EQ | C12: 8.95 | D12: 9.25 | E12: 7.85 | F12: 8.35 | G12: 8.45 | H12: 8.1 | I12: 9251 | J12: 77100.1 | K12: 2020-04-08 | L12: 94 | M12: INE273D01019
A13: AAVAS | B13: EQ | C13: 1101 | D13: 1183 | E13: 1101 | F13: 1135.2 | G13: 1137 | H13: 1142.35 | I13: 24179 | J13: 28073100.85 | K13: 2020-04-08 | L13: 3631 | M13: INE216P01012
A14: ABAN | B14: EQ | C14: 15.7 | D14: 16.2 | E14: 15.7 | F14: 16.2 | G14: 16.2 | H14: 15.45 | I14: 37609 | J14: 608439.6 | K14: 2020-04-08 | L14: 288 | M14: INE421A01028
A15: ABB | B15: EQ | C15: 935 | D15: 965 | E15: 910 | F15: 930.7 | G15: 928 | H15: 931.35 | I15: 87757 | J15: 82358527.9 | K15: 2020-04-08 | L15: 4699 | M15: INE117A01022
A16: ABBOTINDIA | B16: EQ | C16: 16799.45 | D16: 18250 | E16: 16750 | F16: 17481.1 | G16: 17488 | H16: 16699.7 | I16: 57991 | J16: 1023745502 | K16: 2020-04-08 | L16: 21022 | M16: INE358A01014
A17: ABCAPITAL | B17: EQ | C17: 45 | D17: 47.9 | E17: 44.25 | F17: 45.6 | G17: 45.7 | H17: 45.1 | I17: 1253267 | J17: 57952493.6 | K17: 2020-04-08 | L17: 7317 | M17: INE674K01013
A18: ABFRL | B18: EQ | C18: 148 | D18: 152.8 | E18: 146.75 | F18: 149 | G18: 148 | H18: 149.85 | I18: 416099 | J18: 62371769.1 | K18: 2020-04-08 | L18: 10148 | M18: INE647O01011
A19: ABSLNN50ET | B19: EQ | C19: 244 | D19: 248 | E19: 210 | F19: 235 | G19: 235 | H19: 244 | I19: 56 | J19: 12779.4 | K19: 2020-04-08 | L19: 13 | M19: INF209KB1B87
A20: ACC | B20: EQ | C20: 1000 | D20: 1029.9 | E20: 941.25 | F20: 956.05 | G20: 958 | H20: 1009.95 | I20: 2153627 | J20: 2101320389 | K20: 2020-04-08 | L20: 79728 | M20: INE012A01025
A21: ACCELYA | B21: EQ | C21: 874.3 | D21: 886 | E21: 862 | F21: 880.45 | G21: 879.95 | H21: 874.3 | I21: 10865 | J21: 9557704.55 | K21: 2020-04-08 | L21: 923 | M21: INE793A01012
A22: ACE | B22: EQ | C22: 32.75 | D22: 35.2 | E22: 32.55 | F22: 33.25 | G22: 33.35 | H22: 32.95 | I22: 244708 | J22: 8296578.4 | K22: 2020-04-08 | L22: 2925 | M22: INE731H01025
A23: ADANIENT | B23: EQ | C23: 136.85 | D23: 147.15 | E23: 134.9 | F23: 138.1 | G23: 137.5 | H23: 138.15 | I23: 3237290 | J23: 456492273.1 | K23: 2020-04-08 | L23: 23696 | M23: INE423A01024
A24: ADANIGAS | B24: EQ | C24: 93.9 | D24: 96.35 | E24: 90.5 | F24: 90.8 | G24: 90.65 | H24: 94 | I24: 1888606 | J24: 176837924.4 | K24: 2020-04-08 | L24: 14517 | M24: INE399L01023
A25: ADANIGREEN | B25: EQ | C25: 166.85 | D25: 166.85 | E25: 162 | F25: 166.45 | G25: 166.85 | H25: 158.95 | I25: 702014 | J25: 116248737 | K25: 2020-04-08 | L25: 10187 | M25: INE364U01010
A26: ADANIPORTS | B26: EQ | C26: 248 | D26: 255.85 | E26: 242.75 | F26: 250.85 | G26: 249.7 | H26: 248.1 | I26: 6897883 | J26: 1724830525 | K26: 2020-04-08 | L26: 81499 | M26: INE742F01042
A27: ADANIPOWER | B27: EQ | C27: 28.65 | D27: 31.15 | E27: 27.5 | F27: 28.95 | G27: 28.85 | H27: 28.8 | I27: 12308064 | J27: 361987996.9 | K27: 2020-04-08 | L27: 23153 | M27: INE814H01011
A28: ADANITRANS | B28: EQ | C28: 196.65 | D28: 202 | E28: 190 | F28: 193.65 | G28: 193.5 | H28: 198.3 | I28: 306320 | J28: 59783940.3 | K28: 2020-04-08 | L28: 4236 | M28: INE931S01010
A29: ADFFOODS | B29: EQ | C29: 187.85 | D29: 192.25 | E29: 184 | F29: 187.7 | G29: 187.3 | H29: 183.1 | I29: 22107 | J29: 4185556.05 | K29: 2020-04-08 | L29: 773 | M29: INE982B01019
A30: ADHUNIKIND | B30: EQ | C30: 13.3 | D30: 13.3 | E30: 13.3 | F30: 13.3 | G30: 13.3 | H30: 12.7 | I30: 5518 | J30: 73389.4 | K30: 2020-04-08 | L30: 21 | M30: INE452L01012
A31: ADLABS | B31: EQ | C31: 2.75 | D31: 2.85 | E31: 2.75 | F31: 2.85 | G31: 2.85 | H31: 2.75 | I31: 19360 | J31: 54965.35 | K31: 2020-04-08 | L31: 72 | M31: INE172N01012
A32: ADORWELD | B32: EQ | C32: 195.7 | D32: 201.9 | E32: 193.95 | F32: 195.1 | G32: 194.45 | H32: 196.75 | I32: 1438 | J32: 283768.75 | K32: 2020-04-08 | L32: 94 | M32: INE045A01017
A33: ADROITINFO | B33: EQ | C33: 5.5 | D33: 5.7 | E33: 5.45 | F33: 5.7 | G33: 5.7 | H33: 5.7 | I33: 691 | J33: 3857 | K33: 2020-04-08 | L33: 25 | M33: INE737B01033
A34: ADSL | B34: EQ | C34: 13.05 | D34: 13.2 | E34: 12.4 | F34: 12.5 | G34: 12.45 | H34: 12.7 | I34: 16203 | J34: 205559.25 | K34: 2020-04-08 | L34: 143 | M34: INE102I01027
A35: ADVANIHOTR | B35: EQ | C35: 30.1 | D35: 33 | E35: 30.1 | F35: 31.8 | G35: 31.5 | H35: 30.65 | I35: 5340 | J35: 169948.95 | K35: 2020-04-08 | L35: 193 | M35: INE199C01026
A36: ADVENZYMES | B36: EQ | C36: 140.2 | D36: 146.55 | E36: 137.95 | F36: 139.2 | G36: 139.75 | H36: 136.55 | I36: 77441 | J36: 11046136.15 | K36: 2020-04-08 | L36: 1990 | M36: INE837H01020
A37: AEGISCHEM | B37: EQ | C37: 150 | D37: 158.5 | E37: 147.1 | F37: 156.35 | G37: 156.05 | H37: 144.1 | I37: 175470 | J37: 27041093.9 | K37: 2020-04-08 | L37: 4268 | M37: INE208C01025
A38: AFFLE | B38: BE | C38: 1050 | D38: 1053.45 | E38: 1030 | F38: 1053.45 | G38: 1053.45 | H38: 1003.3 | I38: 8191 | J38: 8619737.5 | K38: 2020-04-08 | L38: 470 | M38: INE00WC01019
A39: AGARIND | B39: EQ | C39: 49.8 | D39: 52.85 | E39: 49.05 | F39: 52.25 | G39: 52.5 | H39: 49.95 | I39: 7826 | J39: 404450.25 | K39: 2020-04-08 | L39: 207 | M39: INE204E01012
A40: AGCNET | B40: BE | C40: 224.35 | D40: 235.55 | E40: 213.25 | F40: 234.7 | G40: 235.55 | H40: 224.35 | I40: 2524 | J40: 573063 | K40: 2020-04-08 | L40: 70 | M40: INE676A01019
A41: AGRITECH | B41: EQ | C41: 23.95 | D41: 23.95 | E41: 23.95 | F41: 23.95 | G41: 23.95 | H41: 22.85 | I41: 504 | J41: 12070.8 | K41: 2020-04-08 | L41: 18 | M41: INE449G01018
A42: AGROPHOS | B42: EQ | C42: 5.7 | D42: 5.7 | E42: 5.2 | F42: 5.7 | G42: 5.7 | H42: 5.45 | I42: 40596 | J42: 227201.55 | K42: 2020-04-08 | L42: 340 | M42: INE740V01019
A43: AHLEAST | B43: EQ | C43: 133.15 | D43: 141.85 | E43: 128.15 | F43: 131.55 | G43: 128.35 | H43: 131.5 | I43: 3303 | J43: 439718.1 | K43: 2020-04-08 | L43: 350 | M43: INE926K01017
A44: AHLUCONT | B44: EQ | C44: 145.95 | D44: 148 | E44: 136 | F44: 146.3 | G44: 148 | H44: 144.1 | I44: 153910 | J44: 21077811.2 | K44: 2020-04-08 | L44: 995 | M44: INE758C01029
A45: AHLWEST | B45: EQ | C45: 289.9 | D45: 289.9 | E45: 270.95 | F45: 275 | G45: 275 | H45: 277 | I45: 238 | J45: 67030 | K45: 2020-04-08 | L45: 91 | M45: INE915K01010
A46: AIAENG | B46: EQ | C46: 1259.45 | D46: 1291 | E46: 1229 | F46: 1255.85 | G46: 1268 | H46: 1249.9 | I46: 73842 | J46: 92756824.05 | K46: 2020-04-08 | L46: 10503 | M46: INE212H01026
A47: AIONJSW | B47: EQ | C47: 10.9 | D47: 11.1 | E47: 10.2 | F47: 11.1 | G47: 11.1 | H47: 10.6 | I47: 90347 | J47: 996144.95 | K47: 2020-04-08 | L47: 180 | M47: INE743C01021
A48: AIRAN | B48: EQ | C48: 9.8 | D48: 10.3 | E48: 9.75 | F48: 9.8 | G48: 9.75 | H48: 9.85 | I48: 1826 | J48: 18127.1 | K48: 2020-04-08 | L48: 25 | M48: INE645W01026
A49: AJANTPHARM | B49: EQ | C49: 1325.75 | D49: 1450 | E49: 1325 | F49: 1367.5 | G49: 1363 | H49: 1340.2 | I49: 166582 | J49: 233126032.5 | K49: 2020-04-08 | L49: 8748 | M49: INE031B01049
A50: AJMERA | B50: EQ | C50: 64.95 | D50: 70.5 | E50: 64.6 | F50: 68.4 | G50: 69.9 | H50: 64.65 | I50: 31766 | J50: 2167947.5 | K50: 2020-04-08 | L50: 909 | M50: INE298G01027
A51: AKASH | B51: BE | C51: 90 | D51: 90 | E51: 90 | F51: 90 | G51: 90 | H51: 90.95 | I51: 500 | J51: 45000 | K51: 2020-04-08 | L51: 1 | M51: INE737W01013
A52: AKSHARCHEM | B52: EQ | C52: 174.75 | D52: 177.6 | E52: 165.3 | F52: 169.7 | G52: 167.15 | H52: 165.25 | I52: 3130 | J52: 531878.25 | K52: 2020-04-08 | L52: 293 | M52: INE542B01011
A53: AKSHOPTFBR | B53: EQ | C53: 3.6 | D53: 3.6 | E53: 3.6 | F53: 3.6 | G53: 3.6 | H53: 3.45 | I53: 27750 | J53: 99900 | K53: 2020-04-08 | L53: 45 | M53: INE523B01011
A54: AKZOINDIA | B54: EQ | C54: 2084.95 | D54: 2133 | E54: 2030 | F54: 2047.9 | G54: 2040 | H54: 2086.75 | I54: 12835 | J54: 26789836.95 | K54: 2020-04-08 | L54: 2242 | M54: INE133A01011
A55: ALANKIT | B55: EQ | C55: 12.9 | D55: 12.9 | E55: 12.9 | F55: 12.9 | G55: 12.9 | H55: 12.3 | I55: 14247 | J55: 183786.3 | K55: 2020-04-08 | L55: 75 | M55: INE914E01040
A56: ALBERTDAVD | B56: EQ | C56: 338.8 | D56: 364.75 | E56: 338.8 | F56: 353.15 | G56: 352 | H56: 341.15 | I56: 24334 | J56: 8579416.55 | K56: 2020-04-08 | L56: 1220 | M56: INE155C01010
A57: ALCHEM | B57: BE | C57: 1.4 | D57: 1.4 | E57: 1.4 | F57: 1.4 | G57: 1.4 | H57: 1.35 | I57: 8608 | J57: 12051.2 | K57: 2020-04-08 | L57: 18 | M57: INE964B01033
A58: ALEMBICLTD | B58: EQ | C58: 43.7 | D58: 48.05 | E58: 39.7 | F58: 45.05 | G58: 45.5 | H58: 42.15 | I58: 695128 | J58: 31779132.75 | K58: 2020-04-08 | L58: 6991 | M58: INE426A01027
A59: ALICON | B59: EQ | C59: 195.95 | D59: 196 | E59: 181.05 | F59: 184.75 | G59: 184 | H59: 189.25 | I59: 3909 | J59: 722322.5 | K59: 2020-04-08 | L59: 123 | M59: INE062D01024
A60: ALKALI | B60: EQ | C60: 29.95 | D60: 31.75 | E60: 29.65 | F60: 31.75 | G60: 31.75 | H60: 28.9 | I60: 9346 | J60: 289594.95 | K60: 2020-04-08 | L60: 349 | M60: INE773I01017
A61: ALKEM | B61: EQ | C61: 2360 | D61: 2736.5 | E61: 2326.2 | F61: 2671.15 | G61: 2639 | H61: 2324.05 | I61: 371259 | J61: 967330461.6 | K61: 2020-04-08 | L61: 44106 | M61: INE540L01014
A62: ALKYLAMINE | B62: EQ | C62: 1236.6 | D62: 1398 | E62: 1222.2 | F62: 1334.05 | G62: 1334 | H62: 1232.45 | I62: 41501 | J62: 55061848.25 | K62: 2020-04-08 | L62: 3832 | M62: INE150B01021
A63: ALLCARGO | B63: EQ | C63: 63.05 | D63: 65.85 | E63: 63 | F63: 65.7 | G63: 65.85 | H63: 59.9 | I63: 300794 | J63: 19569467.05 | K63: 2020-04-08 | L63: 3098 | M63: INE418H01029
A64: ALLSEC | B64: EQ | C64: 131.7 | D64: 131.9 | E64: 129.35 | F64: 131.9 | G64: 131.9 | H64: 125.65 | I64: 1335 | J64: 175836.2 | K64: 2020-04-08 | L64: 37 | M64: INE835G01018
A65: ALOKINDS | B65: EQ | C65: 4.7 | D65: 4.7 | E65: 4.7 | F65: 4.7 | G65: 4.7 | H65: 4.5 | I65: 1698707 | J65: 7983922.9 | K65: 2020-04-08 | L65: 397 | M65: INE270A01029
A66: ALPA | B66: EQ | C66: 18.55 | D66: 20.15 | E66: 17.8 | F66: 20.15 | G66: 20.15 | H66: 16.8 | I66: 131233 | J66: 2593665.9 | K66: 2020-04-08 | L66: 858 | M66: INE385I01010
A67: ALPHAGEO | B67: EQ | C67: 126 | D67: 137.5 | E67: 126 | F67: 134.45 | G67: 133.3 | H67: 129.7 | I67: 22258 | J67: 2986986.5 | K67: 2020-04-08 | L67: 783 | M67: INE137C01018
A68: ALPSINDUS | B68: EQ | C68: 0.65 | D68: 0.75 | E68: 0.65 | F68: 0.75 | G68: 0.7 | H68: 0.7 | I68: 25369 | J68: 18108.8 | K68: 2020-04-08 | L68: 33 | M68: INE093B01015
A69: AMARAJABAT | B69: EQ | C69: 501.1 | D69: 513.65 | E69: 488.45 | F69: 502.05 | G69: 504.9 | H69: 501.1 | I69: 755312 | J69: 378881689.9 | K69: 2020-04-08 | L69: 18162 | M69: INE885A01032
A70: AMBER | B70: EQ | C70: 1189.9 | D70: 1199 | E70: 1072 | F70: 1108.05 | G70: 1109.25 | H70: 1189.9 | I70: 93512 | J70: 105805912.2 | K70: 2020-04-08 | L70: 14252 | M70: INE371P01015
A71: AMBIKCO | B71: EQ | C71: 539.25 | D71: 559 | E71: 531.05 | F71: 545.2 | G71: 536.4 | H71: 537.25 | I71: 3988 | J71: 2168349.4 | K71: 2020-04-08 | L71: 406 | M71: INE540G01014
A72: AMBUJACEM | B72: EQ | C72: 158.5 | D72: 159.5 | E72: 148.2 | F72: 149.7 | G72: 149.55 | H72: 159 | I72: 10421438 | J72: 1597618498 | K72: 2020-04-08 | L72: 84074 | M72: INE079A01024
A73: AMDIND | B73: EQ | C73: 9.9 | D73: 10.5 | E73: 9.5 | F73: 9.8 | G73: 9.55 | H73: 10 | I73: 17757 | J73: 177659.15 | K73: 2020-04-08 | L73: 707 | M73: INE005I01014
A74: AMJLAND | B74: EQ | C74: 14.3 | D74: 14.95 | E74: 13.7 | F74: 14 | G74: 14 | H74: 14.25 | I74: 12523 | J74: 176065.3 | K74: 2020-04-08 | L74: 106 | M74: INE606A01024
A75: AMRUTANJAN | B75: EQ | C75: 326 | D75: 352 | E75: 320.1 | F75: 345.45 | G75: 344.3 | H75: 324 | I75: 278725 | J75: 95586275.35 | K75: 2020-04-08 | L75: 9075 | M75: INE098F01031
A76: ANANTRAJ | B76: EQ | C76: 19.55 | D76: 20.15 | E76: 18.6 | F76: 18.75 | G76: 18.8 | H76: 19.55 | I76: 184694 | J76: 3509270.8 | K76: 2020-04-08 | L76: 1012 | M76: INE242C01024
A77: ANDHRACEMT | B77: EQ | C77: 1.8 | D77: 1.9 | E77: 1.7 | F77: 1.85 | G77: 1.9 | H77: 1.75 | I77: 105618 | J77: 196578.05 | K77: 2020-04-08 | L77: 227 | M77: INE666E01012
A78: ANDHRAPAP | B78: EQ | C78: 148.55 | D78: 148.55 | E78: 147 | F78: 148.55 | G78: 148.55 | H78: 141.5 | I78: 2622 | J78: 389210.05 | K78: 2020-04-08 | L78: 70 | M78: INE435A01028
A79: ANDHRSUGAR | B79: EQ | C79: 206.95 | D79: 212 | E79: 195 | F79: 206.05 | G79: 205.85 | H79: 203.55 | I79: 35494 | J79: 7286675.25 | K79: 2020-04-08 | L79: 1328 | M79: INE715B01013
A80: ANIKINDS | B80: EQ | C80: 7.25 | D80: 7.25 | E80: 6.65 | F80: 6.8 | G80: 6.8 | H80: 6.95 | I80: 4994 | J80: 34701.65 | K80: 2020-04-08 | L80: 35 | M80: INE087B01017
A81: ANKITMETAL | B81: EQ | C81: 0.4 | D81: 0.45 | E81: 0.35 | F81: 0.45 | G81: 0.45 | H81: 0.4 | I81: 64810 | J81: 27213.05 | K81: 2020-04-08 | L81: 29 | M81: INE106I01010
A82: ANSALAPI | B82: EQ | C82: 3.65 | D82: 3.8 | E82: 3.65 | F82: 3.8 | G82: 3.8 | H82: 3.65 | I82: 3974 | J82: 15023.75 | K82: 2020-04-08 | L82: 28 | M82: INE436A01026
A83: ANSALHSG | B83: EQ | C83: 3 | D83: 3 | E83: 2.8 | F83: 2.9 | G83: 2.9 | H83: 2.9 | I83: 31510 | J83: 91846.6 | K83: 2020-04-08 | L83: 64 | M83: INE880B01015
A84: ANUP | B84: EQ | C84: 304.75 | D84: 323.7 | E84: 303.1 | F84: 313.2 | G84: 313.05 | H84: 312.75 | I84: 11786 | J84: 3732090.6 | K84: 2020-04-08 | L84: 460 | M84: INE294Z01018
A85: APARINDS | B85: EQ | C85: 296.95 | D85: 300.35 | E85: 290.6 | F85: 295.85 | G85: 295.5 | H85: 296.05 | I85: 6051 | J85: 1806443.45 | K85: 2020-04-08 | L85: 427 | M85: INE372A01015
A86: APCL | B86: EQ | C86: 102.4 | D86: 102.4 | E86: 95.2 | F86: 97.35 | G86: 97 | H86: 98.5 | I86: 3739 | J86: 362867.6 | K86: 2020-04-08 | L86: 79 | M86: INE071F01012
A87: APCOTEXIND | B87: EQ | C87: 87.55 | D87: 94.85 | E87: 86 | F87: 87.5 | G87: 86.1 | H87: 87.45 | I87: 13115 | J87: 1175575.25 | K87: 2020-04-08 | L87: 323 | M87: INE116A01032
A88: APEX | B88: EQ | C88: 190 | D88: 201.65 | E88: 185.1 | F88: 201.65 | G88: 201.65 | H88: 183.35 | I88: 141806 | J88: 27768799.35 | K88: 2020-04-08 | L88: 3293 | M88: INE346W01013
A89: APLAPOLLO | B89: EQ | C89: 1245 | D89: 1274 | E89: 1220 | F89: 1259.5 | G89: 1258 | H89: 1231.75 | I89: 21152 | J89: 26442272.1 | K89: 2020-04-08 | L89: 3032 | M89: INE702C01019
A90: APLLTD | B90: EQ | C90: 630 | D90: 702.65 | E90: 615.5 | F90: 640.85 | G90: 626 | H90: 610.2 | I90: 540272 | J90: 353935242.1 | K90: 2020-04-08 | L90: 30323 | M90: INE901L01018
A91: APOLLO | B91: EQ | C91: 45.5 | D91: 56 | E91: 45.25 | F91: 54.3 | G91: 53.55 | H91: 46.7 | I91: 68951 | J91: 3631629.4 | K91: 2020-04-08 | L91: 1694 | M91: INE713T01010
A92: APOLLOHOSP | B92: EQ | C92: 1225.9 | D92: 1338.4 | E92: 1211 | F92: 1263.95 | G92: 1261 | H92: 1225.95 | I92: 2070270 | J92: 2654141027 | K92: 2020-04-08 | L92: 156926 | M92: INE437A01024
A93: APOLLOPIPE | B93: EQ | C93: 279.5 | D93: 304 | E93: 262.95 | F93: 281.3 | G93: 281 | H93: 280.1 | I93: 12940 | J93: 3607793.25 | K93: 2020-04-08 | L93: 543 | M93: INE126J01016
A94: APOLLOTYRE | B94: EQ | C94: 83.5 | D94: 87.15 | E94: 82 | F94: 83.4 | G94: 83.15 | H94: 83.5 | I94: 2950752 | J94: 248872037.1 | K94: 2020-04-08 | L94: 19408 | M94: INE438A01022
A95: APOLSINHOT | B95: EQ | C95: 460.35 | D95: 460.4 | E95: 421.1 | F95: 439.8 | G95: 436 | H95: 438.6 | I95: 694 | J95: 306874.65 | K95: 2020-04-08 | L95: 84 | M95: INE451F01024
A96: APTECHT | B96: EQ | C96: 85.3 | D96: 87.7 | E96: 83.55 | F96: 84.6 | G96: 84.3 | H96: 85.3 | I96: 106721 | J96: 9133416.7 | K96: 2020-04-08 | L96: 2385 | M96: INE266F01018
A97: ARCHIDPLY | B97: EQ | C97: 16.55 | D97: 17 | E97: 16.45 | F97: 16.85 | G97: 16.95 | H97: 16.75 | I97: 4083 | J97: 68300.2 | K97: 2020-04-08 | L97: 63 | M97: INE877I01016
A98: ARCHIES | B98: EQ | C98: 9.4 | D98: 9.5 | E98: 9 | F98: 9.05 | G98: 9.15 | H98: 9.45 | I98: 24343 | J98: 224667.6 | K98: 2020-04-08 | L98: 150 | M98: INE731A01020
A99: ARCOTECH | B99: EQ | C99: 0.9 | D99: 0.95 | E99: 0.85 | F99: 0.9 | G99: 0.9 | H99: 0.9 | I99: 51482 | J99: 47500.05 | K99: 2020-04-08 | L99: 77 | M99: INE574I01035
A100: ARENTERP | B100: EQ | C100: 12.65 | D100: 12.65 | E100: 12.05 | F100: 12.05 | G100: 12.05 | H100: 12.65 | I100: 63 | J100: 765.15 | K100: 2020-04-08 | L100: 4 | M100: INE610C01014
A101: ARIES | B101: EQ | C101: 44.4 | D101: 47.6 | E101: 42.65 | F101: 43.6 | G101: 44 | H101: 44.4 | I101: 50875 | J101: 2250478.25 | K101: 2020-04-08 | L101: 1080 | M101: INE298I01015
A102: ARIHANT | B102: EQ | C102: 12.05 | D102: 12.55 | E102: 11.6 | F102: 12.15 | G102: 12.5 | H102: 12.05 | I102: 964 | J102: 11418.15 | K102: 2020-04-08 | L102: 27 | M102: INE413D01011
A103: ARIHANTSUP | B103: EQ | C103: 21.4 | D103: 21.45 | E103: 19.45 | F103: 19.5 | G103: 21 | H103: 20.45 | I103: 4362 | J103: 85414.05 | K103: 2020-04-08 | L103: 80 | M103: INE643K01018
A104: ARMANFIN | B104: EQ | C104: 340 | D104: 373.2 | E104: 337.7 | F104: 373.05 | G104: 373.2 | H104: 355.45 | I104: 50867 | J104: 18465582.65 | K104: 2020-04-08 | L104: 911 | M104: INE109C01017
A105: AROGRANITE | B105: EQ | C105: 21.95 | D105: 24.5 | E105: 20.85 | F105: 24.2 | G105: 24.5 | H105: 22.35 | I105: 26052 | J105: 602565.3 | K105: 2020-04-08 | L105: 183 | M105: INE210C01013
A106: ARROWGREEN | B106: BE | C106: 33.55 | D106: 35 | E106: 33.45 | F106: 33.45 | G106: 33.45 | H106: 33.85 | I106: 5735 | J106: 195198.5 | K106: 2020-04-08 | L106: 32 | M106: INE570D01018
A107: ARSHIYA | B107: EQ | C107: 7.1 | D107: 7.6 | E107: 7.1 | F107: 7.6 | G107: 7.6 | H107: 7.25 | I107: 23178 | J107: 175819.45 | K107: 2020-04-08 | L107: 63 | M107: INE968D01022
A108: ARSSINFRA | B108: EQ | C108: 11.25 | D108: 12.3 | E108: 10.9 | F108: 11.8 | G108: 11.85 | H108: 11.15 | I108: 16388 | J108: 189874.85 | K108: 2020-04-08 | L108: 107 | M108: INE267I01010
A109: ARTEMISMED | B109: EQ | C109: 140 | D109: 147 | E109: 136.3 | F109: 138 | G109: 137 | H109: 139.15 | I109: 1729 | J109: 245138.4 | K109: 2020-04-08 | L109: 31 | M109: INE025R01013
A110: ARVIND | B110: EQ | C110: 23.5 | D110: 24.4 | E110: 22.45 | F110: 23.75 | G110: 23.75 | H110: 22.2 | I110: 2137547 | J110: 50521243.45 | K110: 2020-04-08 | L110: 7057 | M110: INE034A01011
A111: ARVINDFASN | B111: EQ | C111: 139.8 | D111: 141.9 | E111: 132.2 | F111: 133.8 | G111: 134.75 | H111: 139.85 | I111: 46445 | J111: 6387304.5 | K111: 2020-04-08 | L111: 1243 | M111: INE955V01021
A112: ARVSMART | B112: EQ | C112: 64.05 | D112: 67 | E112: 64 | F112: 65.4 | G112: 65.5 | H112: 65 | I112: 10000 | J112: 656036.65 | K112: 2020-04-08 | L112: 320 | M112: INE034S01021
A113: ASAHIINDIA | B113: EQ | C113: 152 | D113: 158 | E113: 147.05 | F113: 155.5 | G113: 152.35 | H113: 153.2 | I113: 5605 | J113: 858978.65 | K113: 2020-04-08 | L113: 218 | M113: INE439A01020
A114: ASAHISONG | B114: EQ | C114: 80.8 | D114: 88.95 | E114: 80.05 | F114: 85.25 | G114: 86 | H114: 80.9 | I114: 8055 | J114: 692533.2 | K114: 2020-04-08 | L114: 314 | M114: INE228I01012
A115: ASAL | B115: EQ | C115: 14.8 | D115: 14.9 | E115: 14.5 | F115: 14.5 | G115: 14.5 | H115: 14.25 | I115: 8037 | J115: 118819.3 | K115: 2020-04-08 | L115: 36 | M115: INE900C01027
A116: ASALCBR | B116: EQ | C116: 164.9 | D116: 175 | E116: 158 | F116: 165.7 | G116: 165 | H116: 162.9 | I116: 31033 | J116: 5116102.05 | K116: 2020-04-08 | L116: 970 | M116: INE073G01016
A117: ASHAPURMIN | B117: EQ | C117: 22.1 | D117: 22.1 | E117: 22.05 | F117: 22.1 | G117: 22.1 | H117: 21.05 | I117: 8770 | J117: 193792 | K117: 2020-04-08 | L117: 43 | M117: INE348A01023
A118: ASHIANA | B118: EQ | C118: 52.9 | D118: 52.9 | E118: 49.1 | F118: 49.95 | G118: 50 | H118: 50 | I118: 69042 | J118: 3480534.3 | K118: 2020-04-08 | L118: 621 | M118: INE365D01021
A119: ASHIMASYN | B119: EQ | C119: 3.9 | D119: 3.9 | E119: 3.9 | F119: 3.9 | G119: 3.9 | H119: 3.55 | I119: 28914 | J119: 112764.6 | K119: 2020-04-08 | L119: 46 | M119: INE440A01010
A120: ASHOKA | B120: EQ | C120: 38.35 | D120: 42.7 | E120: 37.8 | F120: 42.7 | G120: 42.7 | H120: 38.85 | I120: 1577514 | J120: 65134101.3 | K120: 2020-04-08 | L120: 8475 | M120: INE442H01029
A121: ASHOKLEY | B121: EQ | C121: 39.85 | D121: 47.8 | E121: 38.75 | F121: 43.85 | G121: 43.6 | H121: 39.85 | I121: 76817768 | J121: 3355417806 | K121: 2020-04-08 | L121: 169889 | M121: INE208A01029
A122: ASIANHOTNR | B122: EQ | C122: 70 | D122: 71.8 | E122: 66 | F122: 71.55 | G122: 71.5 | H122: 65.4 | I122: 4982 | J122: 349215.55 | K122: 2020-04-08 | L122: 198 | M122: INE363A01022
A123: ASIANPAINT | B123: EQ | C123: 1623.8 | D123: 1687.8 | E123: 1600 | F123: 1608.95 | G123: 1608 | H123: 1623.8 | I123: 2382216 | J123: 3911658954 | K123: 2020-04-08 | L123: 101146 | M123: INE021A01026
A124: ASIANTILES | B124: EQ | C124: 156 | D124: 162.9 | E124: 155 | F124: 157.6 | G124: 156.5 | H124: 157.65 | I124: 19917 | J124: 3151924.4 | K124: 2020-04-08 | L124: 431 | M124: INE022I01019
A125: ASPINWALL | B125: EQ | C125: 93 | D125: 98.7 | E125: 83.55 | F125: 93 | G125: 93 | H125: 90 | I125: 413 | J125: 38837.15 | K125: 2020-04-08 | L125: 20 | M125: INE991I01015
A126: ASTEC | B126: EQ | C126: 450.65 | D126: 465.05 | E126: 440 | F126: 460.05 | G126: 460.3 | H126: 443.9 | I126: 5283 | J126: 2392645.5 | K126: 2020-04-08 | L126: 494 | M126: INE563J01010
A127: ASTERDM | B127: EQ | C127: 96 | D127: 103.5 | E127: 93.8 | F127: 99.25 | G127: 99 | H127: 94.55 | I127: 996205 | J127: 98978623.7 | K127: 2020-04-08 | L127: 4570 | M127: INE914M01019
A128: ASTRAL | B128: EQ | C128: 962 | D128: 986 | E128: 952 | F128: 955.45 | G128: 954 | H128: 973.85 | I128: 59212 | J128: 57381672.65 | K128: 2020-04-08 | L128: 7623 | M128: INE006I01046
A129: ASTRAMICRO | B129: EQ | C129: 56.9 | D129: 62.55 | E129: 55.85 | F129: 61.7 | G129: 62.55 | H129: 56.9 | I129: 253097 | J129: 15146656.55 | K129: 2020-04-08 | L129: 1961 | M129: INE386C01029
A130: ASTRAZEN | B130: EQ | C130: 2700 | D130: 2830 | E130: 2544 | F130: 2561.6 | G130: 2549 | H130: 2693.65 | I130: 38510 | J130: 104113109 | K130: 2020-04-08 | L130: 6647 | M130: INE203A01020
A131: ASTRON | B131: EQ | C131: 26.15 | D131: 29.9 | E131: 25.3 | F131: 27.5 | G131: 27.8 | H131: 27.65 | I131: 61618 | J131: 1693449.45 | K131: 2020-04-08 | L131: 1743 | M131: INE646X01014
A132: ATFL | B132: EQ | C132: 479.65 | D132: 499 | E132: 475 | F132: 481.55 | G132: 475 | H132: 479.65 | I132: 6104 | J132: 2975754.9 | K132: 2020-04-08 | L132: 411 | M132: INE209A01019
A133: ATLANTA | B133: EQ | C133: 3 | D133: 3.15 | E133: 3 | F133: 3.15 | G133: 3.15 | H133: 3 | I133: 8624 | J133: 26936.35 | K133: 2020-04-08 | L133: 28 | M133: INE285H01022
A134: ATLASCYCLE | B134: BE | C134: 30 | D134: 31.5 | E134: 29.5 | F134: 30.7 | G134: 30.7 | H134: 30 | I134: 2000 | J134: 60118.65 | K134: 2020-04-08 | L134: 42 | M134: INE446A01025
A135: ATNINTER | B135: BE | C135: 0.1 | D135: 0.1 | E135: 0.1 | F135: 0.1 | G135: 0.1 | H135: 0.1 | I135: 12716 | J135: 1271.6 | K135: 2020-04-08 | L135: 5 | M135: INE803A01027
A136: ATUL | B136: EQ | C136: 3930 | D136: 4005 | E136: 3908.35 | F136: 3951.85 | G136: 3954.95 | H136: 3927.1 | I136: 76768 | J136: 304824820.4 | K136: 2020-04-08 | L136: 11635 | M136: INE100A01010
A137: ATULAUTO | B137: EQ | C137: 151.35 | D137: 154.05 | E137: 146.8 | F137: 153.45 | G137: 153.95 | H137: 146.75 | I137: 13699 | J137: 2093863.3 | K137: 2020-04-08 | L137: 810 | M137: INE951D01028
A138: AUBANK | B138: EQ | C138: 461.2 | D138: 490 | E138: 457 | F138: 480.3 | G138: 473 | H138: 478.4 | I138: 1791057 | J138: 837589012.6 | K138: 2020-04-08 | L138: 59410 | M138: INE949L01017
A139: AURIONPRO | B139: EQ | C139: 41.75 | D139: 43.7 | E139: 40 | F139: 42.9 | G139: 42.9 | H139: 40.95 | I139: 8828 | J139: 376649.05 | K139: 2020-04-08 | L139: 213 | M139: INE132H01018
A140: AUROPHARMA | B140: EQ | C140: 432.5 | D140: 476.3 | E140: 426.3 | F140: 438.15 | G140: 438.9 | H140: 445.7 | I140: 13186213 | J140: 5925576015 | K140: 2020-04-08 | L140: 205238 | M140: INE406A01037
A141: AUSOMENT | B141: EQ | C141: 26.1 | D141: 26.1 | E141: 26.1 | F141: 26.1 | G141: 26.1 | H141: 25 | I141: 100 | J141: 2610 | K141: 2020-04-08 | L141: 1 | M141: INE218C01016
A142: AUTOAXLES | B142: EQ | C142: 413 | D142: 423.5 | E142: 398.05 | F142: 413.45 | G142: 416 | H142: 399.3 | I142: 5448 | J142: 2244823.45 | K142: 2020-04-08 | L142: 638 | M142: INE449A01011
A143: AUTOIND | B143: EQ | C143: 11.3 | D143: 11.35 | E143: 11.1 | F143: 11.35 | G143: 11.35 | H143: 10.85 | I143: 9358 | J143: 105383.05 | K143: 2020-04-08 | L143: 68 | M143: INE718H01014
A144: AUTOLITIND | B144: EQ | C144: 13.2 | D144: 14.4 | E144: 13.2 | F144: 13.8 | G144: 13.9 | H144: 13.75 | I144: 4699 | J144: 65525.8 | K144: 2020-04-08 | L144: 68 | M144: INE448A01013
A145: AVADHSUGAR | B145: EQ | C145: 143.55 | D145: 143.55 | E145: 143.55 | F145: 143.55 | G145: 143.55 | H145: 136.75 | I145: 13174 | J145: 1891127.7 | K145: 2020-04-08 | L145: 157 | M145: INE349W01017
A146: AVANTIFEED | B146: EQ | C146: 311 | D146: 341.55 | E146: 310.5 | F146: 341.35 | G146: 341.55 | H146: 310.5 | I146: 748404 | J146: 246839085.1 | K146: 2020-04-08 | L146: 23272 | M146: INE871C01038
A147: AVTNPL | B147: EQ | C147: 25.45 | D147: 27.8 | E147: 24.25 | F147: 27.25 | G147: 27 | H147: 25.05 | I147: 213540 | J147: 5643644.4 | K147: 2020-04-08 | L147: 1601 | M147: INE488D01021
A148: AXISBANK | B148: EQ | C148: 383.75 | D148: 427.7 | E148: 373.5 | F148: 391.35 | G148: 391.4 | H148: 388.85 | I148: 64930772 | J148: 2.575974593e+10 | K148: 2020-04-08 | L148: 769506 | M148: INE238A01034
A149: AXISCADES | B149: EQ | C149: 30.9 | D149: 31.5 | E149: 28.65 | F149: 31.4 | G149: 31.5 | H149: 30 | I149: 39670 | J149: 1232336.75 | K149: 2020-04-08 | L149: 621 | M149: INE555B01013
A150: AXISGOLD | B150: EQ | C150: 3969.9 | D150: 3989 | E150: 3925 | F150: 3973.3 | G150: 3983 | H150: 3919.55 | I150: 701 | J150: 2769851.6 | K150: 2020-04-08 | L150: 206 | M150: INF846K01347
A151: AXISNIFTY | B151: EQ | C151: 1000.01 | D151: 1000.01 | E151: 1000.01 | F151: 1000.01 | G151: 1000.01 | H151: 1007 | I151: 2 | J151: 2000.02 | K151: 2020-04-08 | L151: 1 | M151: INF846K01ZL0
A152: AYMSYNTEX | B152: EQ | C152: 15.5 | D152: 16.8 | E152: 15.5 | F152: 16.5 | G152: 16.5 | H152: 16.1 | I152: 2637 | J152: 43548.55 | K152: 2020-04-08 | L152: 26 | M152: INE193B01039
A153: BAFNAPH | B153: EQ | C153: 16.05 | D153: 16.05 | E153: 16.05 | F153: 16.05 | G153: 16.05 | H153: 15.3 | I153: 272 | J153: 4365.6 | K153: 2020-04-08 | L153: 8 | M153: INE878I01022
A154: BAGFILMS | B154: BE | C154: 1.75 | D154: 1.8 | E154: 1.75 | F154: 1.8 | G154: 1.8 | H154: 1.75 | I154: 3861 | J154: 6912.3 | K154: 2020-04-08 | L154: 20 | M154: INE116D01028
A155: BAJAJ-AUTO | B155: EQ | C155: 2180 | D155: 2383.45 | E155: 2168.55 | F155: 2241.7 | G155: 2260 | H155: 2280.05 | I155: 840875 | J155: 1933266167 | K155: 2020-04-08 | L155: 59866 | M155: INE917I01010
A156: BAJAJCON | B156: EQ | C156: 136 | D156: 148.65 | E156: 135.1 | F156: 137.95 | G156: 138 | H156: 138.15 | I156: 1031633 | J156: 145711259.1 | K156: 2020-04-08 | L156: 26102 | M156: INE933K01021
A157: BAJAJELEC | B157: EQ | C157: 277.3 | D157: 294.5 | E157: 277.3 | F157: 287.8 | G157: 289 | H157: 277.3 | I157: 58251 | J157: 16797537.55 | K157: 2020-04-08 | L157: 3821 | M157: INE193E01025
A158: BAJAJFINSV | B158: EQ | C158: 4575 | D158: 4950 | E158: 4537.8 | F158: 4608.5 | G158: 4604 | H158: 4724.9 | I158: 1113057 | J158: 5259493342 | K158: 2020-04-08 | L158: 158158 | M158: INE918I01018
A159: BAJAJHIND | B159: EQ | C159: 3.05 | D159: 3.05 | E159: 3.05 | F159: 3.05 | G159: 3.05 | H159: 2.95 | I159: 80900 | J159: 246745 | K159: 2020-04-08 | L159: 110 | M159: INE306A01021
A160: BAJAJHLDNG | B160: EQ | C160: 2027.95 | D160: 2073.85 | E160: 1925 | F160: 2024.75 | G160: 2025 | H160: 1978.9 | I160: 25453 | J160: 51363834.45 | K160: 2020-04-08 | L160: 6198 | M160: INE118A01012
A161: BAJFINANCE | B161: EQ | C161: 2184 | D161: 2374 | E161: 2144.15 | F161: 2332.9 | G161: 2329 | H161: 2253.35 | I161: 9109346 | J161: 2.088826331e+10 | K161: 2020-04-08 | L161: 516967 | M161: INE296A01024
A162: BALAJITELE | B162: EQ | C162: 43 | D162: 45 | E162: 40.8 | F162: 41.9 | G162: 42.15 | H162: 43.75 | I162: 194912 | J162: 8414452.4 | K162: 2020-04-08 | L162: 1677 | M162: INE794B01026
A163: BALAMINES | B163: EQ | C163: 277 | D163: 296 | E163: 260.4 | F163: 283.65 | G163: 284.45 | H163: 271.2 | I163: 70594 | J163: 20058887.5 | K163: 2020-04-08 | L163: 2337 | M163: INE050E01027
A164: BALAXI | B164: BE | C164: 82.7 | D164: 82.7 | E164: 75.05 | F164: 79.9 | G164: 79.9 | H164: 79 | I164: 1047 | J164: 78761.9 | K164: 2020-04-08 | L164: 24 | M164: INE618N01014
A165: BALKRISHNA | B165: EQ | C165: 8.6 | D165: 8.8 | E165: 8.35 | F165: 8.8 | G165: 8.8 | H165: 8.4 | I165: 7860 | J165: 67624.35 | K165: 2020-04-08 | L165: 49 | M165: INE875R01011
A166: BALKRISIND | B166: EQ | C166: 822 | D166: 862 | E166: 815 | F166: 821.35 | G166: 818.3 | H166: 823.55 | I166: 444079 | J166: 371870250.3 | K166: 2020-04-08 | L166: 24462 | M166: INE787D01026
A167: BALLARPUR | B167: EQ | C167: 0.4 | D167: 0.4 | E167: 0.3 | F167: 0.35 | G167: 0.35 | H167: 0.35 | I167: 9769871 | J167: 3419941.15 | K167: 2020-04-08 | L167: 514 | M167: INE294A01037
A168: BALMLAWRIE | B168: EQ | C168: 84 | D168: 87.9 | E168: 81 | F168: 84.75 | G168: 85.65 | H168: 85.5 | I168: 202053 | J168: 17357055.25 | K168: 2020-04-08 | L168: 3105 | M168: INE164A01016
A169: BALPHARMA | B169: EQ | C169: 38.9 | D169: 41.7 | E169: 38.9 | F169: 41.7 | G169: 41.7 | H169: 37.95 | I169: 40933 | J169: 1688199.5 | K169: 2020-04-08 | L169: 518 | M169: INE083D01012
A170: BALRAMCHIN | B170: EQ | C170: 123.85 | D170: 126.4 | E170: 123 | F170: 126.4 | G170: 126.4 | H170: 120.4 | I170: 642515 | J170: 80884980.2 | K170: 2020-04-08 | L170: 7125 | M170: INE119A01028
A171: BANARBEADS | B171: EQ | C171: 30.25 | D171: 32.5 | E171: 29.6 | F171: 29.75 | G171: 29.75 | H171: 31.5 | I171: 160 | J171: 4873.85 | K171: 2020-04-08 | L171: 26 | M171: INE655B01011
A172: BANARISUG | B172: EQ | C172: 900 | D172: 925 | E172: 880 | F172: 886.1 | G172: 880 | H172: 893.1 | I172: 410 | J172: 368979.1 | K172: 2020-04-08 | L172: 94 | M172: INE459A01010
A173: BANCOINDIA | B173: EQ | C173: 65.45 | D173: 67.5 | E173: 64.1 | F173: 65.95 | G173: 66 | H173: 65.45 | I173: 40062 | J173: 2654130.6 | K173: 2020-04-08 | L173: 1013 | M173: INE213C01025
A174: BANDHANBNK | B174: EQ | C174: 167.95 | D174: 209.05 | E174: 167.5 | F174: 193.75 | G174: 195.25 | H174: 167.25 | I174: 30692919 | J174: 5833285762 | K174: 2020-04-08 | L174: 332020 | M174: INE545U01014
A175: BANG | B175: EQ | C175: 12.05 | D175: 13.1 | E175: 11.9 | F175: 13.1 | G175: 13.1 | H175: 12.5 | I175: 1590 | J175: 20489 | K175: 2020-04-08 | L175: 31 | M175: INE863I01016
A176: BANKBARODA | B176: EQ | C176: 48 | D176: 51.5 | E176: 47.3 | F176: 48.35 | G176: 48.45 | H176: 48.15 | I176: 27159204 | J176: 1340103716 | K176: 2020-04-08 | L176: 77070 | M176: INE028A01039
A177: BANKBEES | B177: EQ | C177: 190 | D177: 205.4 | E177: 186.06 | F177: 191.28 | G177: 191.4 | H177: 192.12 | I177: 676832 | J177: 131368353.2 | K177: 2020-04-08 | L177: 10023 | M177: INF204KB15I9
A178: BANKINDIA | B178: EQ | C178: 32.7 | D178: 34.75 | E178: 32.5 | F178: 33.35 | G178: 33.25 | H178: 32.95 | I178: 1236627 | J178: 41574499.75 | K178: 2020-04-08 | L178: 6257 | M178: INE084A01016
A179: BANSWRAS | B179: EQ | C179: 77.4 | D179: 77.4 | E179: 70.2 | F179: 71.15 | G179: 70.2 | H179: 73.75 | I179: 22922 | J179: 1667255.55 | K179: 2020-04-08 | L179: 137 | M179: INE629D01012
A180: BASF | B180: EQ | C180: 1154 | D180: 1154 | E180: 1105 | F180: 1119.95 | G180: 1120.5 | H180: 1138.25 | I180: 26139 | J180: 29425244.35 | K180: 2020-04-08 | L180: 2640 | M180: INE373A01013
A181: BASML | B181: EQ | C181: 74.05 | D181: 84 | E181: 74.05 | F181: 80 | G181: 80 | H181: 78.7 | I181: 1648 | J181: 135366.45 | K181: 2020-04-08 | L181: 154 | M181: INE186H01014
A182: BATAINDIA | B182: EQ | C182: 1246.5 | D182: 1339 | E182: 1228 | F182: 1240.05 | G182: 1238.95 | H182: 1246.4 | I182: 1346088 | J182: 1726485633 | K182: 2020-04-08 | L182: 66274 | M182: INE176A01028
A183: BAYERCROP | B183: EQ | C183: 3500 | D183: 3946.6 | E183: 3499.3 | F183: 3818.15 | G183: 3772.15 | H183: 3510 | I183: 32833 | J183: 125437264 | K183: 2020-04-08 | L183: 6737 | M183: INE462A01022
A184: BBL | B184: EQ | C184: 590 | D184: 621.25 | E184: 590 | F184: 613.05 | G184: 621.25 | H184: 589.55 | I184: 9335 | J184: 5684085.45 | K184: 2020-04-08 | L184: 804 | M184: INE464A01028
A185: BBTC | B185: EQ | C185: 810 | D185: 854.3 | E185: 774 | F185: 784.2 | G185: 787.95 | H185: 788.4 | I185: 76612 | J185: 62014517.65 | K185: 2020-04-08 | L185: 5281 | M185: INE050A01025
A186: BCG | B186: EQ | C186: 3.6 | D186: 3.65 | E186: 3.55 | F186: 3.65 | G186: 3.65 | H186: 3.5 | I186: 305718 | J186: 1113234.95 | K186: 2020-04-08 | L186: 149 | M186: INE425B01027
A187: BCP | B187: EQ | C187: 10.75 | D187: 10.75 | E187: 10.5 | F187: 10.75 | G187: 10.75 | H187: 10.25 | I187: 8192 | J187: 87934.6 | K187: 2020-04-08 | L187: 28 | M187: INE905P01028
A188: BDL | B188: EQ | C188: 191 | D188: 229 | E188: 188.2 | F188: 218.2 | G188: 216.4 | H188: 191.4 | I188: 448405 | J188: 97968192.25 | K188: 2020-04-08 | L188: 13672 | M188: INE171Z01018
A189: BEARDSELL | B189: EQ | C189: 6.7 | D189: 7.3 | E189: 6.7 | F189: 7.3 | G189: 7.3 | H189: 7.05 | I189: 1250 | J189: 8417 | K189: 2020-04-08 | L189: 4 | M189: INE520H01022
A190: BEDMUTHA | B190: EQ | C190: 12.8 | D190: 13.05 | E190: 12.45 | F190: 12.45 | G190: 12.45 | H190: 13.1 | I190: 19584 | J190: 245429.15 | K190: 2020-04-08 | L190: 32 | M190: INE844K01012
A191: BEL | B191: EQ | C191: 69 | D191: 71.3 | E191: 65.1 | F191: 66.4 | G191: 66.5 | H191: 69 | I191: 16699885 | J191: 1138705070 | K191: 2020-04-08 | L191: 69587 | M191: INE263A01024
A192: BEML | B192: EQ | C192: 492 | D192: 523.5 | E192: 492 | F192: 503.6 | G192: 503 | H192: 475.95 | I192: 890527 | J192: 458689246.6 | K192: 2020-04-08 | L192: 23670 | M192: INE258A01016
A193: BEPL | B193: EQ | C193: 31 | D193: 32.75 | E193: 30.3 | F193: 31.25 | G193: 31.6 | H193: 30.25 | I193: 333595 | J193: 10578641.1 | K193: 2020-04-08 | L193: 3321 | M193: INE922A01025
A194: BERGEPAINT | B194: EQ | C194: 479.9 | D194: 487.65 | E194: 460 | F194: 463.5 | G194: 462 | H194: 479.2 | I194: 1729062 | J194: 817908730.6 | K194: 2020-04-08 | L194: 32950 | M194: INE463A01038
A195: BFINVEST | B195: EQ | C195: 258 | D195: 268.8 | E195: 244.6 | F195: 246.3 | G195: 248.95 | H195: 257.45 | I195: 4938 | J195: 1236639.95 | K195: 2020-04-08 | L195: 244 | M195: INE878K01010
A196: BFUTILITIE | B196: EQ | C196: 158.35 | D196: 158.35 | E196: 151.05 | F196: 154.05 | G196: 153.7 | H196: 150.85 | I196: 138134 | J196: 21700813.75 | K196: 2020-04-08 | L196: 1649 | M196: INE243D01012
A197: BGRENERGY | B197: EQ | C197: 22.1 | D197: 22.85 | E197: 20.95 | F197: 21.1 | G197: 21.15 | H197: 22.2 | I197: 172282 | J197: 3763089.75 | K197: 2020-04-08 | L197: 1108 | M197: INE661I01014
A198: BHAGERIA | B198: EQ | C198: 85 | D198: 91.05 | E198: 80.65 | F198: 81.6 | G198: 82.3 | H198: 84.2 | I198: 34795 | J198: 2944870.7 | K198: 2020-04-08 | L198: 925 | M198: INE354C01027
A199: BHAGYANGR | B199: EQ | C199: 14.05 | D199: 15.2 | E199: 14 | F199: 14.4 | G199: 14.4 | H199: 14.4 | I199: 1338 | J199: 19622.25 | K199: 2020-04-08 | L199: 50 | M199: INE458B01036
A200: BHAGYAPROP | B200: EQ | C200: 18 | D200: 20 | E200: 18 | F200: 20 | G200: 20 | H200: 19 | I200: 999 | J200: 19011 | K200: 2020-04-08 | L200: 5 | M200: INE363W01018
... 1470 more rows

Sheet Sheet1 (hidden)

Sheet Sheet3 (hidden)

Sheet Sheet4 (hidden)

Sheet Sheet5 (hidden)
